Workbook

Sheet Main
B10: 2018-05-22
B12: Sheet No. | C12: Template Name | D12: Summary
B13: 1 | C13: Future Intra | D13: For Intraday trading in F&O segment
B14: 2 | C14: Cash Intra | D14: For Intraday trading in cash market segment
B15: 3 | C15: Mid-cap Intra | D15: For Intraday trading in Mid-cap stocks
B16: 4 | C16: Bulk Deals | D16: Reveals Bulk Deals carried on NSE & BSE
B17: 5 | C17: Call Tracker

Sheet Future Intra
M5: Back to Main Page
A6: FOR INTRA DAY TRADING | L6: =Main!B10 -> 2018-05-22
A9: Sr.no | B9: Sector | C9: Scrip | D9: CLOSE RATE | E9: Pivot Point | F9: Supports | I9: Resistances
B10: Sector | D10: Point | E10: Point | F10: S1 | G10: S2 | H10: S3 | I10: R1 | J10: R2 | K10: R3 | L10: HIGH | M10: LOW | N10: OI | O10: % Change in OI
A11: 1 | B11: Index | C11: BANKNIFTY | D11: 25801.95 | E11: 25864.80 | F11: 25659.60 | G11: 25517.25 | H11: 25312.05 | I11: 26007.15 | J11: 26212.35 | K11: 26354.70 | L11: 26070 | M11: 25722.45 | N11: 3094360 | O11: 2.11%
A12: 2 | B12: Index | C12: NIFTY | D12: 10538.75 | E12: 10563.35 | F12: 10496.70 | G12: 10454.65 | H12: 10388.00 | I12: 10605.40 | J12: 10672.05 | K12: 10714.10 | L12: 10630 | M12: 10521.3 | N12: 24740925 | O12: -3.10%
A13: 3 | B13: Index | C13: NIFTYCPSE | D13: 2627.40 | E13: 875.80 | F13: 1751.60 | G13: 875.80 | H13: 1751.60 | I13: 1751.60 | J13: 875.80 | K13: 1751.60 | L13: 0 | M13: 0 | N13: 0 | O13: 0.00%
A14: 4 | B14: Index | C14: NIFTYINFRA | D14: 3441.10 | E14: 1147.03 | F14: 2294.07 | G14: 1147.03 | H14: 2294.07 | I14: 2294.07 | J14: 1147.03 | K14: 2294.07 | L14: 0 | M14: 0 | N14: 0 | O14: 0.00%
A15: 5 | B15: Index | C15: NIFTYIT | D15: 13498.00 | E15: 13509.67 | F15: 13454.33 | G15: 13410.67 | H15: 13355.33 | I15: 13553.33 | J15: 13608.67 | K15: 13652.33 | L15: 13565 | M15: 13466 | N15: 57550 | O15: -1.37%
A16: 6 | B16: Index | C16: NIFTYMID50 | D16: 5142.00 | E16: 1714.00 | F16: 3428.00 | G16: 1714.00 | H16: 3428.00 | I16: 3428.00 | J16: 1714.00 | K16: 3428.00 | L16: 0 | M16: 0 | N16: 591800 | O16: 0.00%
A17: 7 | B17: Index | C17: NIFTYPSE | D17: 4077.45 | E17: 1359.15 | F17: 2718.30 | G17: 1359.15 | H17: 2718.30 | I17: 2718.30 | J17: 1359.15 | K17: 2718.30 | L17: 0 | M17: 0 | N17: 0 | O17: 0.00%
A18: 8 | B18: Cement | C18: ACC | D18: 1348.55 | E18: 1353.32 | F18: 1324.23 | G18: 1299.92 | H18: 1270.83 | I18: 1377.63 | J18: 1406.72 | K18: 1431.03 | L18: 1382.4 | M18: 1329 | N18: 2750000 | O18: 4.69%
A19: 9 | B19: Others | C19: ADANIENT | D19: 118.70 | E19: 118.65 | F19: 116.25 | G19: 113.80 | H19: 111.40 | I19: 121.10 | J19: 123.50 | K19: 125.95 | L19: 121.05 | M19: 116.2 | N19: 13680000 | O19: -6.33%
A20: 10 | B20: Others | C20: ADANIPORTS | D20: 385.30 | E20: 386.63 | F20: 380.77 | G20: 376.23 | H20: 370.37 | I20: 391.17 | J20: 397.03 | K20: 401.57 | L20: 392.5 | M20: 382.1 | N20: 16207500 | O20: 0.57%
A21: 11 | B21: Power | C21: ADANIPOWER | D21: 20.80 | E21: 20.88 | F21: 20.17 | G21: 19.53 | H21: 18.82 | I21: 21.52 | J21: 22.23 | K21: 22.87 | L21: 21.6 | M21: 20.25 | N21: 94940000 | O21: 0.06%
A22: 12 | B22: Pharma | C22: AJANTPHARM | D22: 988.55 | E22: 995.42 | F22: 973.13 | G22: 957.72 | H22: 935.43 | I22: 1010.83 | J22: 1033.12 | K22: 1048.53 | L22: 1017.7 | M22: 980 | N22: 1272000 | O22: 2.13%
A23: 13 | B23: Banking | C23: ALBK | D23: 38.70 | E23: 38.45 | F23: 37.70 | G23: 36.70 | H23: 35.95 | I23: 39.45 | J23: 40.20 | K23: 41.20 | L23: 39.2 | M23: 37.45 | N23: 18901000 | O23: 4.07%
A24: 14 | B24: Automobile | C24: AMARAJABAT | D24: 799.95 | E24: 790.20 | F24: 762.95 | G24: 725.95 | H24: 698.70 | I24: 827.20 | J24: 854.45 | K24: 891.45 | L24: 817.45 | M24: 753.2 | N24: 1735300 | O24: 4.73%
A25: 15 | B25: Cement | C25: AMBUJACEM | D25: 208.40 | E25: 208.80 | F25: 204.80 | G25: 201.20 | H25: 197.20 | I25: 212.40 | J25: 216.40 | K25: 220.00 | L25: 212.8 | M25: 205.2 | N25: 14740000 | O25: -0.41%
A26: 16 | B26: Banking | C26: ANDHRABANK | D26: 35.10 | E26: 34.90 | F26: 34.30 | G26: 33.50 | H26: 32.90 | I26: 35.70 | J26: 36.30 | K26: 37.10 | L26: 35.5 | M26: 34.1 | N26: 24291000 | O26: -2.72%
A27: 17 | B27: Others | C27: APOLLOHOSP | D27: 985.25 | E27: 995.93 | F27: 969.82 | G27: 954.38 | H27: 928.27 | I27: 1011.37 | J27: 1037.48 | K27: 1052.92 | L27: 1022.05 | M27: 980.5 | N27: 987500 | O27: 2.38%
A28: 18 | B28: Automobile | C28: APOLLOTYRE | D28: 275.70 | E28: 280.33 | F28: 268.17 | G28: 260.63 | H28: 248.47 | I28: 287.87 | J28: 300.03 | K28: 307.57 | L28: 292.5 | M28: 272.8 | N28: 9207000 | O28: -1.00%
A29: 19 | B29: Textile | C29: ARVIND | D29: 392.30 | E29: 395.47 | F29: 386.53 | G29: 380.77 | H29: 371.83 | I29: 401.23 | J29: 410.17 | K29: 415.93 | L29: 404.4 | M29: 389.7 | N29: 6306000 | O29: 2.77%
A30: 20 | B30: Automobile | C30: ASHOKLEY | D30: 134.50 | E30: 138.68 | F30: 129.67 | G30: 124.83 | H30: 115.82 | I30: 143.52 | J30: 152.53 | K30: 157.37 | L30: 147.7 | M30: 133.85 | N30: 78794000 | O30: 7.99%
A31: 21 | B31: FMCG | C31: ASIANPAINT | D31: 1307.10 | E31: 1307.60 | F31: 1296.50 | G31: 1285.90 | H31: 1274.80 | I31: 1318.20 | J31: 1329.30 | K31: 1339.90 | L31: 1318.7 | M31: 1297 | N31: 5814000 | O31: -3.08%
A32: 22 | B32: Pharma | C32: AUROPHARMA | D32: 567.80 | E32: 572.22 | F32: 560.78 | G32: 553.77 | H32: 542.33 | I32: 579.23 | J32: 590.67 | K32: 597.68 | L32: 583.65 | M32: 565.2 | N32: 22473800 | O32: -0.29%
A33: 23 | B33: Banking | C33: AXISBANK | D33: 528.80 | E33: 529.17 | F33: 522.93 | G33: 517.07 | H33: 510.83 | I33: 535.03 | J33: 541.27 | K33: 547.13 | L33: 535.4 | M33: 523.3 | N33: 49330800 | O33: -0.24%
A34: 24 | B34: Automobile | C34: BAJAJ-AUTO | D34: 2723.35 | E34: 2737.57 | F34: 2693.43 | G34: 2663.52 | H34: 2619.38 | I34: 2767.48 | J34: 2811.62 | K34: 2841.53 | L34: 2781.7 | M34: 2707.65 | N34: 2247750 | O34: -3.19%
A35: 25 | B35: Others | C35: BAJAJFINSV | D35: 5745.60 | E35: 5723.18 | F35: 5664.62 | G35: 5583.63 | H35: 5525.07 | I35: 5804.17 | J35: 5862.73 | K35: 5943.72 | L35: 5781.75 | M35: 5642.2 | N35: 709375 | O35: -3.27%
A36: 26 | B36: Finance | C36: BAJFINANCE | D36: 2115.70 | E36: 2119.90 | F36: 2084.90 | G36: 2054.10 | H36: 2019.10 | I36: 2150.70 | J36: 2185.70 | K36: 2216.50 | L36: 2154.9 | M36: 2089.1 | N36: 5645500 | O36: -3.16%
A37: 27 | B37: Others | C37: BALKRISIND | D37: 1118.20 | E37: 1111.22 | F37: 1050.18 | G37: 982.17 | H37: 921.13 | I37: 1179.23 | J37: 1240.27 | K37: 1308.28 | L37: 1172.25 | M37: 1043.2 | N37: 1045600 | O37: -3.83%
A38: 28 | B38: Others | C38: BALRAMCHIN | D38: 66.25 | E38: 66.15 | F38: 63.60 | G38: 60.95 | H38: 58.40 | I38: 68.80 | J38: 71.35 | K38: 74.00 | L38: 68.7 | M38: 63.5 | N38: 16408000 | O38: -12.91%
A39: 29 | B39: Banking | C39: BANKBARODA | D39: 130.20 | E39: 129.72 | F39: 127.13 | G39: 124.07 | H39: 121.48 | I39: 132.78 | J39: 135.37 | K39: 138.43 | L39: 132.3 | M39: 126.65 | N39: 57412000 | O39: -2.68%
A40: 30 | B40: Banking | C40: BANKINDIA | D40: 98.35 | E40: 97.85 | F40: 95.30 | G40: 92.25 | H40: 89.70 | I40: 100.90 | J40: 103.45 | K40: 106.50 | L40: 100.4 | M40: 94.8 | N40: 26532000 | O40: -2.56%
A41: 31 | B41: FMCG | C41: BATAINDIA | D41: 747.10 | E41: 750.62 | F41: 739.98 | G41: 732.87 | H41: 722.23 | I41: 757.73 | J41: 768.37 | K41: 775.48 | L41: 761.25 | M41: 743.5 | N41: 2751100 | O41: 3.13%
A42: 32 | B42: Capital_Goods | C42: BEL | D42: 117.85 | E42: 118.98 | F42: 116.02 | G42: 114.18 | H42: 111.22 | I42: 120.82 | J42: 123.78 | K42: 125.62 | L42: 121.95 | M42: 117.15 | N42: 33061050 | O42: 0.69%
A43: 33 | B43: Infrastructure | C43: BEML | D43: 949.95 | E43: 971.00 | F43: 917.95 | G43: 885.95 | H43: 832.90 | I43: 1003.00 | J43: 1056.05 | K43: 1088.05 | L43: 1024.05 | M43: 939 | N43: 2328100 | O43: 1.19%
A44: 34 | B44: Others | C44: BERGEPAINT | D44: 283.15 | E44: 281.97 | F44: 279.18 | G44: 275.22 | H44: 272.43 | I44: 285.93 | J44: 288.72 | K44: 292.68 | L44: 284.75 | M44: 278 | N44: 1685200 | O44: 3.51%
A45: 35 | B45: Finance | C45: BHARATFIN | D45: 1164.20 | E45: 1169.27 | F45: 1154.98 | G45: 1145.77 | H45: 1131.48 | I45: 1178.48 | J45: 1192.77 | K45: 1201.98 | L45: 1183.55 | M45: 1160.05 | N45: 5560000 | O45: 2.70%
A46: 36 | B46: Automobile | C46: BHARATFORG | D46: 697.20 | E46: 705.18 | F46: 685.32 | G46: 673.43 | H46: 653.57 | I46: 717.07 | J46: 736.93 | K46: 748.82 | L46: 725.05 | M46: 693.3 | N46: 9350400 | O46: 1.95%
A47: 37 | B47: Telecom | C47: BHARTIARTL | D47: 361.00 | E47: 362.48 | F47: 355.37 | G47: 349.73 | H47: 342.62 | I47: 368.12 | J47: 375.23 | K47: 380.87 | L47: 369.6 | M47: 356.85 | N47: 52744200 | O47: -0.73%
A48: 38 | B48: Capital_Goods | C48: BHEL | D48: 75.35 | E48: 75.78 | F48: 74.47 | G48: 73.58 | H48: 72.27 | I48: 76.67 | J48: 77.98 | K48: 78.87 | L48: 77.1 | M48: 74.9 | N48: 48180000 | O48: 0.41%
A49: 39 | B49: Pharma | C49: BIOCON | D49: 626.60 | E49: 632.93 | F49: 611.67 | G49: 596.73 | H49: 575.47 | I49: 647.87 | J49: 669.13 | K49: 684.07 | L49: 654.2 | M49: 618 | N49: 7976700 | O49: 3.61%
A50: 40 | B50: Automobile | C50: BOSCHLTD | D50: 17631.95 | E50: 17665.33 | F50: 17548.17 | G50: 17464.38 | H50: 17347.22 | I50: 17749.12 | J50: 17866.28 | K50: 17950.07 | L50: 17782.5 | M50: 17581.55 | N50: 152930 | O50: -0.98%
A51: 41 | B51: Oil_Gas | C51: BPCL | D51: 394.20 | E51: 392.13 | F51: 388.97 | G51: 383.73 | H51: 380.57 | I51: 397.37 | J51: 400.53 | K51: 405.77 | L51: 395.3 | M51: 386.9 | N51: 12326400 | O51: -4.57%
A52: 42 | B52: FMCG | C52: BRITANNIA | D52: 5534.15 | E52: 5555.40 | F52: 5469.25 | G52: 5404.35 | H52: 5318.20 | I52: 5620.30 | J52: 5706.45 | K52: 5771.35 | L52: 5641.55 | M52: 5490.5 | N52: 832200 | O52: -1.84%
A53: 43 | B53: Pharma | C53: CADILAHC | D53: 354.20 | E53: 359.15 | F53: 345.55 | G53: 336.90 | H53: 323.30 | I53: 367.80 | J53: 381.40 | K53: 390.05 | L53: 372.75 | M53: 350.5 | N53: 9430400 | O53: -1.29%
A54: 44 | B54: Banking | C54: CANBK | D54: 246.75 | E54: 244.45 | F54: 237.90 | G54: 229.05 | H54: 222.50 | I54: 253.30 | J54: 259.85 | K54: 268.70 | L54: 251 | M54: 235.6 | N54: 12480800 | O54: 1.88%
A55: 45 | B55: Others | C55: CANFINHOME | D55: 352.25 | E55: 355.55 | F55: 344.70 | G55: 337.15 | H55: 326.30 | I55: 363.10 | J55: 373.95 | K55: 381.50 | L55: 366.4 | M55: 348 | N55: 5728750 | O55: -3.56%
A56: 46 | B56: Finance | C56: CAPF | D56: 552.25 | E56: 554.87 | F56: 545.38 | G56: 538.52 | H56: 529.03 | I56: 561.73 | J56: 571.22 | K56: 578.08 | L56: 564.35 | M56: 548 | N56: 8605600 | O56: 0.29%
A57: 47 | B57: Oil_Gas | C57: CASTROLIND | D57: 166.65 | E57: 168.58 | F57: 164.17 | G57: 161.68 | H57: 157.27 | I57: 171.07 | J57: 175.48 | K57: 177.97 | L57: 173 | M57: 166.1 | N57: 12513200 | O57: -0.76%
A58: 48 | B58: Automobile | C58: CEATLTD | D58: 1357.75 | E58: 1362.03 | F58: 1336.92 | G58: 1316.08 | H58: 1290.97 | I58: 1382.87 | J58: 1407.98 | K58: 1428.82 | L58: 1387.15 | M58: 1341.2 | N58: 1800750 | O58: -5.44%
A59: 49 | B59: Textile | C59: CENTURYTEX | D59: 1007.65 | E59: 996.43 | F59: 960.22 | G59: 912.78 | H59: 876.57 | I59: 1043.87 | J59: 1080.08 | K59: 1127.52 | L59: 1032.65 | M59: 949 | N59: 6234250 | O59: 0.19%
A60: 50 | B60: Power | C60: CESC | D60: 1011.95 | E60: 1013.25 | F60: 995.65 | G60: 979.35 | H60: 961.75 | I60: 1029.55 | J60: 1047.15 | K60: 1063.45 | L60: 1030.85 | M60: 996.95 | N60: 6749600 | O60: 0.70%
A61: 51 | B61: Power | C61: CGPOWER | D61: 72.05 | E61: 72.35 | F61: 70.75 | G61: 69.45 | H61: 67.85 | I61: 73.65 | J61: 75.25 | K61: 76.55 | L61: 73.95 | M61: 71.05 | N61: 17988000 | O61: 2.60%
A62: 52 | B62: Others | C62: CHENNPETRO | D62: 282.25 | E62: 285.23 | F62: 277.17 | G62: 272.08 | H62: 264.02 | I62: 290.32 | J62: 298.38 | K62: 303.47 | L62: 293.3 | M62: 280.15 | N62: 3760500 | O62: -0.24%
A63: 53 | B63: Others | C63: CHOLAFIN | D63: 1545.15 | E63: 1538.75 | F63: 1516.35 | G63: 1487.55 | H63: 1465.15 | I63: 1567.55 | J63: 1589.95 | K63: 1618.75 | L63: 1561.15 | M63: 1509.95 | N63: 1103500 | O63: 1.61%
A64: 54 | B64: Pharma | C64: CIPLA | D64: 519.40 | E64: 524.03 | F64: 510.82 | G64: 502.23 | H64: 489.02 | I64: 532.62 | J64: 545.83 | K64: 554.42 | L64: 537.25 | M64: 515.45 | N64: 14680000 | O64: -0.16%
A65: 55 | B65: Others | C65: COALINDIA | D65: 271.30 | E65: 269.68 | F65: 266.97 | G65: 262.63 | H65: 259.92 | I65: 274.02 | J65: 276.73 | K65: 281.07 | L65: 272.4 | M65: 265.35 | N65: 18563600 | O65: -1.34%
A66: 56 | B66: FMCG | C66: COLPAL | D66: 1188.45 | E66: 1198.07 | F66: 1126.13 | G66: 1063.82 | H66: 991.88 | I66: 1260.38 | J66: 1332.32 | K66: 1394.63 | L66: 1270 | M66: 1135.75 | N66: 2323300 | O66: 39.87%
A67: 57 | B67: Others | C67: CONCOR | D67: 1392.85 | E67: 1395.18 | F67: 1382.67 | G67: 1372.48 | H67: 1359.97 | I67: 1405.37 | J67: 1417.88 | K67: 1428.07 | L67: 1407.7 | M67: 1385 | N67: 1668125 | O67: 0.00%
A68: 58 | B68: Capital_Goods | C68: CUMMINSIND | D68: 739.25 | E68: 735.67 | F68: 725.88 | G68: 712.52 | H68: 702.73 | I68: 749.03 | J68: 758.82 | K68: 772.18 | L68: 745.45 | M68: 722.3 | N68: 764400 | O68: -3.56%
A69: 59 | B69: FMCG | C69: DABUR | D69: 373.35 | E69: 373.75 | F69: 369.70 | G69: 366.05 | H69: 362.00 | I69: 377.40 | J69: 381.45 | K69: 385.10 | L69: 377.8 | M69: 370.1 | N69: 14405000 | O69: -1.49%
A70: 60 | B70: Cement | C70: DALMIABHA | D70: 2743.00 | E70: 2721.35 | F70: 2683.90 | G70: 2624.80 | H70: 2587.35 | I70: 2780.45 | J70: 2817.90 | K70: 2877.00 | L70: 2758.8 | M70: 2662.25 | N70: 588000 | O70: -4.25%
A71: 61 | B71: Banking | C71: DCBBANK | D71: 180.50 | E71: 181.12 | F71: 177.38 | G71: 174.27 | H71: 170.53 | I71: 184.23 | J71: 187.97 | K71: 191.08 | L71: 184.85 | M71: 178 | N71: 8968500 | O71: 2.21%
A72: 62 | B72: Finance | C72: DHFL | D72: 613.25 | E72: 611.13 | F72: 595.27 | G72: 577.28 | H72: 561.42 | I72: 629.12 | J72: 644.98 | K72: 662.97 | L72: 627 | M72: 593.15 | N72: 26134500 | O72: -2.21%
A73: 63 | B73: Media | C73: DISHTV | D73: 70.35 | E73: 70.33 | F73: 69.67 | G73: 68.98 | H73: 68.32 | I73: 71.02 | J73: 71.68 | K73: 72.37 | L73: 71 | M73: 69.65 | N73: 49239000 | O73: -0.50%
A74: 64 | B74: Pharma | C74: DIVISLAB | D74: 1140.20 | E74: 1142.58 | F74: 1126.22 | G74: 1112.23 | H74: 1095.87 | I74: 1156.57 | J74: 1172.93 | K74: 1186.92 | L74: 1158.95 | M74: 1128.6 | N74: 2741600 | O74: 7.46%
A75: 65 | B75: Realty | C75: DLF | D75: 193.60 | E75: 194.57 | F75: 189.63 | G75: 185.67 | H75: 180.73 | I75: 198.53 | J75: 203.47 | K75: 207.43 | L75: 199.5 | M75: 190.6 | N75: 43055000 | O75: 4.15%
A76: 66 | B76: Pharma | C76: DRREDDY | D76: 1898.10 | E76: 1923.85 | F76: 1864.25 | G76: 1830.40 | H76: 1770.80 | I76: 1957.70 | J76: 2017.30 | K76: 2051.15 | L76: 1983.45 | M76: 1890 | N76: 5182500 | O76: -0.59%
A77: 67 | B77: Automobile | C77: EICHERMOT | D77: 29569.30 | E77: 29768.40 | F77: 29251.90 | G77: 28934.50 | H77: 28418.00 | I77: 30085.80 | J77: 30602.30 | K77: 30919.70 | L77: 30284.9 | M77: 29451 | N77: 193625 | O77: 0.78%
A78: 68 | B78: Infrastructure | C78: ENGINERSIN | D78: 139.60 | E78: 140.42 | F78: 137.03 | G78: 134.47 | H78: 131.08 | I78: 142.98 | J78: 146.37 | K78: 148.93 | L78: 143.8 | M78: 137.85 | N78: 10374000 | O78: -0.17%
A79: 69 | B79: Finance | C79: EQUITAS | D79: 160.05 | E79: 161.02 | F79: 156.28 | G79: 152.52 | H79: 147.78 | I79: 164.78 | J79: 169.52 | K79: 173.28 | L79: 165.75 | M79: 157.25 | N79: 20268000 | O79: -0.22%
A80: 70 | B80: Automobile | C80: ESCORTS | D80: 885.80 | E80: 889.43 | F80: 869.72 | G80: 853.63 | H80: 833.92 | I80: 905.52 | J80: 925.23 | K80: 941.32 | L80: 909.15 | M80: 873.35 | N80: 5545100 | O80: -2.29%
A81: 71 | B81: Automobile | C81: EXIDEIND | D81: 247.15 | E81: 249.47 | F81: 243.33 | G81: 239.52 | H81: 233.38 | I81: 253.28 | J81: 259.42 | K81: 263.23 | L81: 255.6 | M81: 245.65 | N81: 7620000 | O81: -3.05%
A82: 72 | B82: Banking | C82: FEDERALBNK | D82: 81.20 | E82: 81.62 | F82: 79.98 | G82: 78.77 | H82: 77.13 | I82: 82.83 | J82: 84.47 | K82: 85.68 | L82: 83.25 | M82: 80.4 | N82: 86553500 | O82: -0.34%
A83: 73 | B83: Oil_Gas | C83: GAIL | D83: 326.20 | E83: 324.52 | F83: 321.83 | G83: 317.47 | H83: 314.78 | I83: 328.88 | J83: 331.57 | K83: 335.93 | L83: 327.2 | M83: 320.15 | N83: 14308455 | O83: -3.92%
A84: 74 | B84: Pharma | C84: GLENMARK | D84: 500.60 | E84: 500.70 | F84: 492.90 | G84: 485.20 | H84: 477.40 | I84: 508.40 | J84: 516.20 | K84: 523.90 | L84: 508.5 | M84: 493 | N84: 5743300 | O84: -1.60%
A85: 75 | B85: Infrastructure | C85: GMRINFRA | D85: 17.05 | E85: 17.20 | F85: 16.70 | G85: 16.35 | H85: 15.85 | I85: 17.55 | J85: 18.05 | K85: 18.40 | L85: 17.7 | M85: 16.85 | N85: 288540000 | O85: 0.16%
A86: 76 | B86: Others | C86: GODFRYPHLP | D86: 784.00 | E86: 783.22 | F86: 771.43 | G86: 758.87 | H86: 747.08 | I86: 795.78 | J86: 807.57 | K86: 820.13 | L86: 795 | M86: 770.65 | N86: 632900 | O86: -2.54%
A87: 77 | B87: FMCG | C87: GODREJCP | D87: 1083.70 | E87: 1088.80 | F87: 1076.10 | G87: 1068.50 | H87: 1055.80 | I87: 1096.40 | J87: 1109.10 | K87: 1116.70 | L87: 1101.5 | M87: 1081.2 | N87: 2440000 | O87: -0.81%
A88: 78 | B88: FMCG | C88: GODREJIND | D88: 562.35 | E88: 564.48 | F88: 556.17 | G88: 549.98 | H88: 541.67 | I88: 570.67 | J88: 578.98 | K88: 585.17 | L88: 572.8 | M88: 558.3 | N88: 2293500 | O88: -1.23%
A89: 79 | B89: Pharma | C89: GRANULES | D89: 89.20 | E89: 90.80 | F89: 86.60 | G89: 84.00 | H89: 79.80 | I89: 93.40 | J89: 97.60 | K89: 100.20 | L89: 95 | M89: 88.2 | N89: 15880000 | O89: 1.83%
A90: 80 | B90: Cement | C90: GRASIM | D90: 1039.80 | E90: 1049.33 | F90: 1024.22 | G90: 1008.63 | H90: 983.52 | I90: 1064.92 | J90: 1090.03 | K90: 1105.62 | L90: 1074.45 | M90: 1033.75 | N90: 6057000 | O90: 0.07%
A91: 81 | B91: Others | C91: GSFC | D91: 115.20 | E91: 115.45 | F91: 112.40 | G91: 109.60 | H91: 106.55 | I91: 118.25 | J91: 121.30 | K91: 124.10 | L91: 118.5 | M91: 112.65 | N91: 17973000 | O91: -3.06%
A92: 82 | B92: Others | C92: HAVELLS | D92: 524.85 | E92: 523.77 | F92: 517.03 | G92: 509.22 | H92: 502.48 | I92: 531.58 | J92: 538.32 | K92: 546.13 | L92: 530.5 | M92: 515.95 | N92: 5781000 | O92: 0.59%
A93: 83 | B93: Others | C93: HCC | D93: 15.90 | E93: 15.97 | F93: 15.08 | G93: 14.27 | H93: 13.38 | I93: 16.78 | J93: 17.67 | K93: 18.48 | L93: 16.85 | M93: 15.15 | N93: 44886000 | O93: 2.59%
A94: 84 | B94: Technology | C94: HCLTECH | D94: 900.35 | E94: 897.65 | F94: 892.40 | G94: 884.45 | H94: 879.20 | I94: 905.60 | J94: 910.85 | K94: 918.80 | L94: 902.9 | M94: 889.7 | N94: 12198200 | O94: -2.19%
A95: 85 | B95: Finance | C95: HDFC | D95: 1827.25 | E95: 1839.87 | F95: 1812.08 | G95: 1796.92 | H95: 1769.13 | I95: 1855.03 | J95: 1882.82 | K95: 1897.98 | L95: 1867.65 | M95: 1824.7 | N95: 21371000 | O95: 3.42%
A96: 86 | B96: Banking | C96: HDFCBANK | D96: 1997.55 | E96: 2002.82 | F96: 1985.28 | G96: 1973.02 | H96: 1955.48 | I96: 2015.08 | J96: 2032.62 | K96: 2044.88 | L96: 2020.35 | M96: 1990.55 | N96: 23217000 | O96: -3.18%
A97: 88 | B97: Automobile | C97: HEROMOTOCO | D97: 3494.55 | E97: 3517.17 | F97: 3451.98 | G97: 3409.42 | H97: 3344.23 | I97: 3559.73 | J97: 3624.92 | K97: 3667.48 | L97: 3582.35 | M97: 3474.6 | N97: 1489200 | O97: -1.48%
A98: 89 | B98: Technology | C98: HEXAWARE | D98: 427.05 | E98: 425.55 | F98: 421.65 | G98: 416.25 | H98: 412.35 | I98: 430.95 | J98: 434.85 | K98: 440.25 | L98: 429.45 | M98: 420.15 | N98: 6420000 | O98: -1.11%
A99: 90 | B99: Metals | C99: HINDALCO | D99: 228.80 | E99: 229.42 | F99: 224.08 | G99: 219.37 | H99: 214.03 | I99: 234.13 | J99: 239.47 | K99: 244.18 | L99: 234.75 | M99: 224.7 | N99: 39987500 | O99: -4.64%
A100: 91 | B100: Oil_Gas | C100: HINDPETRO | D100: 314.30 | E100: 313.88 | F100: 310.87 | G100: 307.43 | H100: 304.42 | I100: 317.32 | J100: 320.33 | K100: 323.77 | L100: 316.9 | M100: 310.45 | N100: 31621275 | O100: 2.95%
A101: 92 | B101: FMCG | C101: HINDUNILVR | D101: 1585.50 | E101: 1594.85 | F101: 1571.35 | G101: 1557.20 | H101: 1533.70 | I101: 1609.00 | J101: 1632.50 | K101: 1646.65 | L101: 1618.35 | M101: 1580.7 | N101: 9538200 | O101: -0.98%
A102: 93 | B102: Metals | C102: HINDZINC | D102: 290.90 | E102: 293.45 | F102: 286.90 | G102: 282.90 | H102: 276.35 | I102: 297.45 | J102: 304.00 | K102: 308.00 | L102: 300 | M102: 289.45 | N102: 16048000 | O102: 3.55%
A103: 94 | B103: Finance | C103: IBULHSGFIN | D103: 1112.95 | E103: 1118.95 | F103: 1093.15 | G103: 1073.35 | H103: 1047.55 | I103: 1138.75 | J103: 1164.55 | K103: 1184.35 | L103: 1144.75 | M103: 1099.15 | N103: 16938500 | O103: 4.00%
A104: 95 | B104: Banking | C104: ICICIBANK | D104: 290.65 | E104: 291.00 | F104: 288.30 | G104: 285.95 | H104: 283.25 | I104: 293.35 | J104: 296.05 | K104: 298.40 | L104: 293.7 | M104: 288.65 | N104: 95793500 | O104: -1.93%
A105: 96 | B105: Others | C105: ICICIPRULI | D105: 417.25 | E105: 421.47 | F105: 412.28 | G105: 407.32 | H105: 398.13 | I105: 426.43 | J105: 435.62 | K105: 440.58 | L105: 430.65 | M105: 416.5 | N105: 4559100 | O105: -11.15%
A106: 97 | B106: Banking | C106: IDBI | D106: 62.30 | E106: 61.67 | F106: 60.58 | G106: 58.87 | H106: 57.78 | I106: 63.38 | J106: 64.47 | K106: 66.18 | L106: 62.75 | M106: 59.95 | N106: 66300000 | O106: -1.15%
A107: 98 | B107: Telecom | C107: IDEA | D107: 52.95 | E107: 52.82 | F107: 52.13 | G107: 51.32 | H107: 50.63 | I107: 53.63 | J107: 54.32 | K107: 55.13 | L107: 53.5 | M107: 52 | N107: 169309000 | O107: -1.29%
A108: 99 | B108: Finance | C108: IDFC | D108: 49.90 | E108: 50.48 | F108: 49.17 | G108: 48.43 | H108: 47.12 | I108: 51.22 | J108: 52.53 | K108: 53.27 | L108: 51.8 | M108: 49.75 | N108: 160934400 | O108: -0.88%
A109: 100 | B109: Banking | C109: IDFCBANK | D109: 40.40 | E109: 40.60 | F109: 39.75 | G109: 39.10 | H109: 38.25 | I109: 41.25 | J109: 42.10 | K109: 42.75 | L109: 41.45 | M109: 39.95 | N109: 211302000 | O109: -0.60%
A110: 101 | B110: Finance | C110: IFCI | D110: 17.25 | E110: 17.33 | F110: 16.92 | G110: 16.58 | H110: 16.17 | I110: 17.67 | J110: 18.08 | K110: 18.42 | L110: 17.75 | M110: 17 | N110: 73583000 | O110: -0.83%
A111: 102 | B111: Oil_Gas | C111: IGL | D111: 260.25 | E111: 261.98 | F111: 257.47 | G111: 254.68 | H111: 250.17 | I111: 264.77 | J111: 269.28 | K111: 272.07 | L111: 266.5 | M111: 259.2 | N111: 7554250 | O111: 0.15%
A112: 103 | B112: Cement | C112: INDIACEM | D112: 130.10 | E112: 129.78 | F112: 127.27 | G112: 124.43 | H112: 121.92 | I112: 132.62 | J112: 135.13 | K112: 137.97 | L112: 132.3 | M112: 126.95 | N112: 25252500 | O112: -1.68%
A113: 104 | B113: Banking | C113: INDIANB | D113: 308.45 | E113: 307.30 | F113: 302.15 | G113: 295.85 | H113: 290.70 | I113: 313.60 | J113: 318.75 | K113: 325.05 | L113: 312.45 | M113: 301 | N113: 3434000 | O113: -6.74%
A114: 105 | B114: Others | C114: INDIGO | D114: 1139.00 | E114: 1126.68 | F114: 1099.32 | G114: 1059.63 | H114: 1032.27 | I114: 1166.37 | J114: 1193.73 | K114: 1233.42 | L114: 1154.05 | M114: 1087 | N114: 3960000 | O114: 0.05%
A115: 106 | B115: Banking | C115: INDUSINDBK | D115: 1914.05 | E115: 1918.27 | F115: 1902.58 | G115: 1891.12 | H115: 1875.43 | I115: 1929.73 | J115: 1945.42 | K115: 1956.88 | L115: 1933.95 | M115: 1906.8 | N115: 8291400 | O115: 2.20%
A116: 107 | B116: Technology | C116: INFIBEAM | D116: 164.55 | E116: 164.82 | F116: 163.33 | G116: 162.12 | H116: 160.63 | I116: 166.03 | J116: 167.52 | K116: 168.73 | L116: 166.3 | M116: 163.6 | N116: 32128000 | O116: -0.80%
A117: 108 | B117: Telecom | C117: INFRATEL | D117: 320.40 | E117: 318.40 | F117: 315.00 | G117: 309.60 | H117: 306.20 | I117: 323.80 | J117: 327.20 | K117: 332.60 | L117: 321.8 | M117: 313 | N117: 7325300 | O117: -3.04%
A118: 109 | B118: Technology | C118: INFY | D118: 1183.15 | E118: 1182.03 | F118: 1173.47 | G118: 1163.78 | H118: 1155.22 | I118: 1191.72 | J118: 1200.28 | K118: 1209.97 | L118: 1190.6 | M118: 1172.35 | N118: 40595400 | O118: -1.99%
A119: 110 | B119: Oil_Gas | C119: IOC | D119: 165.85 | E119: 165.12 | F119: 163.98 | G119: 162.12 | H119: 160.98 | I119: 166.98 | J119: 168.12 | K119: 169.98 | L119: 166.25 | M119: 163.25 | N119: 41844000 | O119: -1.18%
A120: 111 | B120: Infrastructure | C120: IRB | D120: 226.60 | E120: 230.42 | F120: 220.33 | G120: 214.07 | H120: 203.98 | I120: 236.68 | J120: 246.77 | K120: 253.03 | L120: 240.5 | M120: 224.15 | N120: 20932500 | O120: 0.24%
A121: 112 | B121: FMCG | C121: ITC | D121: 278.20 | E121: 277.47 | F121: 275.28 | G121: 272.37 | H121: 270.18 | I121: 280.38 | J121: 282.57 | K121: 285.48 | L121: 279.65 | M121: 274.55 | N121: 82665600 | O121: -2.84%
A122: 113 | B122: Others | C122: JETAIRWAYS | D122: 401.10 | E122: 404.07 | F122: 391.58 | G122: 382.07 | H122: 369.58 | I122: 413.58 | J122: 426.07 | K122: 435.58 | L122: 416.55 | M122: 394.55 | N122: 6793200 | O122: -3.28%
A123: 114 | B123: Metals | C123: JINDALSTEL | D123: 240.90 | E123: 242.83 | F123: 236.27 | G123: 231.63 | H123: 225.07 | I123: 247.47 | J123: 254.03 | K123: 258.67 | L123: 249.4 | M123: 238.2 | N123: 31842000 | O123: 0.31%
A124: 115 | B124: Others | C124: JISLJALEQS | D124: 99.30 | E124: 100.28 | F124: 97.67 | G124: 96.03 | H124: 93.42 | I124: 101.92 | J124: 104.53 | K124: 106.17 | L124: 102.9 | M124: 98.65 | N124: 41346000 | O124: 2.02%
A125: 116 | B125: Realty | C125: JPASSOCIAT | D125: 14.25 | E125: 14.90 | F125: 11.90 | G125: 9.55 | H125: 6.55 | I125: 17.25 | J125: 20.25 | K125: 22.60 | L125: 17.9 | M125: 12.55 | N125: 193426000 | O125: -10.10%
A126: 117 | B126: Metals | C126: JSWSTEEL | D126: 310.45 | E126: 314.45 | F126: 305.20 | G126: 299.95 | H126: 290.70 | I126: 319.70 | J126: 328.95 | K126: 334.20 | L126: 323.7 | M126: 309.2 | N126: 66510000 | O126: -1.36%
A127: 118 | B127: Others | C127: JUBLFOOD | D127: 2533.60 | E127: 2530.60 | F127: 2504.25 | G127: 2474.90 | H127: 2448.55 | I127: 2559.95 | J127: 2586.30 | K127: 2615.65 | L127: 2556.95 | M127: 2501.25 | N127: 2790250 | O127: 3.56%
A128: 119 | B128: Others | C128: JUSTDIAL | D128: 407.60 | E128: 415.87 | F128: 393.73 | G128: 379.87 | H128: 357.73 | I128: 429.73 | J128: 451.87 | K128: 465.73 | L128: 438 | M128: 402 | N128: 4141200 | O128: 5.15%
A129: 120 | B129: Others | C129: KAJARIACER | D129: 539.35 | E129: 535.93 | F129: 529.82 | G129: 520.28 | H129: 514.17 | I129: 545.47 | J129: 551.58 | K129: 561.12 | L129: 542.05 | M129: 526.4 | N129: 1774400 | O129: -0.18%
A130: 121 | B130: Banking | C130: KOTAKBANK | D130: 1277.25 | E130: 1283.20 | F130: 1268.05 | G130: 1258.85 | H130: 1243.70 | I130: 1292.40 | J130: 1307.55 | K130: 1316.75 | L130: 1298.35 | M130: 1274 | N130: 16347200 | O130: -3.40%
A131: 122 | B131: Technology | C131: KPIT | D131: 252.90 | E131: 256.15 | F131: 248.85 | G131: 244.80 | H131: 237.50 | I131: 260.20 | J131: 267.50 | K131: 271.55 | L131: 263.45 | M131: 252.1 | N131: 7623000 | O131: -9.31%
A132: 123 | B132: Others | C132: KSCL | D132: 487.25 | E132: 488.60 | F132: 480.70 | G132: 474.15 | H132: 466.25 | I132: 495.15 | J132: 503.05 | K132: 509.60 | L132: 496.5 | M132: 482.05 | N132: 2317500 | O132: -0.19%
A133: 124 | B133: Banking | C133: KTKBANK | D133: 115.85 | E133: 117.60 | F133: 113.30 | G133: 110.75 | H133: 106.45 | I133: 120.15 | J133: 124.45 | K133: 127.00 | L133: 121.9 | M133: 115.05 | N133: 27199800 | O133: 3.10%
A134: 125 | B134: Finance | C134: L&TFH | D134: 167.70 | E134: 169.93 | F134: 164.52 | G134: 161.33 | H134: 155.92 | I134: 173.12 | J134: 178.53 | K134: 181.72 | L134: 175.35 | M134: 166.75 | N134: 34330500 | O134: 2.47%
A135: 126 | B135: Finance | C135: LICHSGFIN | D135: 476.85 | E135: 478.98 | F135: 472.02 | G135: 467.18 | H135: 460.22 | I135: 483.82 | J135: 490.78 | K135: 495.62 | L135: 485.95 | M135: 474.15 | N135: 15437400 | O135: -0.83%
A136: 127 | B136: Capital_Goods | C136: LT | D136: 1319.15 | E136: 1324.50 | F136: 1310.30 | G136: 1301.45 | H136: 1287.25 | I136: 1333.35 | J136: 1347.55 | K136: 1356.40 | L136: 1338.7 | M136: 1315.65 | N136: 12996000 | O136: -2.78%
A137: 128 | B137: Pharma | C137: LUPIN | D137: 737.30 | E137: 739.83 | F137: 732.47 | G137: 727.63 | H137: 720.27 | I137: 744.67 | J137: 752.03 | K137: 756.87 | L137: 747.2 | M137: 735 | N137: 14754100 | O137: 0.82%
A138: 129 | B138: Automobile | C138: M&M | D138: 829.75 | E138: 834.68 | F138: 820.37 | G138: 810.98 | H138: 796.67 | I138: 844.07 | J138: 858.38 | K138: 867.77 | L138: 849 | M138: 825.3 | N138: 14232000 | O138: 2.89%
A139: 130 | B139: Finance | C139: M&MFIN | D139: 460.95 | E139: 461.07 | F139: 453.43 | G139: 445.92 | H139: 438.28 | I139: 468.58 | J139: 476.22 | K139: 483.73 | L139: 468.7 | M139: 453.55 | N139: 10096250 | O139: -1.58%
A140: 131 | B140: Others | C140: MANAPPURAM | D140: 113.65 | E140: 114.23 | F140: 110.67 | G140: 107.68 | H140: 104.12 | I140: 117.22 | J140: 120.78 | K140: 123.77 | L140: 117.8 | M140: 111.25 | N140: 18024000 | O140: -3.00%
A141: 132 | B141: FMCG | C141: MARICO | D141: 310.15 | E141: 312.67 | F141: 305.63 | G141: 301.12 | H141: 294.08 | I141: 317.18 | J141: 324.22 | K141: 328.73 | L141: 319.7 | M141: 308.15 | N141: 5592600 | O141: 2.23%
A142: 133 | B142: Automobile | C142: MARUTI | D142: 8458.05 | E142: 8428.83 | F142: 8317.97 | G142: 8177.88 | H142: 8067.02 | I142: 8568.92 | J142: 8679.78 | K142: 8819.87 | L142: 8539.7 | M142: 8288.75 | N142: 2950425 | O142: -2.20%
A143: 134 | B143: FMCG | C143: MCDOWELL-N | D143: 3134.00 | E143: 3127.00 | F143: 3062.00 | G143: 2990.00 | H143: 2925.00 | I143: 3199.00 | J143: 3264.00 | K143: 3336.00 | L143: 3192 | M143: 3055 | N143: 2740250 | O143: 0.20%
A144: 135 | B144: Others | C144: MCX | D144: 740.65 | E144: 745.65 | F144: 730.80 | G144: 720.95 | H144: 706.10 | I144: 755.50 | J144: 770.35 | K144: 780.20 | L144: 760.5 | M144: 735.8 | N144: 3625200 | O144: -0.33%
A145: 136 | B145: Finance | C145: MFSL | D145: 464.35 | E145: 471.03 | F145: 451.77 | G145: 439.18 | H145: 419.92 | I145: 483.62 | J145: 502.88 | K145: 515.47 | L145: 490.3 | M145: 458.45 | N145: 2864000 | O145: 3.51%
A146: 137 | B146: Others | C146: MGL | D146: 843.55 | E146: 844.80 | F146: 829.95 | G146: 816.35 | H146: 801.50 | I146: 858.40 | J146: 873.25 | K146: 886.85 | L146: 859.65 | M146: 831.2 | N146: 2865000 | O146: -1.57%
A147: 138 | B147: Technology | C147: MINDTREE | D147: 1031.80 | E147: 1028.07 | F147: 1017.73 | G147: 1003.67 | H147: 993.33 | I147: 1042.13 | J147: 1052.47 | K147: 1066.53 | L147: 1038.4 | M147: 1014 | N147: 4280400 | O147: -2.11%
A148: 139 | B148: Automobile | C148: MOTHERSUMI | D148: 324.90 | E148: 325.07 | F148: 321.48 | G148: 318.07 | H148: 314.48 | I148: 328.48 | J148: 332.07 | K148: 335.48 | L148: 328.65 | M148: 321.65 | N148: 13748800 | O148: -1.24%
A149: 140 | B149: Automobile | C149: MRF | D149: 73095.15 | E149: 73511.07 | F149: 72435.18 | G149: 71775.22 | H149: 70699.33 | I149: 74171.03 | J149: 75246.92 | K149: 75906.88 | L149: 74586.95 | M149: 72851.1 | N149: 33735 | O149: -1.14%
A150: 141 | B150: Others | C150: MRPL | D150: 100.20 | E150: 101.17 | F150: 98.58 | G150: 96.97 | H150: 94.38 | I150: 102.78 | J150: 105.37 | K150: 106.98 | L150: 103.75 | M150: 99.55 | N150: 5233500 | O150: -2.27%
A151: 142 | B151: Finance | C151: MUTHOOTFIN | D151: 400.65 | E151: 404.12 | F151: 394.53 | G151: 388.42 | H151: 378.83 | I151: 410.23 | J151: 419.82 | K151: 425.93 | L151: 413.7 | M151: 398 | N151: 2104500 | O151: 0.36%
A152: 143 | B152: Others | C152: NATIONALUM | D152: 73.35 | E152: 72.65 | F152: 71.50 | G152: 69.65 | H152: 68.50 | I152: 74.50 | J152: 75.65 | K152: 77.50 | L152: 73.8 | M152: 70.8 | N152: 52352000 | O152: -2.04%
A153: 144 | B153: Others | C153: NBCC | D153: 93.20 | E153: 93.68 | F153: 91.92 | G153: 90.63 | H153: 88.87 | I153: 94.97 | J153: 96.73 | K153: 98.02 | L153: 95.45 | M153: 92.4 | N153: 18834000 | O153: 0.64%
A154: 145 | B154: Infrastructure | C154: NCC | D154: 98.10 | E154: 100.32 | F154: 94.88 | G154: 91.67 | H154: 86.23 | I154: 103.53 | J154: 108.97 | K154: 112.18 | L154: 105.75 | M154: 97.1 | N154: 41856000 | O154: -0.15%
A155: 146 | B155: Others | C155: NESTLEIND | D155: 9523.55 | E155: 9594.52 | F155: 9423.03 | G155: 9322.52 | H155: 9151.03 | I155: 9695.03 | J155: 9866.52 | K155: 9967.03 | L155: 9766 | M155: 9494 | N155: 299900 | O155: -0.96%
A156: 147 | B156: Power | C156: NHPC | D156: 26.10 | E156: 26.18 | F156: 25.82 | G156: 25.53 | H156: 25.17 | I156: 26.47 | J156: 26.83 | K156: 27.12 | L156: 26.55 | M156: 25.9 | N156: 31509000 | O156: -4.89%
A157: 148 | B157: Technology | C157: NIITTECH | D157: 1051.65 | E157: 1053.28 | F157: 1038.57 | G157: 1025.48 | H157: 1010.77 | I157: 1066.37 | J157: 1081.08 | K157: 1094.17 | L157: 1068 | M157: 1040.2 | N157: 2320500 | O157: -7.89%
A158: 149 | B158: Metals | C158: NMDC | D158: 113.45 | E158: 113.93 | F158: 111.82 | G158: 110.18 | H158: 108.07 | I158: 115.57 | J158: 117.68 | K158: 119.32 | L158: 116.05 | M158: 112.3 | N158: 27666000 | O158: -2.89%
A159: 150 | B159: Power | C159: NTPC | D159: 165.20 | E159: 165.47 | F159: 163.18 | G159: 161.17 | H159: 158.88 | I159: 167.48 | J159: 169.77 | K159: 171.78 | L159: 167.75 | M159: 163.45 | N159: 42324000 | O159: -0.14%
A160: 151 | B160: Technology | C160: OFSS | D160: 3765.65 | E160: 3797.85 | F160: 3696.25 | G160: 3626.85 | H160: 3525.25 | I160: 3867.25 | J160: 3968.85 | K160: 4038.25 | L160: 3899.45 | M160: 3728.45 | N160: 150300 | O160: 10.23%
A161: 152 | B161: Oil_Gas | C161: OIL | D161: 239.25 | E161: 240.95 | F161: 236.20 | G161: 233.15 | H161: 228.40 | I161: 244.00 | J161: 248.75 | K161: 251.80 | L161: 245.7 | M161: 237.9 | N161: 2729397 | O161: -5.19%
A162: 153 | B162: Oil_Gas | C162: ONGC | D162: 186.60 | E162: 187.17 | F162: 185.43 | G162: 184.27 | H162: 182.53 | I162: 188.33 | J162: 190.07 | K162: 191.23 | L162: 188.9 | M162: 186 | N162: 35572500 | O162: -1.84%
A163: 154 | B163: Banking | C163: ORIENTBANK | D163: 76.90 | E163: 76.38 | F163: 74.57 | G163: 72.23 | H163: 70.42 | I163: 78.72 | J163: 80.53 | K163: 82.87 | L163: 78.2 | M163: 74.05 | N163: 17106000 | O163: -3.03%
A164: 155 | B164: Textile | C164: PAGEIND | D164: 23072.50 | E164: 23157.40 | F164: 22889.85 | G164: 22707.20 | H164: 22439.65 | I164: 23340.05 | J164: 23607.60 | K164: 23790.25 | L164: 23424.95 | M164: 22974.75 | N164: 49300 | O164: 4.45%
A165: 156 | B165: Others | C165: PCJEWELLER | D165: 167.00 | E165: 165.95 | F165: 160.10 | G165: 153.20 | H165: 147.35 | I165: 172.85 | J165: 178.70 | K165: 185.60 | L165: 171.8 | M165: 159.05 | N165: 8743500 | O165: -1.57%
A166: 157 | B166: Pharma | C166: PEL | D166: 2359.10 | E166: 2359.25 | F166: 2330.50 | G166: 2301.90 | H166: 2273.15 | I166: 2387.85 | J166: 2416.60 | K166: 2445.20 | L166: 2388 | M166: 2330.65 | N166: 2087726 | O166: -1.23%
A167: 158 | B167: Oil_Gas | C167: PETRONET | D167: 210.90 | E167: 211.15 | F167: 201.85 | G167: 192.80 | H167: 183.50 | I167: 220.20 | J167: 229.50 | K167: 238.55 | L167: 220.45 | M167: 202.1 | N167: 26175000 | O167: -0.14%
A168: 159 | B168: Finance | C168: PFC | D168: 73.25 | E168: 73.67 | F168: 72.23 | G168: 71.22 | H168: 69.78 | I168: 74.68 | J168: 76.12 | K168: 77.13 | L168: 75.1 | M168: 72.65 | N168: 82242000 | O168: -1.03%
A169: 160 | B169: FMCG | C169: PIDILITIND | D169: 1095.45 | E169: 1095.82 | F169: 1082.38 | G169: 1069.32 | H169: 1055.88 | I169: 1108.88 | J169: 1122.32 | K169: 1135.38 | L169: 1109.25 | M169: 1082.75 | N169: 1654000 | O169: -2.93%
A170: 161 | B170: Banking | C170: PNB | D170: 78.45 | E170: 77.60 | F170: 76.20 | G170: 73.95 | H170: 72.55 | I170: 79.85 | J170: 81.25 | K170: 83.50 | L170: 79 | M170: 75.35 | N170: 79989000 | O170: -3.83%
A171: 162 | B171: Power | C171: POWERGRID | D171: 211.90 | E171: 212.25 | F171: 211.05 | G171: 210.20 | H171: 209.00 | I171: 213.10 | J171: 214.30 | K171: 215.15 | L171: 213.45 | M171: 211.4 | N171: 27492000 | O171: -1.88%
A172: 163 | B172: Power | C172: PTC | D172: 78.80 | E172: 79.12 | F172: 77.28 | G172: 75.77 | H172: 73.93 | I172: 80.63 | J172: 82.47 | K172: 83.98 | L172: 80.95 | M172: 77.6 | N172: 30248000 | O172: -1.97%
A173: 164 | B173: Others | C173: PVR | D173: 1340.75 | E173: 1355.20 | F173: 1317.55 | G173: 1294.35 | H173: 1256.70 | I173: 1378.40 | J173: 1416.05 | K173: 1439.25 | L173: 1392.85 | M173: 1332 | N173: 1068000 | O173: 2.42%
A174: 165 | B174: Cement | C174: RAMCOCEM | D174: 810.70 | E174: 815.20 | F174: 785.35 | G174: 760.00 | H174: 730.15 | I174: 840.55 | J174: 870.40 | K174: 895.75 | L174: 845.05 | M174: 789.85 | N174: 1314400 | O174: -0.67%
A175: 166 | B175: Others | C175: RAYMOND | D175: 1010.25 | E175: 1021.05 | F175: 987.55 | G175: 964.85 | H175: 931.35 | I175: 1043.75 | J175: 1077.25 | K175: 1099.95 | L175: 1054.55 | M175: 998.35 | N175: 5276800 | O175: 0.70%
A176: 167 | B176: Banking | C176: RBLBANK | D176: 500.55 | E176: 502.08 | F176: 494.17 | G176: 487.78 | H176: 479.87 | I176: 508.47 | J176: 516.38 | K176: 522.77 | L176: 510 | M176: 495.7 | N176: 4215400 | O176: 1.30%
A177: 168 | B177: Telecom | C177: RCOM | D177: 13.50 | E177: 14.28 | F177: 12.27 | G177: 11.03 | H177: 9.02 | I177: 15.52 | J177: 17.53 | K177: 18.77 | L177: 16.3 | M177: 13.05 | N177: 94976000 | O177: -5.20%
A178: 169 | B178: Capital_Goods | C178: RNAVAL | D178: 14.45 | E178: 14.82 | F178: 13.58 | G178: 12.72 | H178: 11.48 | I178: 15.68 | J178: 16.92 | K178: 17.78 | L178: 16.05 | M178: 13.95 | N178: 35793000 | O178: -8.00%
A179: 170 | B179: Power | C179: RECLTD | D179: 110.00 | E179: 110.72 | F179: 108.73 | G179: 107.47 | H179: 105.48 | I179: 111.98 | J179: 113.97 | K179: 115.23 | L179: 112.7 | M179: 109.45 | N179: 40212000 | O179: 0.79%
A180: 171 | B180: Finance | C180: RELCAPITAL | D180: 375.25 | E180: 378.67 | F180: 368.78 | G180: 362.32 | H180: 352.43 | I180: 385.13 | J180: 395.02 | K180: 401.48 | L180: 388.55 | M180: 372.2 | N180: 12492750 | O180: -0.09%
A181: 172 | B181: Oil_Gas | C181: RELIANCE | D181: 935.75 | E181: 933.48 | F181: 928.07 | G181: 920.38 | H181: 914.97 | I181: 941.17 | J181: 946.58 | K181: 954.27 | L181: 938.9 | M181: 925.8 | N181: 50532000 | O181: 0.93%
A182: 173 | B182: Power | C182: RELINFRA | D182: 394.45 | E182: 394.88 | F182: 387.52 | G182: 380.58 | H182: 373.22 | I182: 401.82 | J182: 409.18 | K182: 416.12 | L182: 402.25 | M182: 387.95 | N182: 9560200 | O182: -2.53%
A183: 174 | B183: Others | C183: REPCOHOME | D183: 576.35 | E183: 574.78 | F183: 567.57 | G183: 558.78 | H183: 551.57 | I183: 583.57 | J183: 590.78 | K183: 599.57 | L183: 582 | M183: 566 | N183: 693000 | O183: -1.96%
A184: 175 | B184: Power | C184: RPOWER | D184: 33.30 | E184: 33.58 | F184: 32.47 | G184: 31.63 | H184: 30.52 | I184: 34.42 | J184: 35.53 | K184: 36.37 | L184: 34.7 | M184: 32.75 | N184: 58162000 | O184: 0.11%
A185: 176 | B185: Metals | C185: SAIL | D185: 71.95 | E185: 72.72 | F185: 70.83 | G185: 69.72 | H185: 67.83 | I185: 73.83 | J185: 75.72 | K185: 76.83 | L185: 74.6 | M185: 71.6 | N185: 99480000 | O185: 2.48%
A186: 177 | B186: Banking | C186: SBIN | D186: 244.60 | E186: 243.22 | F186: 240.73 | G186: 236.87 | H186: 234.38 | I186: 247.08 | J186: 249.57 | K186: 253.43 | L186: 245.7 | M186: 239.35 | N186: 78843000 | O186: -4.00%
A187: 178 | B187: Cement | C187: SHREECEM | D187: 16115.90 | E187: 16164.07 | F187: 15977.13 | G187: 15838.37 | H187: 15651.43 | I187: 16302.83 | J187: 16489.77 | K187: 16628.53 | L187: 16351 | M187: 16025.3 | N187: 66250 | O187: -0.67%
A188: 179 | B188: Capital_Goods | C188: SIEMENS | D188: 1032.55 | E188: 1036.13 | F188: 1022.77 | G188: 1012.98 | H188: 999.62 | I188: 1045.92 | J188: 1059.28 | K188: 1069.07 | L188: 1049.5 | M188: 1026.35 | N188: 1433000 | O188: 2.54%
A189: 180 | B189: Banking | C189: SOUTHBANK | D189: 24.70 | E189: 24.97 | F189: 24.28 | G189: 23.87 | H189: 23.18 | I189: 25.38 | J189: 26.07 | K189: 26.48 | L189: 25.65 | M189: 24.55 | N189: 159739620 | O189: 1.62%
A190: 181 | B190: Others | C190: SREINFRA | D190: 71.85 | E190: 72.85 | F190: 70.30 | G190: 68.75 | H190: 66.20 | I190: 74.40 | J190: 76.95 | K190: 78.50 | L190: 75.4 | M190: 71.3 | N190: 18274000 | O190: 2.91%
A191: 182 | B191: Textile | C191: SRF | D191: 1883.30 | E191: 1884.77 | F191: 1826.03 | G191: 1768.77 | H191: 1710.03 | I191: 1942.03 | J191: 2000.77 | K191: 2058.03 | L191: 1943.5 | M191: 1827.5 | N191: 719500 | O191: -0.42%
A192: 183 | B192: Finance | C192: SRTRANSFIN | D192: 1411.25 | E192: 1408.03 | F192: 1394.07 | G192: 1376.88 | H192: 1362.92 | I192: 1425.22 | J192: 1439.18 | K192: 1456.37 | L192: 1422 | M192: 1390.85 | N192: 4116600 | O192: -1.62%
A193: 184 | B193: Pharma | C193: STAR | D193: 342.75 | E193: 355.75 | F193: 323.60 | G193: 304.45 | H193: 272.30 | I193: 374.90 | J193: 407.05 | K193: 426.20 | L193: 387.9 | M193: 336.6 | N193: 3952600 | O193: 10.52%
A194: 185 | B194: Pharma | C194: SUNPHARMA | D194: 445.70 | E194: 452.02 | F194: 437.63 | G194: 429.57 | H194: 415.18 | I194: 460.08 | J194: 474.47 | K194: 482.53 | L194: 466.4 | M194: 443.95 | N194: 59436300 | O194: -0.47%
A195: 186 | B195: Media | C195: SUNTV | D195: 943.35 | E195: 945.07 | F195: 931.88 | G195: 920.42 | H195: 907.23 | I195: 956.53 | J195: 969.72 | K195: 981.18 | L195: 958.25 | M195: 933.6 | N195: 6068000 | O195: -4.76%
A196: 187 | B196: Power | C196: SUZLON | D196: 8.75 | E196: 8.77 | F196: 8.58 | G196: 8.42 | H196: 8.23 | I196: 8.93 | J196: 9.12 | K196: 9.28 | L196: 8.95 | M196: 8.6 | N196: 316730000 | O196: 1.25%
A197: 188 | B197: Banking | C197: SYNDIBANK | D197: 44.75 | E197: 44.28 | F197: 43.32 | G197: 41.88 | H197: 40.92 | I197: 45.72 | J197: 46.68 | K197: 48.12 | L197: 45.25 | M197: 42.85 | N197: 33633000 | O197: 2.10%
A198: 189 | B198: Fertilisers | C198: TATACHEM | D198: 736.50 | E198: 736.00 | F198: 712.00 | G198: 687.50 | H198: 663.50 | I198: 760.50 | J198: 784.50 | K198: 809.00 | L198: 760 | M198: 711.5 | N198: 4920000 | O198: 1.30%
A199: 190 | B199: Telecom | C199: TATACOMM | D199: 609.45 | E199: 610.77 | F199: 604.58 | G199: 599.72 | H199: 593.53 | I199: 615.63 | J199: 621.82 | K199: 626.68 | L199: 616.95 | M199: 605.9 | N199: 6227200 | O199: -2.26%
A200: 191 | B200: Technology | C200: TATAELXSI | D200: 1164.60 | E200: 1159.72 | F200: 1146.43 | G200: 1128.27 | H200: 1114.98 | I200: 1177.88 | J200: 1191.17 | K200: 1209.33 | L200: 1173 | M200: 1141.55 | N200: 2175200 | O200: 0.78%
A201: 192 | B201: FMCG | C201: TATAGLOBAL | D201: 243.75 | E201: 244.15 | F201: 239.90 | G201: 236.05 | H201: 231.80 | I201: 248.00 | J201: 252.25 | K201: 256.10 | L201: 248.4 | M201: 240.3 | N201: 25427250 | O201: -0.75%
A202: 193 | B202: Automobile | C202: TATAMOTORS | D202: 297.35 | E202: 300.35 | F202: 292.70 | G202: 288.05 | H202: 280.40 | I202: 305.00 | J202: 312.65 | K202: 317.30 | L202: 308 | M202: 295.7 | N202: 86886000 | O202: -0.05%
A203: 194 | B203: Automobile | C203: TATAMTRDVR | D203: 175.05 | E203: 176.58 | F203: 172.02 | G203: 168.98 | H203: 164.42 | I203: 179.62 | J203: 184.18 | K203: 187.22 | L203: 181.15 | M203: 173.55 | N203: 24399900 | O203: 0.60%
A204: 195 | B204: Power | C204: TATAPOWER | D204: 78.90 | E204: 79.35 | F204: 77.90 | G204: 76.90 | H204: 75.45 | I204: 80.35 | J204: 81.80 | K204: 82.80 | L204: 80.8 | M204: 78.35 | N204: 48321000 | O204: 0.13%
A205: 196 | B205: Metals | C205: TATASTEEL | D205: 578.70 | E205: 585.60 | F205: 568.85 | G205: 559.00 | H205: 542.25 | I205: 595.45 | J205: 612.20 | K205: 622.05 | L205: 602.35 | M205: 575.75 | N205: 22895319 | O205: -0.21%
A206: 197 | B206: Technology | C206: TCS | D206: 3543.50 | E206: 3536.07 | F206: 3497.13 | G206: 3450.77 | H206: 3411.83 | I206: 3582.43 | J206: 3621.37 | K206: 3667.73 | L206: 3575 | M206: 3489.7 | N206: 6251000 | O206: -0.89%
... 35 more rows

Sheet Cash Intra
M5: Back to Main Page
A6: FOR INTRA DAY TRADING | K6: =Main!B10 -> 2018-05-22
A8: Sr.no | B8: Scrip | C8: CLOSE RATE | D8: Pivot Point | E8: Supports | H8: Resistances
C9: Point | E9: S1 | F9: S2 | G9: S3 | H9: R1 | I9: R2 | J9: R3 | K9: HIGH | L9: LOW | M9: Total Trade Quanity in Lakhs
A10: 1 | B10: Nifty 50 | C10: 10516.7 | D10: 10548.07 | E10: 10474.43 | F10: 10432.17 | G10: 10358.53 | H10: 10590.33 | I10: 10663.97 | J10: 10706.23 | K10: 10621.7 | L10: 10505.8
A11: 2 | B11: Nifty Bank | C11: 25750.8 | D11: 25834.30 | E11: 25601.85 | F11: 25452.90 | G11: 25220.45 | H11: 25983.25 | I11: 26215.70 | J11: 26364.65 | K11: 26066.75 | L11: 25685.35
A12: 3 | B12: Nifty CPSE | C12: 2362.65 | D12: 2364.65 | E12: 2353.70 | F12: 2344.75 | G12: 2333.80 | H12: 2373.60 | I12: 2384.55 | J12: 2393.50 | K12: 2375.6 | L12: 2355.7
A13: 4 | B13: Nifty Infra | C13: 3248.65 | D13: 3261.83 | E13: 3230.97 | F13: 3213.28 | G13: 3182.42 | H13: 3279.52 | I13: 3310.38 | J13: 3328.07 | K13: 3292.7 | L13: 3244.15
A14: 5 | B14: Nifty IT | C14: 13483.85 | D14: 13496.70 | E14: 13421.25 | F14: 13358.65 | G14: 13283.20 | H14: 13559.30 | I14: 13634.75 | J14: 13697.35 | K14: 13572.15 | L14: 13434.1
A15: 6 | B15: Nifty PSE | C15: 3769.5 | D15: 3773.67 | E15: 3757.03 | F15: 3744.57 | G15: 3727.93 | H15: 3786.13 | I15: 3802.77 | J15: 3815.23 | K15: 3790.3 | L15: 3761.2
A16: 7 | B16: Nifty Midcap 50 | C16: 4936.25 | D16: 4955.77 | E16: 4895.48 | F16: 4854.72 | G16: 4794.43 | H16: 4996.53 | I16: 5056.82 | J16: 5097.58 | K16: 5016.05 | L16: 4915
A17: 8 | B17: ABB | C17: 1200.2 | D17: 1210.68 | E17: 1187.52 | F17: 1174.83 | G17: 1151.67 | H17: 1223.37 | I17: 1246.53 | J17: 1259.22 | K17: 1233.85 | L17: 1198 | M17: 0.20256
A18: 9 | B18: ACC | C18: 1344.1 | D18: 1348.87 | E18: 1317.83 | F18: 1291.57 | G18: 1260.53 | H18: 1375.13 | I18: 1406.17 | J18: 1432.43 | K18: 1379.9 | L18: 1322.6 | M18: 3.80473
A19: 10 | B19: AIAENG | C19: 1534.7 | D19: 1548.23 | E19: 1511.47 | F19: 1488.23 | G19: 1451.47 | H19: 1571.47 | I19: 1608.23 | J19: 1631.47 | K19: 1585 | L19: 1525 | M19: 0.28511
A20: 11 | B20: AUBANK | C20: 704.6 | D20: 707.55 | E20: 694.40 | F20: 684.20 | G20: 671.05 | H20: 717.75 | I20: 730.90 | J20: 741.10 | K20: 720.7 | L20: 697.35 | M20: 2.77081
A21: 12 | B21: ADANIENT | C21: 118.2 | D21: 118.37 | E21: 115.83 | F21: 113.47 | G21: 110.93 | H21: 120.73 | I21: 123.27 | J21: 125.63 | K21: 120.9 | L21: 116 | M21: 31.96634
A22: 13 | B22: ADANIPORTS | C22: 383.7 | D22: 385.92 | E22: 379.28 | F22: 374.87 | G22: 368.23 | H22: 390.33 | I22: 396.97 | J22: 401.38 | K22: 392.55 | L22: 381.5 | M22: 15.44488
A23: 14 | B23: ADANIPOWER | C23: 20.7 | D23: 20.85 | E23: 20.15 | F23: 19.60 | G23: 18.90 | H23: 21.40 | I23: 22.10 | J23: 22.65 | K23: 21.55 | L23: 20.3 | M23: 71.86536
A24: 15 | B24: ABFRL | C24: 140.4 | D24: 141.40 | E24: 138.05 | F24: 135.70 | G24: 132.35 | H24: 143.75 | I24: 147.10 | J24: 149.45 | K24: 144.75 | L24: 139.05 | M24: 2.28887
A25: 16 | B25: AJANTPHARM | C25: 986.5 | D25: 993.37 | E25: 971.58 | F25: 956.67 | G25: 934.88 | H25: 1008.28 | I25: 1030.07 | J25: 1044.98 | K25: 1015.15 | L25: 978.45 | M25: 3.16232
A26: 17 | B26: ALKEM | C26: 1940.95 | D26: 1948.50 | E26: 1919.00 | F26: 1897.05 | G26: 1867.55 | H26: 1970.45 | I26: 1999.95 | J26: 2021.90 | K26: 1978 | L26: 1926.55 | M26: 0.0763
A27: 18 | B27: AMARAJABAT | C27: 808.4 | D27: 794.95 | E27: 769.90 | F27: 731.40 | G27: 706.35 | H27: 833.45 | I27: 858.50 | J27: 897.00 | K27: 820 | L27: 756.45 | M27: 26.26589
A28: 19 | B28: AMBUJACEM | C28: 208.05 | D28: 208.37 | E28: 203.93 | F28: 199.82 | G28: 195.38 | H28: 212.48 | I28: 216.92 | J28: 221.03 | K28: 212.8 | L28: 204.25 | M28: 17.1513
A29: 20 | B29: APOLLOHOSP | C29: 983.5 | D29: 993.18 | E29: 967.32 | F29: 951.13 | G29: 925.27 | H29: 1009.37 | I29: 1035.23 | J29: 1051.42 | K29: 1019.05 | L29: 977 | M29: 2.54209
A30: 21 | B30: APOLLOTYRE | C30: 276 | D30: 278.53 | E30: 270.62 | F30: 265.23 | G30: 257.32 | H30: 283.92 | I30: 291.83 | J30: 297.22 | K30: 286.45 | L30: 273.15 | M30: 26.47317
A31: 22 | B31: ARVIND | C31: 390.35 | D31: 394.07 | E31: 384.38 | F31: 378.42 | G31: 368.73 | H31: 400.03 | I31: 409.72 | J31: 415.68 | K31: 403.75 | L31: 388.1 | M31: 16.19545
A32: 23 | B32: ASHOKLEY | C32: 134.3 | D32: 138.53 | E32: 129.12 | F32: 123.93 | G32: 114.52 | H32: 143.72 | I32: 153.13 | J32: 158.32 | K32: 147.95 | L32: 133.35 | M32: 530.28114
A33: 24 | B33: ASIANPAINT | C33: 1301.7 | D33: 1302.42 | E33: 1290.13 | F33: 1278.57 | G33: 1266.28 | H33: 1313.98 | I33: 1326.27 | J33: 1337.83 | K33: 1314.7 | L33: 1290.85 | M33: 6.92442
A34: 25 | B34: AUROPHARMA | C34: 565.5 | D34: 569.78 | E34: 558.17 | F34: 550.83 | G34: 539.22 | H34: 577.12 | I34: 588.73 | J34: 596.07 | K34: 581.4 | L34: 562.45 | M34: 10.32294
A35: 26 | B35: DMART | C35: 1345.45 | D35: 1364.18 | E35: 1314.37 | F35: 1283.28 | G35: 1233.47 | H35: 1395.27 | I35: 1445.08 | J35: 1476.17 | K35: 1414 | L35: 1333.1 | M35: 18.91905
A36: 27 | B36: AXISBANK | C36: 526.85 | D36: 528.83 | E36: 519.87 | F36: 512.88 | G36: 503.92 | H36: 535.82 | I36: 544.78 | J36: 551.77 | K36: 537.8 | L36: 521.85 | M36: 42.588
A37: 28 | B37: BAJAJ-AUTO | C37: 2720.55 | D37: 2733.00 | E37: 2691.05 | F37: 2661.55 | G37: 2619.60 | H37: 2762.50 | I37: 2804.45 | J37: 2833.95 | K37: 2774.95 | L37: 2703.5 | M37: 3.9347
A38: 29 | B38: BAJFINANCE | C38: 2105.45 | D38: 2111.67 | E38: 2074.33 | F38: 2043.22 | G38: 2005.88 | H38: 2142.78 | I38: 2180.12 | J38: 2211.23 | K38: 2149 | L38: 2080.55 | M38: 23.76823
A39: 30 | B39: BAJAJFINSV | C39: 5722.05 | D39: 5705.95 | E39: 5636.90 | F39: 5551.75 | G39: 5482.70 | H39: 5791.10 | I39: 5860.15 | J39: 5945.30 | K39: 5775 | L39: 5620.8 | M39: 1.63075
A40: 31 | B40: BALKRISIND | C40: 1117.6 | D40: 1114.52 | E40: 1043.08 | F40: 968.57 | G40: 897.13 | H40: 1189.03 | I40: 1260.47 | J40: 1334.98 | K40: 1185.95 | L40: 1040 | M40: 12.42422
A41: 32 | B41: BANKBARODA | C41: 129.9 | D41: 129.28 | E41: 126.77 | F41: 123.63 | G41: 121.12 | H41: 132.42 | I41: 134.93 | J41: 138.07 | K41: 131.8 | L41: 126.15 | M41: 115.17584
A42: 33 | B42: BANKINDIA | C42: 97.95 | D42: 97.55 | E42: 95.10 | F42: 92.25 | G42: 89.80 | H42: 100.40 | I42: 102.85 | J42: 105.70 | K42: 100 | L42: 94.7 | M42: 167.90634
A43: 34 | B43: BATAINDIA | C43: 744.05 | D43: 748.55 | E43: 736.10 | F43: 728.15 | G43: 715.70 | H43: 756.50 | I43: 768.95 | J43: 776.90 | K43: 761 | L43: 740.6 | M43: 4.60288
A44: 35 | B44: BERGEPAINT | C44: 284.95 | D44: 282.97 | E44: 279.33 | F44: 273.72 | G44: 270.08 | H44: 288.58 | I44: 292.22 | J44: 297.83 | K44: 286.6 | L44: 277.35 | M44: 11.23602
A45: 36 | B45: BEL | C45: 117.3 | D45: 118.52 | E45: 115.53 | F45: 113.77 | G45: 110.78 | H45: 120.28 | I45: 123.27 | J45: 125.03 | K45: 121.5 | L45: 116.75 | M45: 30.58999
A46: 37 | B46: BHARATFIN | C46: 1162.6 | D46: 1167.80 | E46: 1153.80 | F46: 1145.00 | G46: 1131.00 | H46: 1176.60 | I46: 1190.60 | J46: 1199.40 | K46: 1181.8 | L46: 1159 | M46: 3.63058
A47: 38 | B47: BHARATFORG | C47: 694.25 | D47: 702.80 | E47: 682.00 | F47: 669.75 | G47: 648.95 | H47: 715.05 | I47: 735.85 | J47: 748.10 | K47: 723.6 | L47: 690.55 | M47: 9.64352
A48: 39 | B48: BHEL | C48: 75.05 | D48: 75.50 | E48: 74.20 | F48: 73.35 | G48: 72.05 | H48: 76.35 | I48: 77.65 | J48: 78.50 | K48: 76.8 | L48: 74.65 | M48: 36.93657
A49: 40 | B49: BPCL | C49: 393.85 | D49: 391.35 | E49: 388.00 | F49: 382.15 | G49: 378.80 | H49: 397.20 | I49: 400.55 | J49: 406.40 | K49: 394.7 | L49: 385.5 | M49: 43.31525
A50: 41 | B50: BHARTIARTL | C50: 360 | D50: 361.48 | E50: 353.72 | F50: 347.43 | G50: 339.67 | H50: 367.77 | I50: 375.53 | J50: 381.82 | K50: 369.25 | L50: 355.2 | M50: 49.41028
A51: 42 | B51: INFRATEL | C51: 321.7 | D51: 320.27 | E51: 317.03 | F51: 312.37 | G51: 309.13 | H51: 324.93 | I51: 328.17 | J51: 332.83 | K51: 323.5 | L51: 315.6 | M51: 15.23518
A52: 43 | B52: BIOCON | C52: 626.85 | D52: 631.63 | E52: 611.42 | F52: 595.98 | G52: 575.77 | H52: 647.07 | I52: 667.28 | J52: 682.72 | K52: 651.85 | L52: 616.2 | M52: 17.10169
A53: 44 | B53: BOSCHLTD | C53: 17621.45 | D53: 17657.10 | E53: 17514.35 | F53: 17407.25 | G53: 17264.50 | H53: 17764.20 | I53: 17906.95 | J53: 18014.05 | K53: 17799.85 | L53: 17550 | M53: 0.07335
A54: 45 | B54: BRITANNIA | C54: 5521.6 | D54: 5557.17 | E54: 5443.33 | F54: 5365.07 | G54: 5251.23 | H54: 5635.43 | I54: 5749.27 | J54: 5827.53 | K54: 5671 | L54: 5478.9 | M54: 1.1124
A55: 46 | B55: CRISIL | C55: 1641.6 | D55: 1659.50 | E55: 1612.80 | F55: 1584.00 | G55: 1537.30 | H55: 1688.30 | I55: 1735.00 | J55: 1763.80 | K55: 1706.2 | L55: 1630.7 | M55: 0.13799
A56: 47 | B56: CADILAHC | C56: 353.15 | D56: 358.52 | E56: 344.73 | F56: 336.32 | G56: 322.53 | H56: 366.93 | I56: 380.72 | J56: 389.13 | K56: 372.3 | L56: 350.1 | M56: 9.09271
A57: 48 | B57: CANBK | C57: 245.65 | D57: 243.53 | E57: 237.27 | F57: 228.88 | G57: 222.62 | H57: 251.92 | I57: 258.18 | J57: 266.57 | K57: 249.8 | L57: 235.15 | M57: 91.45305
A58: 49 | B58: CASTROLIND | C58: 166.6 | D58: 168.62 | E58: 163.98 | F58: 161.37 | G58: 156.73 | H58: 171.23 | I58: 175.87 | J58: 178.48 | K58: 173.25 | L58: 166 | M58: 9.53891
A59: 50 | B59: CENTRALBK | C59: 66.65 | D59: 67.02 | E59: 65.33 | F59: 64.02 | G59: 62.33 | H59: 68.33 | I59: 70.02 | J59: 71.33 | K59: 68.7 | L59: 65.7 | M59: 4.32423
A60: 51 | B60: CENTURYTEX | C60: 1006.95 | D60: 989.87 | E60: 943.73 | F60: 880.52 | G60: 834.38 | H60: 1053.08 | I60: 1099.22 | J60: 1162.43 | K60: 1036 | L60: 926.65 | M60: 57.08881
A61: 52 | B61: CHOLAFIN | C61: 1537.75 | D61: 1535.87 | E61: 1506.88 | F61: 1476.02 | G61: 1447.03 | H61: 1566.73 | I61: 1595.72 | J61: 1626.58 | K61: 1564.85 | L61: 1505 | M61: 3.41023
A62: 53 | B62: CIPLA | C62: 520.45 | D62: 524.42 | E62: 512.03 | F62: 503.62 | G62: 491.23 | H62: 532.83 | I62: 545.22 | J62: 553.63 | K62: 536.8 | L62: 516 | M62: 20.13336
A63: 54 | B63: COALINDIA | C63: 270.25 | D63: 268.78 | E63: 266.07 | F63: 261.88 | G63: 259.17 | H63: 272.97 | I63: 275.68 | J63: 279.87 | K63: 271.5 | L63: 264.6 | M63: 17.98554
A64: 55 | B64: COLPAL | C64: 1208.45 | D64: 1217.05 | E64: 1152.40 | F64: 1096.35 | G64: 1031.70 | H64: 1273.10 | I64: 1337.75 | J64: 1393.80 | K64: 1281.7 | L64: 1161 | M64: 44.99036
A65: 56 | B65: CONCOR | C65: 1388.25 | D65: 1392.38 | E65: 1379.42 | F65: 1370.58 | G65: 1357.62 | H65: 1401.22 | I65: 1414.18 | J65: 1423.02 | K65: 1405.35 | L65: 1383.55 | M65: 2.99578
A66: 57 | B66: COROMANDEL | C66: 446.75 | D66: 445.95 | E66: 438.00 | F66: 429.25 | G66: 421.30 | H66: 454.70 | I66: 462.65 | J66: 471.40 | K66: 453.9 | L66: 437.2 | M66: 0.49062
A67: 58 | B67: CROMPTON | C67: 241.2 | D67: 240.05 | E67: 235.15 | F67: 229.10 | G67: 224.20 | H67: 246.10 | I67: 251.00 | J67: 257.05 | K67: 244.95 | L67: 234 | M67: 5.82779
A68: 59 | B68: CUMMINSIND | C68: 739.65 | D68: 736.33 | E68: 726.97 | F68: 714.28 | G68: 704.92 | H68: 749.02 | I68: 758.38 | J68: 771.07 | K68: 745.7 | L68: 723.65 | M68: 3.34718
A69: 60 | B69: DLF | C69: 193.55 | D69: 194.60 | E69: 189.95 | F69: 186.35 | G69: 181.70 | H69: 198.20 | I69: 202.85 | J69: 206.45 | K69: 199.25 | L69: 191 | M69: 53.9429
A70: 61 | B70: DABUR | C70: 373.15 | D70: 373.58 | E70: 369.67 | F70: 366.18 | G70: 362.27 | H70: 377.07 | I70: 380.98 | J70: 384.47 | K70: 377.5 | L70: 370.1 | M70: 14.35221
A71: 62 | B71: DALMIABHA | C71: 2737.2 | D71: 2722.37 | E71: 2664.83 | F71: 2592.47 | G71: 2534.93 | H71: 2794.73 | I71: 2852.27 | J71: 2924.63 | K71: 2779.9 | L71: 2650 | M71: 1.75836
A72: 63 | B72: DHFL | C72: 614.6 | D72: 611.03 | E72: 595.67 | F72: 576.73 | G72: 561.37 | H72: 629.97 | I72: 645.33 | J72: 664.27 | K72: 626.4 | L72: 592.1 | M72: 66.61955
A73: 64 | B73: DISHTV | C73: 70.2 | D73: 70.18 | E73: 69.52 | F73: 68.83 | G73: 68.17 | H73: 70.87 | I73: 71.53 | J73: 72.22 | K73: 70.85 | L73: 69.5 | M73: 23.72352
A74: 65 | B74: DIVISLAB | C74: 1138.55 | D74: 1142.60 | E74: 1121.85 | F74: 1105.15 | G74: 1084.40 | H74: 1159.30 | I74: 1180.05 | J74: 1196.75 | K74: 1163.35 | L74: 1125.9 | M74: 2.08137
A75: 66 | B75: LALPATHLAB | C75: 890.25 | D75: 883.30 | E75: 856.95 | F75: 823.65 | G75: 797.30 | H75: 916.60 | I75: 942.95 | J75: 976.25 | K75: 909.65 | L75: 850 | M75: 1.22445
A76: 67 | B76: DRREDDY | C76: 1893.05 | D76: 1923.68 | E76: 1856.37 | F76: 1819.68 | G76: 1752.37 | H76: 1960.37 | I76: 2027.68 | J76: 2064.37 | K76: 1991 | L76: 1887 | M76: 5.05736
A77: 68 | B77: EDELWEISS | C77: 313.25 | D77: 314.65 | E77: 308.80 | F77: 304.35 | G77: 298.50 | H77: 319.10 | I77: 324.95 | J77: 329.40 | K77: 320.5 | L77: 310.2 | M77: 22.88244
A78: 69 | B78: EICHERMOT | C78: 29432.9 | D78: 29649.58 | E78: 29099.37 | F78: 28765.83 | G78: 28215.62 | H78: 29983.12 | I78: 30533.33 | J78: 30866.87 | K78: 30199.8 | L78: 29316.05 | M78: 0.29903
A79: 70 | B79: EMAMILTD | C79: 1014.6 | D79: 1023.55 | E79: 1002.15 | F79: 989.70 | G79: 968.30 | H79: 1036.00 | I79: 1057.40 | J79: 1069.85 | K79: 1044.95 | L79: 1011.1 | M79: 1.13588
A80: 71 | B80: ENDURANCE | C80: 1220.05 | D80: 1233.78 | E80: 1182.37 | F80: 1144.68 | G80: 1093.27 | H80: 1271.47 | I80: 1322.88 | J80: 1360.57 | K80: 1285.2 | L80: 1196.1 | M80: 0.66282
A81: 72 | B81: ENGINERSIN | C81: 139.2 | D81: 140.53 | E81: 136.07 | F81: 132.93 | G81: 128.47 | H81: 143.67 | I81: 148.13 | J81: 151.27 | K81: 145 | L81: 137.4 | M81: 14.21771
A82: 73 | B82: EXIDEIND | C82: 246.75 | D82: 248.83 | E82: 242.87 | F82: 238.98 | G82: 233.02 | H82: 252.72 | I82: 258.68 | J82: 262.57 | K82: 254.8 | L82: 244.95 | M82: 16.7286
A83: 74 | B83: FEDERALBNK | C83: 80.9 | D83: 81.32 | E83: 79.68 | F83: 78.47 | G83: 76.83 | H83: 82.53 | I83: 84.17 | J83: 85.38 | K83: 82.95 | L83: 80.1 | M83: 128.91814
A84: 75 | B84: GAIL | C84: 325.65 | D84: 323.85 | E84: 320.80 | F84: 315.95 | G84: 312.90 | H84: 328.70 | I84: 331.75 | J84: 336.60 | K84: 326.9 | L84: 319 | M84: 24.65405
A85: 76 | B85: GMRINFRA | C85: 17 | D85: 17.17 | E85: 16.68 | F85: 16.37 | G85: 15.88 | H85: 17.48 | I85: 17.97 | J85: 18.28 | K85: 17.65 | L85: 16.85 | M85: 204.94127
A86: 77 | B86: GSKCONS | C86: 5947.95 | D86: 5946.32 | E86: 5912.63 | F86: 5877.32 | G86: 5843.63 | H86: 5981.63 | I86: 6015.32 | J86: 6050.63 | K86: 5980 | L86: 5911 | M86: 0.0327
A87: 78 | B87: GLAXO | C87: 2376.6 | D87: 2387.30 | E87: 2329.60 | F87: 2282.60 | G87: 2224.90 | H87: 2434.30 | I87: 2492.00 | J87: 2539.00 | K87: 2445 | L87: 2340.3 | M87: 0.08325
A88: 79 | B88: GLENMARK | C88: 500.85 | D88: 500.75 | E88: 493.60 | F88: 486.35 | G88: 479.20 | H88: 508.00 | I88: 515.15 | J88: 522.40 | K88: 507.9 | L88: 493.5 | M88: 13.14194
A89: 80 | B89: GODREJCP | C89: 1080.85 | D89: 1086.40 | E89: 1070.60 | F89: 1060.35 | G89: 1044.55 | H89: 1096.65 | I89: 1112.45 | J89: 1122.70 | K89: 1102.2 | L89: 1076.15 | M89: 2.14836
A90: 81 | B90: GODREJIND | C90: 560.5 | D90: 563.40 | E90: 554.15 | F90: 547.80 | G90: 538.55 | H90: 569.75 | I90: 579.00 | J90: 585.35 | K90: 572.65 | L90: 557.05 | M90: 3.26989
A91: 82 | B91: GRUH | C91: 657.9 | D91: 661.97 | E91: 648.93 | F91: 639.97 | G91: 626.93 | H91: 670.93 | I91: 683.97 | J91: 692.93 | K91: 675 | L91: 653 | M91: 0.87688
A92: 83 | B92: GPPL | C92: 125.45 | D92: 127.72 | E92: 122.98 | F92: 120.52 | G92: 115.78 | H92: 130.18 | I92: 134.92 | J92: 137.38 | K92: 132.45 | L92: 125.25 | M92: 1.35004
A93: 84 | B93: GSPL | C93: 175.05 | D93: 175.98 | E93: 170.72 | F93: 166.38 | G93: 161.12 | H93: 180.32 | I93: 185.58 | J93: 189.92 | K93: 181.25 | L93: 171.65 | M93: 7.27727
A94: 85 | B94: HCLTECH | C94: 895.95 | D94: 894.50 | E94: 888.45 | F94: 880.95 | G94: 874.90 | H94: 902.00 | I94: 908.05 | J94: 915.55 | K94: 900.55 | L94: 887 | M94: 14.71238
A95: 86 | B95: HDFCBANK | C95: 1993.05 | D95: 2000.03 | E95: 1979.07 | F95: 1965.08 | G95: 1944.12 | H95: 2014.02 | I95: 2034.98 | J95: 2048.97 | K95: 2021 | L95: 1986.05 | M95: 12.12027
A96: 87 | B96: HAVELLS | C96: 524.2 | D96: 522.97 | E96: 515.93 | F96: 507.67 | G96: 500.63 | H96: 531.23 | I96: 538.27 | J96: 546.53 | K96: 530 | L96: 514.7 | M96: 11.35679
A97: 88 | B97: HEROMOTOCO | C97: 3492.9 | D97: 3511.08 | E97: 3443.57 | F97: 3394.23 | G97: 3326.72 | H97: 3560.42 | I97: 3627.93 | J97: 3677.27 | K97: 3578.6 | L97: 3461.75 | M97: 2.58835
A98: 89 | B98: HEXAWARE | C98: 426.35 | D98: 425.38 | E98: 421.47 | F98: 416.58 | G98: 412.67 | H98: 430.27 | I98: 434.18 | J98: 439.07 | K98: 429.3 | L98: 420.5 | M98: 7.49649
A99: 90 | B99: HINDALCO | C99: 228.25 | D99: 228.87 | E99: 223.73 | F99: 219.22 | G99: 214.08 | H99: 233.38 | I99: 238.52 | J99: 243.03 | K99: 234 | L99: 224.35 | M99: 81.59685
A100: 91 | B100: HINDPETRO | C100: 312.85 | D100: 312.73 | E100: 309.12 | F100: 305.38 | G100: 301.77 | H100: 316.47 | I100: 320.08 | J100: 323.82 | K100: 316.35 | L100: 309 | M100: 35.85804
A101: 92 | B101: HINDUNILVR | C101: 1578.65 | D101: 1590.37 | E101: 1561.33 | F101: 1544.02 | G101: 1514.98 | H101: 1607.68 | I101: 1636.72 | J101: 1654.03 | K101: 1619.4 | L101: 1573.05 | M101: 15.10806
A102: 93 | B102: HINDZINC | C102: 289.55 | D102: 292.50 | E102: 285.15 | F102: 280.75 | G102: 273.40 | H102: 296.90 | I102: 304.25 | J102: 308.65 | K102: 299.85 | L102: 288.1 | M102: 10.5651
A103: 94 | B103: HUDCO | C103: 55.6 | D103: 56.23 | E103: 54.67 | F103: 53.73 | G103: 52.17 | H103: 57.17 | I103: 58.73 | J103: 59.67 | K103: 57.8 | L103: 55.3 | M103: 9.43104
A104: 95 | B104: HDFC | C104: 1819.2 | D104: 1831.90 | E104: 1803.80 | F104: 1788.40 | G104: 1760.30 | H104: 1847.30 | I104: 1875.40 | J104: 1890.80 | K104: 1860 | L104: 1816.5 | M104: 28.16934
A105: 96 | B105: ITC | C105: 282.35 | D105: 281.62 | E105: 279.23 | F105: 276.12 | G105: 273.73 | H105: 284.73 | I105: 287.12 | J105: 290.23 | K105: 284 | L105: 278.5 | M105: 85.792
A106: 97 | B106: ICICIBANK | C106: 289.3 | D106: 290.02 | E106: 287.03 | F106: 284.77 | G106: 281.78 | H106: 292.28 | I106: 295.27 | J106: 297.53 | K106: 293 | L106: 287.75 | M106: 231.55638
A107: 98 | B107: ICICIPRULI | C107: 416.2 | D107: 420.50 | E107: 410.30 | F107: 404.40 | G107: 394.20 | H107: 426.40 | I107: 436.60 | J107: 442.50 | K107: 430.7 | L107: 414.6 | M107: 15.69251
A108: 99 | B108: IDBI | C108: 62.05 | D108: 61.40 | E108: 60.35 | F108: 58.65 | G108: 57.60 | H108: 63.10 | I108: 64.15 | J108: 65.85 | K108: 62.45 | L108: 59.7 | M108: 125.15679
A109: 100 | B109: IDFCBANK | C109: 40.25 | D109: 40.50 | E109: 39.60 | F109: 38.95 | G109: 38.05 | H109: 41.15 | I109: 42.05 | J109: 42.70 | K109: 41.4 | L109: 39.85 | M109: 60.30983
A110: 101 | B110: IDFC | C110: 49.8 | D110: 50.38 | E110: 48.97 | F110: 48.13 | G110: 46.72 | H110: 51.22 | I110: 52.63 | J110: 53.47 | K110: 51.8 | L110: 49.55 | M110: 47.82772
A111: 102 | B111: IRB | C111: 225.35 | D111: 229.48 | E111: 219.22 | F111: 213.08 | G111: 202.82 | H111: 235.62 | I111: 245.88 | J111: 252.02 | K111: 239.75 | L111: 223.35 | M111: 27.55398
A112: 103 | B112: IDEA | C112: 52.85 | D112: 52.72 | E112: 52.08 | F112: 51.32 | G112: 50.68 | H112: 53.48 | I112: 54.12 | J112: 54.88 | K112: 53.35 | L112: 51.95 | M112: 76.11669
A113: 104 | B113: IBULHSGFIN | C113: 1108.35 | D113: 1116.18 | E113: 1087.27 | F113: 1066.18 | G113: 1037.27 | H113: 1137.27 | I113: 1166.18 | J113: 1187.27 | K113: 1145.1 | L113: 1095.1 | M113: 29.37687
A114: 105 | B114: INDIANB | C114: 307.25 | D114: 306.57 | E114: 301.73 | F114: 296.22 | G114: 291.38 | H114: 312.08 | I114: 316.92 | J114: 322.43 | K114: 311.4 | L114: 301.05 | M114: 14.76582
A115: 106 | B115: INDHOTEL | C115: 139.75 | D115: 138.85 | E115: 136.70 | F115: 133.65 | G115: 131.50 | H115: 141.90 | I115: 144.05 | J115: 147.10 | K115: 141 | L115: 135.8 | M115: 8.71741
A116: 107 | B116: IOC | C116: 165.15 | D116: 164.57 | E116: 163.38 | F116: 161.62 | G116: 160.43 | H116: 166.33 | I116: 167.52 | J116: 169.28 | K116: 165.75 | L116: 162.8 | M116: 63.78755
A117: 108 | B117: IGL | C117: 259.4 | D117: 261.42 | E117: 256.53 | F117: 253.67 | G117: 248.78 | H117: 264.28 | I117: 269.17 | J117: 272.03 | K117: 266.3 | L117: 258.55 | M117: 14.05779
A118: 109 | B118: INDUSINDBK | C118: 1924.95 | D118: 1928.13 | E118: 1909.27 | F118: 1893.58 | G118: 1874.72 | H118: 1943.82 | I118: 1962.68 | J118: 1978.37 | K118: 1947 | L118: 1912.45 | M118: 8.45801
A119: 110 | B119: NAUKRI | C119: 1185 | D119: 1188.87 | E119: 1168.33 | F119: 1151.67 | G119: 1131.13 | H119: 1205.53 | I119: 1226.07 | J119: 1242.73 | K119: 1209.4 | L119: 1172.2 | M119: 0.32839
A120: 111 | B120: INFY | C120: 1179.5 | D120: 1179.30 | E120: 1170.20 | F120: 1160.90 | G120: 1151.80 | H120: 1188.60 | I120: 1197.70 | J120: 1207.00 | K120: 1188.4 | L120: 1170 | M120: 42.3766
A121: 112 | B121: INDIGO | C121: 1133.95 | D121: 1124.08 | E121: 1094.87 | F121: 1055.78 | G121: 1026.57 | H121: 1163.17 | I121: 1192.38 | J121: 1231.47 | K121: 1153.3 | L121: 1085 | M121: 9.94419
A122: 113 | B122: IPCALAB | C122: 667 | D122: 665.27 | E122: 631.28 | F122: 595.57 | G122: 561.58 | H122: 700.98 | I122: 734.97 | J122: 770.68 | K122: 699.25 | L122: 629.55 | M122: 2.35589
A123: 114 | B123: JSWENERGY | C123: 69.95 | D123: 70.63 | E123: 68.77 | F123: 67.58 | G123: 65.72 | H123: 71.82 | I123: 73.68 | J123: 74.87 | K123: 72.5 | L123: 69.45 | M123: 8.55429
A124: 115 | B124: JSWSTEEL | C124: 309.25 | D124: 313.45 | E124: 303.45 | F124: 297.65 | G124: 287.65 | H124: 319.25 | I124: 329.25 | J124: 335.05 | K124: 323.45 | L124: 307.65 | M124: 51.32127
A125: 116 | B125: JINDALSTEL | C125: 239.85 | D125: 241.85 | E125: 235.35 | F125: 230.85 | G125: 224.35 | H125: 246.35 | I125: 252.85 | J125: 257.35 | K125: 248.35 | L125: 237.35 | M125: 53.12798
A126: 117 | B126: JUBLFOOD | C126: 2527.25 | D126: 2521.13 | E126: 2496.37 | F126: 2465.48 | G126: 2440.72 | H126: 2552.02 | I126: 2576.78 | J126: 2607.67 | K126: 2545.9 | L126: 2490.25 | M126: 8.4214
A127: 118 | B127: JUBILANT | C127: 782.35 | D127: 795.52 | E127: 757.83 | F127: 733.32 | G127: 695.63 | H127: 820.03 | I127: 857.72 | J127: 882.23 | K127: 833.2 | L127: 771 | M127: 3.76801
A128: 119 | B128: KARURVYSYA | C128: 97.15 | D128: 97.95 | E128: 95.75 | F128: 94.35 | G128: 92.15 | H128: 99.35 | I128: 101.55 | J128: 102.95 | K128: 100.15 | L128: 96.55 | M128: 9.69273
A129: 120 | B129: KOTAKBANK | C129: 1276.65 | D129: 1282.05 | E129: 1264.15 | F129: 1251.65 | G129: 1233.75 | H129: 1294.55 | I129: 1312.45 | J129: 1324.95 | K129: 1299.95 | L129: 1269.55 | M129: 19.98879
A130: 121 | B130: L&TFH | C130: 166.95 | D130: 169.13 | E130: 163.67 | F130: 160.38 | G130: 154.92 | H130: 172.42 | I130: 177.88 | J130: 181.17 | K130: 174.6 | L130: 165.85 | M130: 27.05917
A131: 122 | B131: LICHSGFIN | C131: 474.6 | D131: 477.27 | E131: 469.73 | F131: 464.87 | G131: 457.33 | H131: 482.13 | I131: 489.67 | J131: 494.53 | K131: 484.8 | L131: 472.4 | M131: 12.37218
A132: 123 | B132: LT | C132: 1313.25 | D132: 1320.37 | E132: 1303.88 | F132: 1294.52 | G132: 1278.03 | H132: 1329.73 | I132: 1346.22 | J132: 1355.58 | K132: 1336.85 | L132: 1311 | M132: 20.47129
A133: 124 | B133: LUPIN | C133: 736.25 | D133: 738.85 | E133: 732.40 | F133: 728.55 | G133: 722.10 | H133: 742.70 | I133: 749.15 | J133: 753.00 | K133: 745.3 | L133: 735 | M133: 9.84687
A134: 125 | B134: MRF | C134: 73102.1 | D134: 73471.62 | E134: 72494.03 | F134: 71885.97 | G134: 70908.38 | H134: 74079.68 | I134: 75057.27 | J134: 75665.33 | K134: 74449.2 | L134: 72863.55 | M134: 0.04517
A135: 126 | B135: MGL | C135: 841.8 | D135: 847.07 | E135: 826.73 | F135: 811.67 | G135: 791.33 | H135: 862.13 | I135: 882.47 | J135: 897.53 | K135: 867.4 | L135: 832 | M135: 2.82082
A136: 127 | B136: M&MFIN | C136: 460.4 | D136: 460.32 | E136: 452.68 | F136: 444.97 | G136: 437.33 | H136: 468.03 | I136: 475.67 | J136: 483.38 | K136: 467.95 | L136: 452.6 | M136: 10.68704
A137: 128 | B137: M&M | C137: 825.95 | D137: 831.60 | E137: 815.95 | F137: 805.95 | G137: 790.30 | H137: 841.60 | I137: 857.25 | J137: 867.25 | K137: 847.25 | L137: 821.6 | M137: 16.70673
A138: 129 | B138: MANAPPURAM | C138: 113.8 | D138: 114.07 | E138: 110.43 | F138: 107.07 | G138: 103.43 | H138: 117.43 | I138: 121.07 | J138: 124.43 | K138: 117.7 | L138: 110.7 | M138: 83.16865
A139: 130 | B139: MRPL | C139: 99.85 | D139: 101.02 | E139: 98.13 | F139: 96.42 | G139: 93.53 | H139: 102.73 | I139: 105.62 | J139: 107.33 | K139: 103.9 | L139: 99.3 | M139: 8.87246
A140: 131 | B140: MARICO | C140: 309.75 | D140: 312.40 | E140: 305.35 | F140: 300.95 | G140: 293.90 | H140: 316.80 | I140: 323.85 | J140: 328.25 | K140: 319.45 | L140: 308 | M140: 12.74274
A141: 132 | B141: MARUTI | C141: 8428.5 | D141: 8402.93 | E141: 8281.07 | F141: 8133.63 | G141: 8011.77 | H141: 8550.37 | I141: 8672.23 | J141: 8819.67 | K141: 8524.8 | L141: 8255.5 | M141: 8.72463
A142: 133 | B142: MFSL | C142: 460.6 | D142: 469.65 | E142: 447.30 | F142: 434.00 | G142: 411.65 | H142: 482.95 | I142: 505.30 | J142: 518.60 | K142: 492 | L142: 456.35 | M142: 3.18892
A143: 134 | B143: MINDTREE | C143: 1029.6 | D143: 1025.17 | E143: 1013.93 | F143: 998.27 | G143: 987.03 | H143: 1040.83 | I143: 1052.07 | J143: 1067.73 | K143: 1036.4 | L143: 1009.5 | M143: 20.73515
A144: 135 | B144: MOTHERSUMI | C144: 323.75 | D144: 324.23 | E144: 320.17 | F144: 316.58 | G144: 312.52 | H144: 327.82 | I144: 331.88 | J144: 335.47 | K144: 328.3 | L144: 320.65 | M144: 17.02978
A145: 136 | B145: MPHASIS | C145: 1082.5 | D145: 1093.52 | E145: 1057.13 | F145: 1031.77 | G145: 995.38 | H145: 1118.88 | I145: 1155.27 | J145: 1180.63 | K145: 1129.9 | L145: 1068.15 | M145: 3.98522
A146: 137 | B146: MUTHOOTFIN | C146: 399.25 | D146: 403.77 | E146: 392.93 | F146: 386.62 | G146: 375.78 | H146: 410.08 | I146: 420.92 | J146: 427.23 | K146: 414.6 | L146: 397.45 | M146: 14.15465
A147: 138 | B147: NATCOPHARM | C147: 763.2 | D147: 768.22 | E147: 750.48 | F147: 737.77 | G147: 720.03 | H147: 780.93 | I147: 798.67 | J147: 811.38 | K147: 785.95 | L147: 755.5 | M147: 1.23758
A148: 139 | B148: NBCC | C148: 93.05 | D148: 93.60 | E148: 91.75 | F148: 90.45 | G148: 88.60 | H148: 94.90 | I148: 96.75 | J148: 98.05 | K148: 95.45 | L148: 92.3 | M148: 28.45603
A149: 140 | B149: NHPC | C149: 26.1 | D149: 26.22 | E149: 25.83 | F149: 25.57 | G149: 25.18 | H149: 26.48 | I149: 26.87 | J149: 27.13 | K149: 26.6 | L149: 25.95 | M149: 44.61091
A150: 141 | B150: NMDC | C150: 113.4 | D150: 113.88 | E150: 111.62 | F150: 109.83 | G150: 107.57 | H150: 115.67 | I150: 117.93 | J150: 119.72 | K150: 116.15 | L150: 112.1 | M150: 21.67863
A151: 142 | B151: NTPC | C151: 164.4 | D151: 164.77 | E151: 162.33 | F151: 160.27 | G151: 157.83 | H151: 166.83 | I151: 169.27 | J151: 171.33 | K151: 167.2 | L151: 162.7 | M151: 32.32645
A152: 143 | B152: NATIONALUM | C152: 73.3 | D152: 72.55 | E152: 71.40 | F152: 69.50 | G152: 68.35 | H152: 74.45 | I152: 75.60 | J152: 77.50 | K152: 73.7 | L152: 70.65 | M152: 81.85982
A153: 144 | B153: OBEROIRLTY | C153: 516.2 | D153: 524.87 | E153: 501.43 | F153: 486.67 | G153: 463.23 | H153: 539.63 | I153: 563.07 | J153: 577.83 | K153: 548.3 | L153: 510.1 | M153: 3.25398
A154: 145 | B154: ONGC | C154: 185.75 | D154: 186.53 | E154: 184.42 | F154: 183.08 | G154: 180.97 | H154: 187.87 | I154: 189.98 | J154: 191.32 | K154: 188.65 | L154: 185.2 | M154: 33.80355
A155: 146 | B155: OIL | C155: 239 | D155: 240.82 | E155: 235.88 | F155: 232.77 | G155: 227.83 | H155: 243.93 | I155: 248.87 | J155: 251.98 | K155: 245.75 | L155: 237.7 | M155: 5.05842
A156: 147 | B156: OFSS | C156: 3819.75 | D156: 3834.02 | E156: 3785.73 | F156: 3751.72 | G156: 3703.43 | H156: 3868.03 | I156: 3916.32 | J156: 3950.33 | K156: 3882.3 | L156: 3800 | M156: 0.39281
A157: 148 | B157: PCJEWELLER | C157: 165.95 | D157: 165.28 | E157: 159.27 | F157: 152.58 | G157: 146.57 | H157: 171.97 | I157: 177.98 | J157: 184.67 | K157: 171.3 | L157: 158.6 | M157: 138.26651
A158: 149 | B158: PIIND | C158: 851.35 | D158: 854.45 | E158: 826.90 | F158: 802.45 | G158: 774.90 | H158: 878.90 | I158: 906.45 | J158: 930.90 | K158: 882 | L158: 830 | M158: 1.64132
A159: 150 | B159: PNBHOUSING | C159: 1262.9 | D159: 1254.30 | E159: 1234.60 | F159: 1206.30 | G159: 1186.60 | H159: 1282.60 | I159: 1302.30 | J159: 1330.60 | K159: 1274 | L159: 1226 | M159: 2.10819
A160: 151 | B160: PAGEIND | C160: 22974.3 | D160: 23065.65 | E160: 22781.35 | F160: 22588.40 | G160: 22304.10 | H160: 23258.60 | I160: 23542.90 | J160: 23735.85 | K160: 23349.95 | L160: 22872.7 | M160: 0.0769
A161: 152 | B161: PETRONET | C161: 210.2 | D161: 211.17 | E161: 202.03 | F161: 193.87 | G161: 184.73 | H161: 219.33 | I161: 228.47 | J161: 236.63 | K161: 220.3 | L161: 203 | M161: 82.55679
A162: 153 | B162: PIDILITIND | C162: 1095.55 | D162: 1095.25 | E162: 1081.50 | F162: 1067.45 | G162: 1053.70 | H162: 1109.30 | I162: 1123.05 | J162: 1137.10 | K162: 1109 | L162: 1081.2 | M162: 5.5871
A163: 154 | B163: PEL | C163: 2361.85 | D163: 2358.65 | E163: 2329.65 | F163: 2297.45 | G163: 2268.45 | H163: 2390.85 | I163: 2419.85 | J163: 2452.05 | K163: 2387.65 | L163: 2326.45 | M163: 1.65666
A164: 155 | B164: PFC | C164: 73.2 | D164: 73.62 | E164: 72.18 | F164: 71.17 | G164: 69.73 | H164: 74.63 | I164: 76.07 | J164: 77.08 | K164: 75.05 | L164: 72.6 | M164: 48.28854
A165: 156 | B165: POWERGRID | C165: 212.65 | D165: 212.90 | E165: 211.35 | F165: 210.05 | G165: 208.50 | H165: 214.20 | I165: 215.75 | J165: 217.05 | K165: 214.45 | L165: 211.6 | M165: 93.76866
A166: 157 | B166: PRESTIGE | C166: 276.7 | D166: 278.47 | E166: 272.43 | F166: 268.17 | G166: 262.13 | H166: 282.73 | I166: 288.77 | J166: 293.03 | K166: 284.5 | L166: 274.2 | M166: 0.58472
A167: 158 | B167: PGHH | C167: 9270.3 | D167: 9238.97 | E167: 9136.83 | F167: 9003.37 | G167: 8901.23 | H167: 9372.43 | I167: 9474.57 | J167: 9608.03 | K167: 9341.1 | L167: 9105.5 | M167: 0.09308
A168: 159 | B168: PNB | C168: 78.15 | D168: 77.38 | E168: 76.07 | F168: 73.98 | G168: 72.67 | H168: 79.47 | I168: 80.78 | J168: 82.87 | K168: 78.7 | L168: 75.3 | M168: 296.93002
A169: 160 | B169: RBLBANK | C169: 498.2 | D169: 500.23 | E169: 491.57 | F169: 484.93 | G169: 476.27 | H169: 506.87 | I169: 515.53 | J169: 522.17 | K169: 508.9 | L169: 493.6 | M169: 8.69992
A170: 161 | B170: RAJESHEXPO | C170: 632 | D170: 636.67 | E170: 624.33 | F170: 616.67 | G170: 604.33 | H170: 644.33 | I170: 656.67 | J170: 664.33 | K170: 649 | L170: 629 | M170: 1.00153
A171: 162 | B171: RELCAPITAL | C171: 374.25 | D171: 377.67 | E171: 367.83 | F171: 361.42 | G171: 351.58 | H171: 384.08 | I171: 393.92 | J171: 400.33 | K171: 387.5 | L171: 371.25 | M171: 31.29314
A172: 163 | B172: RCOM | C172: 13.35 | D172: 14.13 | E172: 11.97 | F172: 10.58 | G172: 8.42 | H172: 15.52 | I172: 17.68 | J172: 19.07 | K172: 16.3 | L172: 12.75 | M172: 2949.01978
A173: 164 | B173: RELIANCE | C173: 931.35 | D173: 929.72 | E173: 923.73 | F173: 916.12 | G173: 910.13 | H173: 937.33 | I173: 943.32 | J173: 950.93 | K173: 935.7 | L173: 922.1 | M173: 66.24893
A174: 165 | B174: RELINFRA | C174: 396 | D174: 395.80 | E174: 389.20 | F174: 382.40 | G174: 375.80 | H174: 402.60 | I174: 409.20 | J174: 416.00 | K174: 402.4 | L174: 389 | M174: 27.00916
A175: 166 | B175: RPOWER | C175: 33.25 | D175: 33.58 | E175: 32.37 | F175: 31.48 | G175: 30.27 | H175: 34.47 | I175: 35.68 | J175: 36.57 | K175: 34.8 | L175: 32.7 | M175: 107.46426
A176: 167 | B176: RECLTD | C176: 109.65 | D176: 110.45 | E176: 108.35 | F176: 107.05 | G176: 104.95 | H176: 111.75 | I176: 113.85 | J176: 115.15 | K176: 112.55 | L176: 109.15 | M176: 25.155
A177: 168 | B177: SRF | C177: 1877.55 | D177: 1880.20 | E177: 1819.40 | F177: 1761.25 | G177: 1700.45 | H177: 1938.35 | I177: 1999.15 | J177: 2057.30 | K177: 1941 | L177: 1822.05 | M177: 9.24726
A178: 169 | B178: SHREECEM | C178: 16074.8 | D178: 16154.88 | E178: 15919.77 | F178: 15764.73 | G178: 15529.62 | H178: 16309.92 | I178: 16545.03 | J178: 16700.07 | K178: 16390 | L178: 15999.85 | M178: 0.154
A179: 170 | B179: SRTRANSFIN | C179: 1408.4 | D179: 1409.25 | E179: 1383.50 | F179: 1358.60 | G179: 1332.85 | H179: 1434.15 | I179: 1459.90 | J179: 1484.80 | K179: 1435 | L179: 1384.35 | M179: 3.28167
A180: 171 | B180: SIEMENS | C180: 1035.1 | D180: 1036.57 | E180: 1025.18 | F180: 1015.27 | G180: 1003.88 | H180: 1046.48 | I180: 1057.87 | J180: 1067.78 | K180: 1047.95 | L180: 1026.65 | M180: 1.20691
A181: 172 | B181: SBIN | C181: 244.45 | D181: 243.50 | E181: 241.25 | F181: 238.05 | G181: 235.80 | H181: 246.70 | I181: 248.95 | J181: 252.15 | K181: 245.75 | L181: 240.3 | M181: 187.8073
A182: 173 | B182: SAIL | C182: 71.85 | D182: 72.62 | E182: 70.83 | F182: 69.82 | G182: 68.03 | H182: 73.63 | I182: 75.42 | J182: 76.43 | K182: 74.4 | L182: 71.6 | M182: 80.65908
A183: 174 | B183: SPARC | C183: 353.75 | D183: 360.92 | E183: 343.83 | F183: 333.92 | G183: 316.83 | H183: 370.83 | I183: 387.92 | J183: 397.83 | K183: 378 | L183: 351 | M183: 1.52885
A184: 175 | B184: SUNPHARMA | C184: 443.75 | D184: 449.68 | E184: 434.37 | F184: 424.98 | G184: 409.67 | H184: 459.07 | I184: 474.38 | J184: 483.77 | K184: 465 | L184: 440.3 | M184: 58.09871
A185: 176 | B185: SUNTV | C185: 939.85 | D185: 942.32 | E185: 928.53 | F185: 917.22 | G185: 903.43 | H185: 953.63 | I185: 967.42 | J185: 978.73 | K185: 956.1 | L185: 931 | M185: 14.15004
A186: 177 | B186: SUZLON | C186: 8.7 | D186: 8.75 | E186: 8.55 | F186: 8.40 | G186: 8.20 | H186: 8.90 | I186: 9.10 | J186: 9.25 | K186: 8.95 | L186: 8.6 | M186: 210.40071
A187: 178 | B187: SYNDIBANK | C187: 44.55 | D187: 44.08 | E187: 43.12 | F187: 41.68 | G187: 40.72 | H187: 45.52 | I187: 46.48 | J187: 47.92 | K187: 45.05 | L187: 42.65 | M187: 40.20002
A188: 179 | B188: SYNGENE | C188: 605.05 | D188: 605.57 | E188: 596.38 | F188: 587.72 | G188: 578.53 | H188: 614.23 | I188: 623.42 | J188: 632.08 | K188: 614.75 | L188: 596.9 | M188: 0.6409
A189: 180 | B189: TV18BRDCST | C189: 53 | D189: 53.33 | E189: 52.27 | F189: 51.53 | G189: 50.47 | H189: 54.07 | I189: 55.13 | J189: 55.87 | K189: 54.4 | L189: 52.6 | M189: 36.5195
A190: 181 | B190: TVSMOTOR | C190: 564.05 | D190: 564.53 | E190: 553.12 | F190: 542.18 | G190: 530.77 | H190: 575.47 | I190: 586.88 | J190: 597.82 | K190: 575.95 | L190: 553.6 | M190: 13.53643
A191: 182 | B191: TATACHEM | C191: 734.95 | D191: 734.32 | E191: 709.63 | F191: 684.32 | G191: 659.63 | H191: 759.63 | I191: 784.32 | J191: 809.63 | K191: 759 | L191: 709 | M191: 25.12885
A192: 183 | B192: TATACOMM | C192: 609.05 | D192: 610.02 | E192: 604.03 | F192: 599.02 | G192: 593.03 | H192: 615.03 | I192: 621.02 | J192: 626.03 | K192: 616 | L192: 605 | M192: 4.40123
A193: 184 | B193: TCS | C193: 3556.75 | D193: 3555.60 | E193: 3519.20 | F193: 3481.65 | G193: 3445.25 | H193: 3593.15 | I193: 3629.55 | J193: 3667.10 | K193: 3592 | L193: 3518.05 | M193: 17.23089
A194: 185 | B194: TATAGLOBAL | C194: 243.55 | D194: 244.15 | E194: 239.95 | F194: 236.35 | G194: 232.15 | H194: 247.75 | I194: 251.95 | J194: 255.55 | K194: 248.35 | L194: 240.55 | M194: 31.8036
A195: 186 | B195: TATAMTRDVR | C195: 175.35 | D195: 176.87 | E195: 172.28 | F195: 169.22 | G195: 164.63 | H195: 179.93 | I195: 184.52 | J195: 187.58 | K195: 181.45 | L195: 173.8 | M195: 27.06021
A196: 187 | B196: TATAMOTORS | C196: 295.9 | D196: 299.27 | E196: 291.33 | F196: 286.77 | G196: 278.83 | H196: 303.83 | I196: 311.77 | J196: 316.33 | K196: 307.2 | L196: 294.7 | M196: 115.4949
A197: 188 | B197: TATAPOWER | C197: 78.8 | D197: 79.32 | E197: 77.83 | F197: 76.87 | G197: 75.38 | H197: 80.28 | I197: 81.77 | J197: 82.73 | K197: 80.8 | L197: 78.35 | M197: 33.99879
A198: 189 | B198: TATASTEEL | C198: 577 | D198: 584.17 | E198: 567.58 | F198: 558.17 | G198: 541.58 | H198: 593.58 | I198: 610.17 | J198: 619.58 | K198: 600.75 | L198: 574.75 | M198: 71.62233
A199: 190 | B199: TECHM | C199: 685.35 | D199: 686.50 | E199: 677.10 | F199: 668.85 | G199: 659.45 | H199: 694.75 | I199: 704.15 | J199: 712.40 | K199: 695.9 | L199: 678.25 | M199: 23.4245
A200: 191 | B200: RAMCOCEM | C200: 814.15 | D200: 821.92 | E200: 792.23 | F200: 770.32 | G200: 740.63 | H200: 843.83 | I200: 873.52 | J200: 895.43 | K200: 851.6 | L200: 800 | M200: 2.70449
A201: 192 | B201: TITAN | C201: 915.25 | D201: 924.17 | E201: 903.83 | F201: 892.42 | G201: 872.08 | H201: 935.58 | I201: 955.92 | J201: 967.33 | K201: 944.5 | L201: 912.75 | M201: 12.33987
A202: 193 | B202: TORNTPHARM | C202: 1335.05 | D202: 1331.27 | E202: 1309.38 | F202: 1283.72 | G202: 1261.83 | H202: 1356.93 | I202: 1378.82 | J202: 1404.48 | K202: 1353.15 | L202: 1305.6 | M202: 1.82053
A203: 194 | B203: TORNTPOWER | C203: 218.6 | D203: 221.10 | E203: 214.75 | F203: 210.90 | G203: 204.55 | H203: 224.95 | I203: 231.30 | J203: 235.15 | K203: 227.45 | L203: 217.25 | M203: 5.17327
A204: 195 | B204: UPL | C204: 682.55 | D204: 689.88 | E204: 667.87 | F204: 653.18 | G204: 631.17 | H204: 704.57 | I204: 726.58 | J204: 741.27 | K204: 711.9 | L204: 675.2 | M204: 23.86302
A205: 196 | B205: ULTRACEMCO | C205: 3852.25 | D205: 3895.15 | E205: 3771.30 | F205: 3690.35 | G205: 3566.50 | H205: 3976.10 | I205: 4099.95 | J205: 4180.90 | K205: 4019 | L205: 3814.2 | M205: 5.16801
... 30 more rows

Sheet MidCap Intra
L5: Back To Main Page
A6: FOR INTRA DAY TRADING | K6: =Main!B10 -> 2018-05-22
A9: Sr.no | B9: Scrip | C9: CLOSE RATE | D9: Pivot Point | E9: Supports | H9: Resistances
C10: Point | E10: S1 | F10: S2 | G10: S3 | H10: R1 | I10: R2 | J10: R3 | K10: HIGH | L10: LOW | M10: Total Trade Quanity in Lakhs
A11: 1 | B11: 3MINDIA | C11: 19251.75 | D11: 19483.90 | E11: 18967.85 | F11: 18683.95 | G11: 18167.90 | H11: 19767.80 | I11: 20283.85 | J11: 20567.75 | K11: 19999.95 | L11: 19200 | M11: 0.01115
A12: 2 | B12: 8KMILES | C12: 528.7 | D12: 546.75 | E12: 492.00 | F12: 455.30 | G12: 400.55 | H12: 583.45 | I12: 638.20 | J12: 674.90 | K12: 601.5 | L12: 510.05 | M12: 4.9203
A13: 3 | B13: AARTIIND | C13: 1222.55 | D13: 1225.37 | E13: 1193.28 | F13: 1164.02 | G13: 1131.93 | H13: 1254.63 | I13: 1286.72 | J13: 1315.98 | K13: 1257.45 | L13: 1196.1 | M13: 0.43376
A14: 4 | B14: ABAN | C14: 156.55 | D14: 157.35 | E14: 152.75 | F14: 148.95 | G14: 144.35 | H14: 161.15 | I14: 165.75 | J14: 169.55 | K14: 161.95 | L14: 153.55 | M14: 7.00706
A15: 5 | B15: ABB | C15: 1200.2 | D15: 1210.68 | E15: 1187.52 | F15: 1174.83 | G15: 1151.67 | H15: 1223.37 | I15: 1246.53 | J15: 1259.22 | K15: 1233.85 | L15: 1198 | M15: 0.20256
A16: 6 | B16: ABCAPITAL | C16: 143.85 | D16: 145.25 | E16: 141.60 | F16: 139.35 | G16: 135.70 | H16: 147.50 | I16: 151.15 | J16: 153.40 | K16: 148.9 | L16: 143 | M16: 17.89491
A17: 7 | B17: ABFRL | C17: 140.4 | D17: 141.40 | E17: 138.05 | F17: 135.70 | G17: 132.35 | H17: 143.75 | I17: 147.10 | J17: 149.45 | K17: 144.75 | L17: 139.05 | M17: 2.28887
A18: 8 | B18: ACC | C18: 1344.1 | D18: 1348.87 | E18: 1317.83 | F18: 1291.57 | G18: 1260.53 | H18: 1375.13 | I18: 1406.17 | J18: 1432.43 | K18: 1379.9 | L18: 1322.6 | M18: 3.80473
A19: 9 | B19: ADANIPORTS | C19: 383.7 | D19: 385.92 | E19: 379.28 | F19: 374.87 | G19: 368.23 | H19: 390.33 | I19: 396.97 | J19: 401.38 | K19: 392.55 | L19: 381.5 | M19: 15.44488
A20: 10 | B20: ADANIPOWER | C20: 20.7 | D20: 20.85 | E20: 20.15 | F20: 19.60 | G20: 18.90 | H20: 21.40 | I20: 22.10 | J20: 22.65 | K20: 21.55 | L20: 20.3 | M20: 71.86536
A21: 11 | B21: ADANITRANS | C21: 125.3 | D21: 126.73 | E21: 121.77 | F21: 118.23 | G21: 113.27 | H21: 130.27 | I21: 135.23 | J21: 138.77 | K21: 131.7 | L21: 123.2 | M21: 5.10767
A22: 12 | B22: ADVENZYMES | C22: 221.4 | D22: 221.73 | E22: 217.67 | F22: 213.93 | G22: 209.87 | H22: 225.47 | I22: 229.53 | J22: 233.27 | K22: 225.8 | L22: 218 | M22: 1.94958
A23: 13 | B23: AEGISCHEM | C23: 257.55 | D23: 258.27 | E23: 252.28 | F23: 247.02 | G23: 241.03 | H23: 263.53 | I23: 269.52 | J23: 274.78 | K23: 264.25 | L23: 253 | M23: 0.46795
A24: 14 | B24: AIAENG | C24: 1534.7 | D24: 1548.23 | E24: 1511.47 | F24: 1488.23 | G24: 1451.47 | H24: 1571.47 | I24: 1608.23 | J24: 1631.47 | K24: 1585 | L24: 1525 | M24: 0.28511
A25: 15 | B25: AJANTPHARM | C25: 986.5 | D25: 993.37 | E25: 971.58 | F25: 956.67 | G25: 934.88 | H25: 1008.28 | I25: 1030.07 | J25: 1044.98 | K25: 1015.15 | L25: 978.45 | M25: 3.16232
A26: 16 | B26: AKZOINDIA | C26: 1900.7 | D26: 1911.90 | E26: 1883.80 | F26: 1866.90 | G26: 1838.80 | H26: 1928.80 | I26: 1956.90 | J26: 1973.80 | K26: 1940 | L26: 1895 | M26: 0.15648
A27: 17 | B27: ALBK | C27: 38.55 | D27: 38.40 | E27: 37.65 | F27: 36.75 | G27: 36.00 | H27: 39.30 | I27: 40.05 | J27: 40.95 | K27: 39.15 | L27: 37.5 | M27: 50.07888
A28: 18 | B28: ALKEM | C28: 1940.95 | D28: 1948.50 | E28: 1919.00 | F28: 1897.05 | G28: 1867.55 | H28: 1970.45 | I28: 1999.95 | J28: 2021.90 | K28: 1978 | L28: 1926.55 | M28: 0.0763
A29: 19 | B29: ALLCARGO | C29: 124.4 | D29: 126.32 | E29: 122.08 | F29: 119.77 | G29: 115.53 | H29: 128.63 | I29: 132.87 | J29: 135.18 | K29: 130.55 | L29: 124 | M29: 1.6011
A30: 20 | B30: AMARAJABAT | C30: 808.4 | D30: 794.95 | E30: 769.90 | F30: 731.40 | G30: 706.35 | H30: 833.45 | I30: 858.50 | J30: 897.00 | K30: 820 | L30: 756.45 | M30: 26.26589
A31: 21 | B31: AMBUJACEM | C31: 208.05 | D31: 208.37 | E31: 203.93 | F31: 199.82 | G31: 195.38 | H31: 212.48 | I31: 216.92 | J31: 221.03 | K31: 212.8 | L31: 204.25 | M31: 17.1513
A32: 22 | B32: ANDHRABANK | C32: 34.95 | D32: 34.80 | E32: 34.25 | F32: 33.55 | G32: 33.00 | H32: 35.50 | I32: 36.05 | J32: 36.75 | K32: 35.35 | L32: 34.1 | M32: 42.83653
A33: 23 | B33: APLAPOLLO | C33: 1930.9 | D33: 1936.08 | E33: 1892.17 | F33: 1853.43 | G33: 1809.52 | H33: 1974.82 | I33: 2018.73 | J33: 2057.47 | K33: 1980 | L33: 1897.35 | M33: 0.20628
A34: 24 | B34: APLLTD | C34: 444.55 | D34: 449.43 | E34: 435.07 | F34: 425.58 | G34: 411.22 | H34: 458.92 | I34: 473.28 | J34: 482.77 | K34: 463.8 | L34: 439.95 | M34: 0.43554
A35: 25 | B35: APOLLOHOSP | C35: 983.5 | D35: 993.18 | E35: 967.32 | F35: 951.13 | G35: 925.27 | H35: 1009.37 | I35: 1035.23 | J35: 1051.42 | K35: 1019.05 | L35: 977 | M35: 2.54209
A36: 26 | B36: APOLLOTYRE | C36: 276 | D36: 278.53 | E36: 270.62 | F36: 265.23 | G36: 257.32 | H36: 283.92 | I36: 291.83 | J36: 297.22 | K36: 286.45 | L36: 273.15 | M36: 26.47317
A37: 27 | B37: ARVIND | C37: 390.35 | D37: 394.07 | E37: 384.38 | F37: 378.42 | G37: 368.73 | H37: 400.03 | I37: 409.72 | J37: 415.68 | K37: 403.75 | L37: 388.1 | M37: 16.19545
A38: 28 | B38: ASAHIINDIA | C38: 334.9 | D38: 334.30 | E38: 329.60 | F38: 324.30 | G38: 319.60 | H38: 339.60 | I38: 344.30 | J38: 349.60 | K38: 339 | L38: 329 | M38: 0.57621
A39: 29 | B39: ASHOKA | C39: 243.85 | D39: 249.92 | E39: 234.88 | F39: 225.92 | G39: 210.88 | H39: 258.88 | I39: 273.92 | J39: 282.88 | K39: 264.95 | L39: 240.95 | M39: 1.38134
A40: 30 | B40: ASHOKLEY | C40: 134.3 | D40: 138.53 | E40: 129.12 | F40: 123.93 | G40: 114.52 | H40: 143.72 | I40: 153.13 | J40: 158.32 | K40: 147.95 | L40: 133.35 | M40: 530.28114
A41: 31 | B41: ASIANPAINT | C41: 1301.7 | D41: 1302.42 | E41: 1290.13 | F41: 1278.57 | G41: 1266.28 | H41: 1313.98 | I41: 1326.27 | J41: 1337.83 | K41: 1314.7 | L41: 1290.85 | M41: 6.92442
A42: 32 | B42: ASTRAL | C42: 919.05 | D42: 927.85 | E42: 908.70 | F42: 898.35 | G42: 879.20 | H42: 938.20 | I42: 957.35 | J42: 967.70 | K42: 947 | L42: 917.5 | M42: 0.10248
A43: 33 | B43: ATUL | C43: 2787.75 | D43: 2801.07 | E43: 2727.73 | F43: 2667.72 | G43: 2594.38 | H43: 2861.08 | I43: 2934.42 | J43: 2994.43 | K43: 2874.4 | L43: 2741.05 | M43: 0.08833
A44: 34 | B44: AUBANK | C44: 704.6 | D44: 707.55 | E44: 694.40 | F44: 684.20 | G44: 671.05 | H44: 717.75 | I44: 730.90 | J44: 741.10 | K44: 720.7 | L44: 697.35 | M44: 2.77081
A45: 35 | B45: AUROPHARMA | C45: 565.5 | D45: 569.78 | E45: 558.17 | F45: 550.83 | G45: 539.22 | H45: 577.12 | I45: 588.73 | J45: 596.07 | K45: 581.4 | L45: 562.45 | M45: 10.32294
A46: 36 | B46: AVANTIFEED | C46: 1953 | D46: 1967.57 | E46: 1886.43 | F46: 1819.87 | G46: 1738.73 | H46: 2034.13 | I46: 2115.27 | J46: 2181.83 | K46: 2048.7 | L46: 1901 | M46: 1.35244
A47: 37 | B47: AXISBANK | C47: 526.85 | D47: 528.83 | E47: 519.87 | F47: 512.88 | G47: 503.92 | H47: 535.82 | I47: 544.78 | J47: 551.77 | K47: 537.8 | L47: 521.85 | M47: 42.588
A48: 38 | B48: BAJAJ-AUTO | C48: 2720.55 | D48: 2733.00 | E48: 2691.05 | F48: 2661.55 | G48: 2619.60 | H48: 2762.50 | I48: 2804.45 | J48: 2833.95 | K48: 2774.95 | L48: 2703.5 | M48: 3.9347
A49: 39 | B49: BAJAJCORP | C49: 450.5 | D49: 452.08 | E49: 446.17 | F49: 441.83 | G49: 435.92 | H49: 456.42 | I49: 462.33 | J49: 466.67 | K49: 458 | L49: 447.75 | M49: 0.24932
A50: 40 | B50: BAJAJELEC | C50: 596.65 | D50: 594.65 | E50: 584.05 | F50: 571.45 | G50: 560.85 | H50: 607.25 | I50: 617.85 | J50: 630.45 | K50: 605.25 | L50: 582.05 | M50: 2.69494
A51: 41 | B51: BAJAJFINSV | C51: 5722.05 | D51: 5705.95 | E51: 5636.90 | F51: 5551.75 | G51: 5482.70 | H51: 5791.10 | I51: 5860.15 | J51: 5945.30 | K51: 5775 | L51: 5620.8 | M51: 1.63075
A52: 42 | B52: BAJAJHIND | C52: 7.05 | D52: 7.18 | E52: 6.82 | F52: 6.58 | G52: 6.22 | H52: 7.42 | I52: 7.78 | J52: 8.02 | K52: 7.55 | L52: 6.95 | M52: 38.90314
A53: 43 | B53: BAJAJHLDNG | C53: 2721.55 | D53: 2725.08 | E53: 2686.47 | F53: 2651.38 | G53: 2612.77 | H53: 2760.17 | I53: 2798.78 | J53: 2833.87 | K53: 2763.7 | L53: 2690 | M53: 0.07388
A54: 44 | B54: BAJFINANCE | C54: 2105.45 | D54: 2111.67 | E54: 2074.33 | F54: 2043.22 | G54: 2005.88 | H54: 2142.78 | I54: 2180.12 | J54: 2211.23 | K54: 2149 | L54: 2080.55 | M54: 23.76823
A55: 45 | B55: BALKRISIND | C55: 1117.6 | D55: 1114.52 | E55: 1043.08 | F55: 968.57 | G55: 897.13 | H55: 1189.03 | I55: 1260.47 | J55: 1334.98 | K55: 1185.95 | L55: 1040 | M55: 12.42422
A56: 46 | B56: BALLARPUR | C56: 10.7 | D56: 10.90 | E56: 10.35 | F56: 10.00 | G56: 9.45 | H56: 11.25 | I56: 11.80 | J56: 12.15 | K56: 11.45 | L56: 10.55 | M56: 7.02217
A57: 47 | B57: BALMLAWRIE | C57: 209.3 | D57: 213.73 | E57: 203.07 | F57: 196.83 | G57: 186.17 | H57: 219.97 | I57: 230.63 | J57: 236.87 | K57: 224.4 | L57: 207.5 | M57: 0.6261
A58: 48 | B58: BALRAMCHIN | C58: 66 | D58: 65.67 | E58: 62.83 | F58: 59.67 | G58: 56.83 | H58: 68.83 | I58: 71.67 | J58: 74.83 | K58: 68.5 | L58: 62.5 | M58: 133.10292
A59: 49 | B59: BANKBARODA | C59: 129.9 | D59: 129.28 | E59: 126.77 | F59: 123.63 | G59: 121.12 | H59: 132.42 | I59: 134.93 | J59: 138.07 | K59: 131.8 | L59: 126.15 | M59: 115.17584
A60: 50 | B60: BANKINDIA | C60: 97.95 | D60: 97.55 | E60: 95.10 | F60: 92.25 | G60: 89.80 | H60: 100.40 | I60: 102.85 | J60: 105.70 | K60: 100 | L60: 94.7 | M60: 167.90634
A61: 51 | B61: BASF | C61: 2044.45 | D61: 2032.67 | E61: 2002.78 | F61: 1961.12 | G61: 1931.23 | H61: 2074.33 | I61: 2104.22 | J61: 2145.88 | K61: 2062.55 | L61: 1991 | M61: 0.08981
A62: 52 | B62: BATAINDIA | C62: 744.05 | D62: 748.55 | E62: 736.10 | F62: 728.15 | G62: 715.70 | H62: 756.50 | I62: 768.95 | J62: 776.90 | K62: 761 | L62: 740.6 | M62: 4.60288
A63: 53 | B63: BBTC | C63: 1500.1 | D63: 1500.37 | E63: 1475.73 | F63: 1451.37 | G63: 1426.73 | H63: 1524.73 | I63: 1549.37 | J63: 1573.73 | K63: 1525 | L63: 1476 | M63: 2.24766
A64: 54 | B64: BEL | C64: 117.3 | D64: 118.52 | E64: 115.53 | F64: 113.77 | G64: 110.78 | H64: 120.28 | I64: 123.27 | J64: 125.03 | K64: 121.5 | L64: 116.75 | M64: 30.58999
A65: 55 | B65: BEML | C65: 951.8 | D65: 972.25 | E65: 919.60 | F65: 887.40 | G65: 834.75 | H65: 1004.45 | I65: 1057.10 | J65: 1089.30 | K65: 1024.9 | L65: 940.05 | M65: 25.42399
A66: 56 | B66: BERGEPAINT | C66: 284.95 | D66: 282.97 | E66: 279.33 | F66: 273.72 | G66: 270.08 | H66: 288.58 | I66: 292.22 | J66: 297.83 | K66: 286.6 | L66: 277.35 | M66: 11.23602
A67: 57 | B67: BFUTILITIE | C67: 376.85 | D67: 381.33 | E67: 370.57 | F67: 364.28 | G67: 353.52 | H67: 387.62 | I67: 398.38 | J67: 404.67 | K67: 392.1 | L67: 375.05 | M67: 4.5731
A68: 58 | B68: BGRENERGY | C68: 92.25 | D68: 93.32 | E68: 90.93 | F68: 89.62 | G68: 87.23 | H68: 94.63 | I68: 97.02 | J68: 98.33 | K68: 95.7 | L68: 92 | M68: 0.45079
A69: 59 | B69: BHARATFIN | C69: 1162.6 | D69: 1167.80 | E69: 1153.80 | F69: 1145.00 | G69: 1131.00 | H69: 1176.60 | I69: 1190.60 | J69: 1199.40 | K69: 1181.8 | L69: 1159 | M69: 3.63058
A70: 60 | B70: BHARATFORG | C70: 694.25 | D70: 702.80 | E70: 682.00 | F70: 669.75 | G70: 648.95 | H70: 715.05 | I70: 735.85 | J70: 748.10 | K70: 723.6 | L70: 690.55 | M70: 9.64352
A71: 61 | B71: BHARTIARTL | C71: 360 | D71: 361.48 | E71: 353.72 | F71: 347.43 | G71: 339.67 | H71: 367.77 | I71: 375.53 | J71: 381.82 | K71: 369.25 | L71: 355.2 | M71: 49.41028
A72: 62 | B72: BHEL | C72: 75.05 | D72: 75.50 | E72: 74.20 | F72: 73.35 | G72: 72.05 | H72: 76.35 | I72: 77.65 | J72: 78.50 | K72: 76.8 | L72: 74.65 | M72: 36.93657
A73: 63 | B73: BHUSANSTL | C73: 29 | D73: 29.00 | E73: 29.00 | F73: 29.00 | G73: 29.00 | H73: 29.00 | I73: 29.00 | J73: 29.00 | K73: 29 | L73: 29 | M73: 4.3904
A74: 64 | B74: BIOCON | C74: 626.85 | D74: 631.63 | E74: 611.42 | F74: 595.98 | G74: 575.77 | H74: 647.07 | I74: 667.28 | J74: 682.72 | K74: 651.85 | L74: 616.2 | M74: 17.10169
A75: 65 | B75: BIRLACORPN | C75: 730.35 | D75: 736.55 | E75: 718.80 | F75: 707.25 | G75: 689.50 | H75: 748.10 | I75: 765.85 | J75: 777.40 | K75: 754.3 | L75: 725 | M75: 0.53248
A76: 66 | B76: BLISSGVS | C76: 183.55 | D76: 186.67 | E76: 176.98 | F76: 170.42 | G76: 160.73 | H76: 193.23 | I76: 202.92 | J76: 209.48 | K76: 196.35 | L76: 180.1 | M76: 3.40285
A77: 67 | B77: BLUEDART | C77: 3280.2 | D77: 3300.90 | E77: 3241.80 | F77: 3203.40 | G77: 3144.30 | H77: 3339.30 | I77: 3398.40 | J77: 3436.80 | K77: 3360 | L77: 3262.5 | M77: 0.38819
A78: 68 | B78: BLUESTARCO | C78: 702.95 | D78: 718.28 | E78: 684.67 | F78: 666.38 | G78: 632.77 | H78: 736.57 | I78: 770.18 | J78: 788.47 | K78: 751.9 | L78: 700 | M78: 0.80071
A79: 69 | B79: BOMDYEING | C79: 257.65 | D79: 261.82 | E79: 248.83 | F79: 240.02 | G79: 227.03 | H79: 270.63 | I79: 283.62 | J79: 292.43 | K79: 274.8 | L79: 253 | M79: 25.66942
A80: 70 | B80: BOSCHLTD | C80: 17621.45 | D80: 17657.10 | E80: 17514.35 | F80: 17407.25 | G80: 17264.50 | H80: 17764.20 | I80: 17906.95 | J80: 18014.05 | K80: 17799.85 | L80: 17550 | M80: 0.07335
A81: 71 | B81: BPCL | C81: 393.85 | D81: 391.35 | E81: 388.00 | F81: 382.15 | G81: 378.80 | H81: 397.20 | I81: 400.55 | J81: 406.40 | K81: 394.7 | L81: 385.5 | M81: 43.31525
A82: 72 | B82: BRFL | C82: 19.1 | D82: 19.10 | E82: 19.10 | F82: 19.10 | G82: 19.10 | H82: 19.10 | I82: 19.10 | J82: 19.10 | K82: 19.1 | L82: 19.1 | M82: 0.14775
A83: 73 | B83: BRIGADE | C83: 240.85 | D83: 245.42 | E83: 233.43 | F83: 226.02 | G83: 214.03 | H83: 252.83 | I83: 264.82 | J83: 272.23 | K83: 257.4 | L83: 238 | M83: 0.41534
A84: 74 | B84: BRITANNIA | C84: 5521.6 | D84: 5557.17 | E84: 5443.33 | F84: 5365.07 | G84: 5251.23 | H84: 5635.43 | I84: 5749.27 | J84: 5827.53 | K84: 5671 | L84: 5478.9 | M84: 1.1124
A85: 75 | B85: BSE | C85: 806.4 | D85: 809.82 | E85: 800.63 | F85: 794.87 | G85: 785.68 | H85: 815.58 | I85: 824.77 | J85: 830.53 | K85: 819 | L85: 804.05 | M85: 0.81513
A86: 77 | B86: CADILAHC | C86: 353.15 | D86: 358.52 | E86: 344.73 | F86: 336.32 | G86: 322.53 | H86: 366.93 | I86: 380.72 | J86: 389.13 | K86: 372.3 | L86: 350.1 | M86: 9.09271
A87: 78 | B87: CANBK | C87: 245.65 | D87: 243.53 | E87: 237.27 | F87: 228.88 | G87: 222.62 | H87: 251.92 | I87: 258.18 | J87: 266.57 | K87: 249.8 | L87: 235.15 | M87: 91.45305
A88: 79 | B88: CANFINHOME | C88: 352.05 | D88: 355.03 | E88: 345.07 | F88: 338.08 | G88: 328.12 | H88: 362.02 | I88: 371.98 | J88: 378.97 | K88: 365 | L88: 348.05 | M88: 11.05112
A89: 80 | B89: CAPF | C89: 551.8 | D89: 553.77 | E89: 544.53 | F89: 537.27 | G89: 528.03 | H89: 561.03 | I89: 570.27 | J89: 577.53 | K89: 563 | L89: 546.5 | M89: 4.35216
A90: 81 | B90: CAPLIPOINT | C90: 575.15 | D90: 577.75 | E90: 570.60 | F90: 566.05 | G90: 558.90 | H90: 582.30 | I90: 589.45 | J90: 594.00 | K90: 584.9 | L90: 573.2 | M90: 0.11109
A91: 82 | B91: CARBORUNIV | C91: 327.25 | D91: 332.83 | E91: 316.67 | F91: 306.08 | G91: 289.92 | H91: 343.42 | I91: 359.58 | J91: 370.17 | K91: 349 | L91: 322.25 | M91: 0.61012
A92: 83 | B92: CARERATING | C92: 1267.95 | D92: 1279.08 | E92: 1253.72 | F92: 1239.48 | G92: 1214.12 | H92: 1293.32 | I92: 1318.68 | J92: 1332.92 | K92: 1304.45 | L92: 1264.85 | M92: 0.17077
A93: 84 | B93: CASTROLIND | C93: 166.6 | D93: 168.62 | E93: 163.98 | F93: 161.37 | G93: 156.73 | H93: 171.23 | I93: 175.87 | J93: 178.48 | K93: 173.25 | L93: 166 | M93: 9.53891
A94: 85 | B94: CCL | C94: 298.75 | D94: 303.95 | E94: 288.90 | F94: 279.05 | G94: 264.00 | H94: 313.80 | I94: 328.85 | J94: 338.70 | K94: 319 | L94: 294.1 | M94: 2.34526
A95: 86 | B95: CDSL | C95: 272.7 | D95: 276.83 | E95: 266.87 | F95: 261.03 | G95: 251.07 | H95: 282.67 | I95: 292.63 | J95: 298.47 | K95: 286.8 | L95: 271 | M95: 4.22925
A96: 87 | B96: CEATLTD | C96: 1353.55 | D96: 1358.38 | E96: 1331.77 | F96: 1309.98 | G96: 1283.37 | H96: 1380.17 | I96: 1406.78 | J96: 1428.57 | K96: 1385 | L96: 1336.6 | M96: 4.95678
A97: 88 | B97: CENTRALBK | C97: 66.65 | D97: 67.02 | E97: 65.33 | F97: 64.02 | G97: 62.33 | H97: 68.33 | I97: 70.02 | J97: 71.33 | K97: 68.7 | L97: 65.7 | M97: 4.32423
A98: 89 | B98: CENTURYPLY | C98: 265.3 | D98: 264.75 | E98: 258.75 | F98: 252.20 | G98: 246.20 | H98: 271.30 | I98: 277.30 | J98: 283.85 | K98: 270.75 | L98: 258.2 | M98: 8.50903
A99: 90 | B99: CENTURYTEX | C99: 1006.95 | D99: 989.87 | E99: 943.73 | F99: 880.52 | G99: 834.38 | H99: 1053.08 | I99: 1099.22 | J99: 1162.43 | K99: 1036 | L99: 926.65 | M99: 57.08881
A100: 91 | B100: CERA | C100: 2840.25 | D100: 2843.40 | E100: 2746.85 | F100: 2653.45 | G100: 2556.90 | H100: 2936.80 | I100: 3033.35 | J100: 3126.75 | K100: 2939.95 | L100: 2750 | M100: 0.14901
A101: 92 | B101: CGPOWER | C101: 71.6 | D101: 72.10 | E101: 70.20 | F101: 68.80 | G101: 66.90 | H101: 73.50 | I101: 75.40 | J101: 76.80 | K101: 74 | L101: 70.7 | M101: 24.94374
A102: 93 | B102: CHAMBLFERT | C102: 160.5 | D102: 160.73 | E102: 156.87 | F102: 153.23 | G102: 149.37 | H102: 164.37 | I102: 168.23 | J102: 171.87 | K102: 164.6 | L102: 157.1 | M102: 6.15392
A103: 94 | B103: CHENNPETRO | C103: 281.9 | D103: 283.83 | E103: 276.92 | F103: 271.93 | G103: 265.02 | H103: 288.82 | I103: 295.73 | J103: 300.72 | K103: 290.75 | L103: 278.85 | M103: 4.4362
A104: 95 | B104: CHOLAFIN | C104: 1537.75 | D104: 1535.87 | E104: 1506.88 | F104: 1476.02 | G104: 1447.03 | H104: 1566.73 | I104: 1595.72 | J104: 1626.58 | K104: 1564.85 | L104: 1505 | M104: 3.41023
A105: 96 | B105: CIPLA | C105: 520.45 | D105: 524.42 | E105: 512.03 | F105: 503.62 | G105: 491.23 | H105: 532.83 | I105: 545.22 | J105: 553.63 | K105: 536.8 | L105: 516 | M105: 20.13336
A106: 97 | B106: COALINDIA | C106: 270.25 | D106: 268.78 | E106: 266.07 | F106: 261.88 | G106: 259.17 | H106: 272.97 | I106: 275.68 | J106: 279.87 | K106: 271.5 | L106: 264.6 | M106: 17.98554
A107: 98 | B107: COCHINSHIP | C107: 479.55 | D107: 481.58 | E107: 476.47 | F107: 473.38 | G107: 468.27 | H107: 484.67 | I107: 489.78 | J107: 492.87 | K107: 486.7 | L107: 478.5 | M107: 0.82905
A108: 99 | B108: COFFEEDAY | C108: 306.75 | D108: 305.03 | E108: 297.17 | F108: 287.58 | G108: 279.72 | H108: 314.62 | I108: 322.48 | J108: 332.07 | K108: 312.9 | L108: 295.45 | M108: 1.67192
A109: 100 | B109: COLPAL | C109: 1208.45 | D109: 1217.05 | E109: 1152.40 | F109: 1096.35 | G109: 1031.70 | H109: 1273.10 | I109: 1337.75 | J109: 1393.80 | K109: 1281.7 | L109: 1161 | M109: 44.99036
A110: 101 | B110: CONCOR | C110: 1388.25 | D110: 1392.38 | E110: 1379.42 | F110: 1370.58 | G110: 1357.62 | H110: 1401.22 | I110: 1414.18 | J110: 1423.02 | K110: 1405.35 | L110: 1383.55 | M110: 2.99578
A111: 102 | B111: COROMANDEL | C111: 446.75 | D111: 445.95 | E111: 438.00 | F111: 429.25 | G111: 421.30 | H111: 454.70 | I111: 462.65 | J111: 471.40 | K111: 453.9 | L111: 437.2 | M111: 0.49062
A112: 103 | B112: COX&KINGS | C112: 208.15 | D112: 207.53 | E112: 205.62 | F112: 203.08 | G112: 201.17 | H112: 210.07 | I112: 211.98 | J112: 214.52 | K112: 209.45 | L112: 205 | M112: 0.74679
A113: 104 | B113: CRISIL | C113: 1641.6 | D113: 1659.50 | E113: 1612.80 | F113: 1584.00 | G113: 1537.30 | H113: 1688.30 | I113: 1735.00 | J113: 1763.80 | K113: 1706.2 | L113: 1630.7 | M113: 0.13799
A114: 105 | B114: CROMPTON | C114: 241.2 | D114: 240.05 | E114: 235.15 | F114: 229.10 | G114: 224.20 | H114: 246.10 | I114: 251.00 | J114: 257.05 | K114: 244.95 | L114: 234 | M114: 5.82779
A115: 106 | B115: CUB | C115: 186.45 | D115: 186.72 | E115: 183.83 | F115: 181.22 | G115: 178.33 | H115: 189.33 | I115: 192.22 | J115: 194.83 | K115: 189.6 | L115: 184.1 | M115: 4.41325
A116: 107 | B116: CUMMINSIND | C116: 739.65 | D116: 736.33 | E116: 726.97 | F116: 714.28 | G116: 704.92 | H116: 749.02 | I116: 758.38 | J116: 771.07 | K116: 745.7 | L116: 723.65 | M116: 3.34718
A117: 108 | B117: CYIENT | C117: 765.05 | D117: 774.18 | E117: 746.37 | F117: 727.68 | G117: 699.87 | H117: 792.87 | I117: 820.68 | J117: 839.37 | K117: 802 | L117: 755.5 | M117: 1.42125
A118: 109 | B118: DABUR | C118: 373.15 | D118: 373.58 | E118: 369.67 | F118: 366.18 | G118: 362.27 | H118: 377.07 | I118: 380.98 | J118: 384.47 | K118: 377.5 | L118: 370.1 | M118: 14.35221
A119: 110 | B119: DBCORP | C119: 260.75 | D119: 257.25 | E119: 238.50 | F119: 216.25 | G119: 197.50 | H119: 279.50 | I119: 298.25 | J119: 320.50 | K119: 276 | L119: 235 | M119: 1.25423
A120: 111 | B120: DBL | C120: 1085.2 | D120: 1104.73 | E120: 1061.47 | F120: 1037.73 | G120: 994.47 | H120: 1128.47 | I120: 1171.73 | J120: 1195.47 | K120: 1148 | L120: 1081 | M120: 3.19408
A121: 112 | B121: DBREALTY | C121: 47.7 | D121: 48.95 | E121: 46.05 | F121: 44.40 | G121: 41.50 | H121: 50.60 | I121: 53.50 | J121: 55.15 | K121: 51.85 | L121: 47.3 | M121: 5.34991
A122: 113 | B122: DCAL | C122: 314.65 | D122: 317.65 | E122: 305.75 | F122: 296.85 | G122: 284.95 | H122: 326.55 | I122: 338.45 | J122: 347.35 | K122: 329.55 | L122: 308.75 | M122: 1.48271
A123: 114 | B123: DCBBANK | C123: 180.85 | D123: 181.53 | E123: 177.37 | F123: 173.88 | G123: 169.72 | H123: 185.02 | I123: 189.18 | J123: 192.67 | K123: 185.7 | L123: 178.05 | M123: 17.15469
A124: 115 | B124: DCMSHRIRAM | C124: 259.35 | D124: 264.98 | E124: 251.07 | F124: 242.78 | G124: 228.87 | H124: 273.27 | I124: 287.18 | J124: 295.47 | K124: 278.9 | L124: 256.7 | M124: 3.80493
A125: 116 | B125: DEEPAKFERT | C125: 307.7 | D125: 311.40 | E125: 302.80 | F125: 297.90 | G125: 289.30 | H125: 316.30 | I125: 324.90 | J125: 329.80 | K125: 320 | L125: 306.5 | M125: 0.74118
A126: 117 | B126: DELTACORP | C126: 231.75 | D126: 236.67 | E126: 225.08 | F126: 218.42 | G126: 206.83 | H126: 243.33 | I126: 254.92 | J126: 261.58 | K126: 248.25 | L126: 230 | M126: 19.52941
A127: 118 | B127: DEN | C127: 94.85 | D127: 95.82 | E127: 93.18 | F127: 91.52 | G127: 88.88 | H127: 97.48 | I127: 100.12 | J127: 101.78 | K127: 98.45 | L127: 94.15 | M127: 2.06789
A128: 119 | B128: DENABANK | C128: 16.25 | D128: 16.28 | E128: 16.02 | F128: 15.78 | G128: 15.52 | H128: 16.52 | I128: 16.78 | J128: 17.02 | K128: 16.55 | L128: 16.05 | M128: 9.34772
A129: 120 | B129: DHFL | C129: 614.6 | D129: 611.03 | E129: 595.67 | F129: 576.73 | G129: 561.37 | H129: 629.97 | I129: 645.33 | J129: 664.27 | K129: 626.4 | L129: 592.1 | M129: 66.61955
A130: 121 | B130: DISHTV | C130: 70.2 | D130: 70.18 | E130: 69.52 | F130: 68.83 | G130: 68.17 | H130: 70.87 | I130: 71.53 | J130: 72.22 | K130: 70.85 | L130: 69.5 | M130: 23.72352
A131: 122 | B131: DIVISLAB | C131: 1138.55 | D131: 1142.60 | E131: 1121.85 | F131: 1105.15 | G131: 1084.40 | H131: 1159.30 | I131: 1180.05 | J131: 1196.75 | K131: 1163.35 | L131: 1125.9 | M131: 2.08137
A132: 123 | B132: DIXON | C132: 3469.15 | D132: 3501.72 | E132: 3417.43 | F132: 3365.72 | G132: 3281.43 | H132: 3553.43 | I132: 3637.72 | J132: 3689.43 | K132: 3586 | L132: 3450 | M132: 0.06542
A133: 124 | B133: DLF | C133: 193.55 | D133: 194.60 | E133: 189.95 | F133: 186.35 | G133: 181.70 | H133: 198.20 | I133: 202.85 | J133: 206.45 | K133: 199.25 | L133: 191 | M133: 53.9429
A134: 125 | B134: DMART | C134: 1345.45 | D134: 1364.18 | E134: 1314.37 | F134: 1283.28 | G134: 1233.47 | H134: 1395.27 | I134: 1445.08 | J134: 1476.17 | K134: 1414 | L134: 1333.1 | M134: 18.91905
A135: 126 | B135: DREDGECORP | C135: 553.4 | D135: 562.60 | E135: 541.80 | F135: 530.20 | G135: 509.40 | H135: 574.20 | I135: 595.00 | J135: 606.60 | K135: 583.4 | L135: 551 | M135: 0.83838
A136: 127 | B136: DRREDDY | C136: 1893.05 | D136: 1923.68 | E136: 1856.37 | F136: 1819.68 | G136: 1752.37 | H136: 1960.37 | I136: 2027.68 | J136: 2064.37 | K136: 1991 | L136: 1887 | M136: 5.05736
A137: 128 | B137: ECLERX | C137: 1328.05 | D137: 1327.38 | E137: 1319.77 | F137: 1311.48 | G137: 1303.87 | H137: 1335.67 | I137: 1343.28 | J137: 1351.57 | K137: 1335 | L137: 1319.1 | M137: 0.16327
A138: 129 | B138: EDELWEISS | C138: 313.25 | D138: 314.65 | E138: 308.80 | F138: 304.35 | G138: 298.50 | H138: 319.10 | I138: 324.95 | J138: 329.40 | K138: 320.5 | L138: 310.2 | M138: 22.88244
A139: 130 | B139: EICHERMOT | C139: 29432.9 | D139: 29649.58 | E139: 29099.37 | F139: 28765.83 | G139: 28215.62 | H139: 29983.12 | I139: 30533.33 | J139: 30866.87 | K139: 30199.8 | L139: 29316.05 | M139: 0.29903
A140: 131 | B140: EIDPARRY | C140: 235.75 | D140: 238.15 | E140: 226.30 | F140: 216.85 | G140: 205.00 | H140: 247.60 | I140: 259.45 | J140: 268.90 | K140: 250 | L140: 228.7 | M140: 4.52681
A141: 132 | B141: EIHOTEL | C141: 161.85 | D141: 163.42 | E141: 159.53 | F141: 157.22 | G141: 153.33 | H141: 165.73 | I141: 169.62 | J141: 171.93 | K141: 167.3 | L141: 161.1 | M141: 1.33968
A142: 133 | B142: EMAMILTD | C142: 1014.6 | D142: 1023.55 | E142: 1002.15 | F142: 989.70 | G142: 968.30 | H142: 1036.00 | I142: 1057.40 | J142: 1069.85 | K142: 1044.95 | L142: 1011.1 | M142: 1.13588
A143: 134 | B143: ENDURANCE | C143: 1220.05 | D143: 1233.78 | E143: 1182.37 | F143: 1144.68 | G143: 1093.27 | H143: 1271.47 | I143: 1322.88 | J143: 1360.57 | K143: 1285.2 | L143: 1196.1 | M143: 0.66282
A144: 135 | B144: ENGINERSIN | C144: 139.2 | D144: 140.53 | E144: 136.07 | F144: 132.93 | G144: 128.47 | H144: 143.67 | I144: 148.13 | J144: 151.27 | K144: 145 | L144: 137.4 | M144: 14.21771
A145: 136 | B145: EQUITAS | C145: 160.2 | D145: 160.65 | E145: 156.15 | F145: 152.10 | G145: 147.60 | H145: 164.70 | I145: 169.20 | J145: 173.25 | K145: 165.15 | L145: 156.6 | M145: 16.21969
A146: 137 | B146: ERIS | C146: 773.25 | D146: 771.08 | E146: 759.17 | F146: 745.08 | G146: 733.17 | H146: 785.17 | I146: 797.08 | J146: 811.17 | K146: 783 | L146: 757 | M146: 0.14776
A147: 138 | B147: EROSMEDIA | C147: 128.7 | D147: 129.38 | E147: 125.92 | F147: 123.13 | G147: 119.67 | H147: 132.17 | I147: 135.63 | J147: 138.42 | K147: 132.85 | L147: 126.6 | M147: 4.56088
A148: 139 | B148: ESCORTS | C148: 881.95 | D148: 886.60 | E148: 864.35 | F148: 846.75 | G148: 824.50 | H148: 904.20 | I148: 926.45 | J148: 944.05 | K148: 908.85 | L148: 869 | M148: 24.13284
A149: 140 | B149: EVEREADY | C149: 254.6 | D149: 256.52 | E149: 249.78 | F149: 244.97 | G149: 238.23 | H149: 261.33 | I149: 268.07 | J149: 272.88 | K149: 263.25 | L149: 251.7 | M149: 0.89686
A150: 141 | B150: EXIDEIND | C150: 246.75 | D150: 248.83 | E150: 242.87 | F150: 238.98 | G150: 233.02 | H150: 252.72 | I150: 258.68 | J150: 262.57 | K150: 254.8 | L150: 244.95 | M150: 16.7286
A151: 142 | B151: FCONSUMER | C151: 54.8 | D151: 55.73 | E151: 53.37 | F151: 51.93 | G151: 49.57 | H151: 57.17 | I151: 59.53 | J151: 60.97 | K151: 58.1 | L151: 54.3 | M151: 32.45344
A152: 143 | B152: FEDERALBNK | C152: 80.9 | D152: 81.32 | E152: 79.68 | F152: 78.47 | G152: 76.83 | H152: 82.53 | I152: 84.17 | J152: 85.38 | K152: 82.95 | L152: 80.1 | M152: 128.91814
A153: 144 | B153: FINCABLES | C153: 669.25 | D153: 673.08 | E153: 664.17 | F153: 659.08 | G153: 650.17 | H153: 678.17 | I153: 687.08 | J153: 692.17 | K153: 682 | L153: 668 | M153: 0.23528
A154: 145 | B154: FINPIPE | C154: 635.2 | D154: 638.73 | E154: 631.47 | F154: 627.73 | G154: 620.47 | H154: 642.47 | I154: 649.73 | J154: 653.47 | K154: 646 | L154: 635 | M154: 0.64075
A155: 146 | B155: FLFL | C155: 421 | D155: 423.38 | E155: 401.57 | F155: 382.13 | G155: 360.32 | H155: 442.82 | I155: 464.63 | J155: 484.07 | K155: 445.2 | L155: 403.95 | M155: 9.43117
A156: 147 | B156: FSL | C156: 67.75 | D156: 68.85 | E156: 66.00 | F156: 64.25 | G156: 61.40 | H156: 70.60 | I156: 73.45 | J156: 75.20 | K156: 71.7 | L156: 67.1 | M156: 76.57185
A157: 148 | B157: GAIL | C157: 325.65 | D157: 323.85 | E157: 320.80 | F157: 315.95 | G157: 312.90 | H157: 328.70 | I157: 331.75 | J157: 336.60 | K157: 326.9 | L157: 319 | M157: 24.65405
A158: 149 | B158: GATI | C158: 99.15 | D158: 100.35 | E158: 97.20 | F158: 95.25 | G158: 92.10 | H158: 102.30 | I158: 105.45 | J158: 107.40 | K158: 103.5 | L158: 98.4 | M158: 5.46051
A159: 150 | B159: GDL | C159: 169.25 | D159: 168.62 | E159: 166.23 | F159: 163.22 | G159: 160.83 | H159: 171.63 | I159: 174.02 | J159: 177.03 | K159: 171 | L159: 165.6 | M159: 0.94216
A160: 151 | B160: GEPIL | C160: 844.6 | D160: 850.85 | E160: 833.85 | F160: 823.10 | G160: 806.10 | H160: 861.60 | I160: 878.60 | J160: 889.35 | K160: 867.85 | L160: 840.1 | M160: 0.15527
A161: 152 | B161: GESHIP | C161: 330.45 | D161: 336.05 | E161: 324.40 | F161: 318.35 | G161: 306.70 | H161: 342.10 | I161: 353.75 | J161: 359.80 | K161: 347.7 | L161: 330 | M161: 0.21855
A162: 153 | B162: GET&D | C162: 362.95 | D162: 367.55 | E162: 356.40 | F162: 349.85 | G162: 338.70 | H162: 374.10 | I162: 385.25 | J162: 391.80 | K162: 378.7 | L162: 361 | M162: 0.18853
A163: 154 | B163: GHCL | C163: 283.45 | D163: 286.92 | E163: 278.93 | F163: 274.42 | G163: 266.43 | H163: 291.43 | I163: 299.42 | J163: 303.93 | K163: 294.9 | L163: 282.4 | M163: 1.79594
A164: 155 | B164: GICRE | C164: 697.5 | D164: 699.62 | E164: 692.88 | F164: 688.27 | G164: 681.53 | H164: 704.23 | I164: 710.97 | J164: 715.58 | K164: 706.35 | L164: 695 | M164: 0.21021
A165: 156 | B165: GILLETTE | C165: 6498.45 | D165: 6494.52 | E165: 6424.03 | F165: 6349.62 | G165: 6279.13 | H165: 6568.93 | I165: 6639.42 | J165: 6713.83 | K165: 6565 | L165: 6420.1 | M165: 0.03277
A166: 157 | B166: GLAXO | C166: 2376.6 | D166: 2387.30 | E166: 2329.60 | F166: 2282.60 | G166: 2224.90 | H166: 2434.30 | I166: 2492.00 | J166: 2539.00 | K166: 2445 | L166: 2340.3 | M166: 0.08325
A167: 158 | B167: GLENMARK | C167: 500.85 | D167: 500.75 | E167: 493.60 | F167: 486.35 | G167: 479.20 | H167: 508.00 | I167: 515.15 | J167: 522.40 | K167: 507.9 | L167: 493.5 | M167: 13.14194
A168: 159 | B168: GMDCLTD | C168: 118.4 | D168: 119.50 | E168: 116.70 | F168: 115.00 | G168: 112.20 | H168: 121.20 | I168: 124.00 | J168: 125.70 | K168: 122.3 | L168: 117.8 | M168: 1.50792
A169: 160 | B169: GMRINFRA | C169: 17 | D169: 17.17 | E169: 16.68 | F169: 16.37 | G169: 15.88 | H169: 17.48 | I169: 17.97 | J169: 18.28 | K169: 17.65 | L169: 16.85 | M169: 204.94127
A170: 161 | B170: GNFC | C170: 473.75 | D170: 478.35 | E170: 462.90 | F170: 452.05 | G170: 436.60 | H170: 489.20 | I170: 504.65 | J170: 515.50 | K170: 493.8 | L170: 467.5 | M170: 11.11702
A171: 162 | B171: GODFRYPHLP | C171: 781.85 | D171: 780.85 | E171: 769.40 | F171: 756.95 | G171: 745.50 | H171: 793.30 | I171: 804.75 | J171: 817.20 | K171: 792.3 | L171: 768.4 | M171: 0.49099
A172: 163 | B172: GODREJAGRO | C172: 602.35 | D172: 601.47 | E172: 587.48 | F172: 572.62 | G172: 558.63 | H172: 616.33 | I172: 630.32 | J172: 645.18 | K172: 615.45 | L172: 586.6 | M172: 3.03391
A173: 164 | B173: GODREJCP | C173: 1080.85 | D173: 1086.40 | E173: 1070.60 | F173: 1060.35 | G173: 1044.55 | H173: 1096.65 | I173: 1112.45 | J173: 1122.70 | K173: 1102.2 | L173: 1076.15 | M173: 2.14836
A174: 165 | B174: GODREJIND | C174: 560.5 | D174: 563.40 | E174: 554.15 | F174: 547.80 | G174: 538.55 | H174: 569.75 | I174: 579.00 | J174: 585.35 | K174: 572.65 | L174: 557.05 | M174: 3.26989
A175: 166 | B175: GODREJPROP | C175: 747.55 | D175: 756.03 | E175: 729.57 | F175: 711.58 | G175: 685.12 | H175: 774.02 | I175: 800.48 | J175: 818.47 | K175: 782.5 | L175: 738.05 | M175: 1.58314
A176: 167 | B176: GPPL | C176: 125.45 | D176: 127.72 | E176: 122.98 | F176: 120.52 | G176: 115.78 | H176: 130.18 | I176: 134.92 | J176: 137.38 | K176: 132.45 | L176: 125.25 | M176: 1.35004
A177: 168 | B177: GRANULES | C177: 89 | D177: 90.87 | E177: 86.03 | F177: 83.07 | G177: 78.23 | H177: 93.83 | I177: 98.67 | J177: 101.63 | K177: 95.7 | L177: 87.9 | M177: 39.47398
A178: 169 | B178: GRAPHITE | C178: 799.7 | D178: 792.42 | E178: 772.33 | F178: 744.97 | G178: 724.88 | H178: 819.78 | I178: 839.87 | J178: 867.23 | K178: 812.5 | L178: 765.05 | M178: 26.20915
A179: 170 | B179: GRASIM | C179: 1035.85 | D179: 1045.75 | E179: 1020.15 | F179: 1004.45 | G179: 978.85 | H179: 1061.45 | I179: 1087.05 | J179: 1102.75 | K179: 1071.35 | L179: 1030.05 | M179: 9.37826
A180: 171 | B180: GREAVESCOT | C180: 127.2 | D180: 128.33 | E180: 125.47 | F180: 123.73 | G180: 120.87 | H180: 130.07 | I180: 132.93 | J180: 134.67 | K180: 131.2 | L180: 126.6 | M180: 4.34926
A181: 172 | B181: GREENPLY | C181: 279.95 | D181: 281.98 | E181: 272.97 | F181: 265.98 | G181: 256.97 | H181: 288.97 | I181: 297.98 | J181: 304.97 | K181: 291 | L181: 275 | M181: 0.58446
A182: 173 | B182: GRUH | C182: 657.9 | D182: 661.97 | E182: 648.93 | F182: 639.97 | G182: 626.93 | H182: 670.93 | I182: 683.97 | J182: 692.93 | K182: 675 | L182: 653 | M182: 0.87688
A183: 174 | B183: GSFC | C183: 115.25 | D183: 115.40 | E183: 112.45 | F183: 109.65 | G183: 106.70 | H183: 118.20 | I183: 121.15 | J183: 123.95 | K183: 118.35 | L183: 112.6 | M183: 21.54149
A184: 175 | B184: GSKCONS | C184: 5947.95 | D184: 5946.32 | E184: 5912.63 | F184: 5877.32 | G184: 5843.63 | H184: 5981.63 | I184: 6015.32 | J184: 6050.63 | K184: 5980 | L184: 5911 | M184: 0.0327
A185: 176 | B185: GSPL | C185: 175.05 | D185: 175.98 | E185: 170.72 | F185: 166.38 | G185: 161.12 | H185: 180.32 | I185: 185.58 | J185: 189.92 | K185: 181.25 | L185: 171.65 | M185: 7.27727
A186: 177 | B186: GUJALKALI | C186: 662.8 | D186: 653.58 | E186: 614.42 | F186: 566.03 | G186: 526.87 | H186: 701.97 | I186: 741.13 | J186: 789.52 | K186: 692.75 | L186: 605.2 | M186: 1.03675
A187: 178 | B187: GUJFLUORO | C187: 807.85 | D187: 816.08 | E187: 796.27 | F187: 784.68 | G187: 764.87 | H187: 827.67 | I187: 847.48 | J187: 859.07 | K187: 835.9 | L187: 804.5 | M187: 0.19217
A188: 179 | B188: GUJGASLTD | C188: 856.8 | D188: 855.00 | E188: 841.80 | F188: 826.80 | G188: 813.60 | H188: 870.00 | I188: 883.20 | J188: 898.20 | K188: 868.2 | L188: 840 | M188: 1.63318
A189: 180 | B189: GULFOILLUB | C189: 920.15 | D189: 924.05 | E189: 908.10 | F189: 896.05 | G189: 880.10 | H189: 936.10 | I189: 952.05 | J189: 964.10 | K189: 940 | L189: 912 | M189: 0.32252
A190: 181 | B190: GVKPIL | C190: 11.65 | D190: 12.13 | E190: 11.17 | F190: 10.68 | G190: 9.72 | H190: 12.62 | I190: 13.58 | J190: 14.07 | K190: 13.1 | L190: 11.65 | M190: 46.83572
A191: 182 | B191: HATHWAY | C191: 26.9 | D191: 27.57 | E191: 25.88 | F191: 24.87 | G191: 23.18 | H191: 28.58 | I191: 30.27 | J191: 31.28 | K191: 29.25 | L191: 26.55 | M191: 8.90452
A192: 183 | B192: HATSUN | C192: 790.15 | D192: 791.08 | E192: 784.22 | F192: 778.28 | G192: 771.42 | H192: 797.02 | I192: 803.88 | J192: 809.82 | K192: 797.95 | L192: 785.15 | M192: 0.23537
A193: 184 | B193: HAVELLS | C193: 524.2 | D193: 522.97 | E193: 515.93 | F193: 507.67 | G193: 500.63 | H193: 531.23 | I193: 538.27 | J193: 546.53 | K193: 530 | L193: 514.7 | M193: 11.35679
A194: 185 | B194: HCC | C194: 15.9 | D194: 15.97 | E194: 15.03 | F194: 14.17 | G194: 13.23 | H194: 16.83 | I194: 17.77 | J194: 18.63 | K194: 16.9 | L194: 15.1 | M194: 125.68734
A195: 186 | B195: HCL-INSYS | C195: 44.1 | D195: 44.60 | E195: 43.00 | F195: 41.90 | G195: 40.30 | H195: 45.70 | I195: 47.30 | J195: 48.40 | K195: 46.2 | L195: 43.5 | M195: 9.80816
A196: 187 | B196: HCLTECH | C196: 895.95 | D196: 894.50 | E196: 888.45 | F196: 880.95 | G196: 874.90 | H196: 902.00 | I196: 908.05 | J196: 915.55 | K196: 900.55 | L196: 887 | M196: 14.71238
A197: 188 | B197: HDFC | C197: 1819.2 | D197: 1831.90 | E197: 1803.80 | F197: 1788.40 | G197: 1760.30 | H197: 1847.30 | I197: 1875.40 | J197: 1890.80 | K197: 1860 | L197: 1816.5 | M197: 28.16934
A198: 189 | B198: HDFCBANK | C198: 1993.05 | D198: 2000.03 | E198: 1979.07 | F198: 1965.08 | G198: 1944.12 | H198: 2014.02 | I198: 2034.98 | J198: 2048.97 | K198: 2021 | L198: 1986.05 | M198: 12.12027
A199: 190 | B199: HDIL | C199: 26.25 | D199: 26.87 | E199: 25.23 | F199: 24.22 | G199: 22.58 | H199: 27.88 | I199: 29.52 | J199: 30.53 | K199: 28.5 | L199: 25.85 | M199: 69.71018
A200: 191 | B200: HEG | C200: 3311.2 | D200: 3343.40 | E200: 3227.80 | F200: 3144.40 | G200: 3028.80 | H200: 3426.80 | I200: 3542.40 | J200: 3625.80 | K200: 3459 | L200: 3260 | M200: 5.38194
A201: 192 | B201: HEIDELBERG | C201: 143.05 | D201: 143.55 | E201: 139.95 | F201: 136.85 | G201: 133.25 | H201: 146.65 | I201: 150.25 | J201: 153.35 | K201: 147.15 | L201: 140.45 | M201: 0.73022
A202: 193 | B202: HERITGFOOD | C202: 691.95 | D202: 692.27 | E202: 683.03 | F202: 674.12 | G202: 664.88 | H202: 701.18 | I202: 710.42 | J202: 719.33 | K202: 701.5 | L202: 683.35 | M202: 0.25977
A203: 194 | B203: HEROMOTOCO | C203: 3492.9 | D203: 3511.08 | E203: 3443.57 | F203: 3394.23 | G203: 3326.72 | H203: 3560.42 | I203: 3627.93 | J203: 3677.27 | K203: 3578.6 | L203: 3461.75 | M203: 2.58835
A204: 195 | B204: HEXAWARE | C204: 426.35 | D204: 425.38 | E204: 421.47 | F204: 416.58 | G204: 412.67 | H204: 430.27 | I204: 434.18 | J204: 439.07 | K204: 429.3 | L204: 420.5 | M204: 7.49649
A205: 196 | B205: HFCL | C205: 26.6 | D205: 26.72 | E205: 25.98 | F205: 25.37 | G205: 24.63 | H205: 27.33 | I205: 28.07 | J205: 28.68 | K205: 27.45 | L205: 26.1 | M205: 50.50873
A206: 197 | B206: HIMATSEIDE | C206: 344.4 | D206: 352.07 | E206: 334.33 | F206: 324.27 | G206: 306.53 | H206: 362.13 | I206: 379.87 | J206: 389.93 | K206: 369.8 | L206: 342 | M206: 0.47012
... 305 more rows

Sheet Bulk Deals
E6: Back To Main Page
A7: Subject : | B7: BULK DEAL | D7: =Main!B10 -> 2018-05-22
A9: Date | B9: Scrip code | C9: Scrip Name | D9: Client Name | E9: Buy / Sell | F9: Quantity Traded | G9: Trade Price / Wt.Avg.trade price | H9: Exchange
A10: 2018-05-21 | B10: 540697 | C10: AMFL | D10: SAGAR RAJESHBHAI JHAVERI | E10: SELL | F10: 80,000 | G10: 13 | H10: BSE
A11: 2018-05-21 | B11: 539545 | C11: APOORVA | D11: TIMES CAPITAL SERVICES PRIVATE LIMITED | E11: BUY | F11: 1,619,000 | G11: 3.3 | H11: BSE
A12: 2018-05-21 | B12: 539545 | C12: APOORVA | D12: VARIMA EXPORTS PVT LTD | E12: SELL | F12: 1,619,000 | G12: 3.3 | H12: BSE
A13: 2018-05-21 | B13: 539884 | C13: DARSHANORNA | D13: GUINESS SECURITIES LIMITED | E13: SELL | F13: 26,000 | G13: 90 | H13: BSE
A14: 2018-05-21 | B14: 539884 | C14: DARSHANORNA | D14: VEERAM VENDORS PRIVATELIMITED | E14: BUY | F14: 82,000 | G14: 90 | H14: BSE
A15: 2018-05-21 | B15: 536507 | C15: FLFL | D15: PIONEER INVESTMENT FUND | E15: SELL | F15: 3,895,435 | G15: 434 | H15: BSE
A16: 2018-05-21 | B16: 536507 | C16: FLFL | D16: SPECTACULAR INVESTMENTS PTE LIMITED | E16: BUY | F16: 15,581,743 | G16: 434 | H16: BSE
A17: 2018-05-21 | B17: 536507 | C17: FLFL | D17: PIONEER INVESTMENT FUND | E17: SELL | F17: 3,895,436 | G17: 434 | H17: BSE
A18: 2018-05-21 | B18: 536507 | C18: FLFL | D18: FUTURE IDEAS COMPANY LIMITED | E18: SELL | F18: 1,886,619 | G18: 435.12 | H18: BSE
A19: 2018-05-21 | B19: 536507 | C19: FLFL | D19: SUHANI TRADING AND INVESTMENT CONSULTANTS PRIVATE LIMITED | E19: SELL | F19: 5,924,082 | G19: 435.18 | H19: BSE
A20: 2018-05-21 | B20: 536507 | C20: FLFL | D20: BENNETT COLEMAN & CO LTD | E20: BUY | F20: 3,402,022 | G20: 438 | H20: BSE
A21: 2018-05-21 | B21: 536507 | C21: FLFL | D21: RYKA COMMERCIAL VENTURES PRIVATE LIMITED | E21: SELL | F21: 2,982,982 | G21: 435.54 | H21: BSE
A22: 2018-05-21 | B22: 526717 | C22: GOPALA | D22: KAMAL BABULAL AGARWAL | E22: SELL | F22: 52,405 | G22: 132.39 | H22: BSE
A23: 2018-05-21 | B23: 526717 | C23: GOPALA | D23: KAMAL BABULAL AGARWAL | E23: BUY | F23: 52,405 | G23: 133.1 | H23: BSE
A24: 2018-05-21 | B24: 532951 | C24: GSS | D24: VICKY RAJESH JHAVERI | E24: SELL | F24: 113,000 | G24: 105.03 | H24: BSE
A25: 2018-05-21 | B25: 532951 | C25: GSS | D25: VICKY RAJESH JHAVERI | E25: BUY | F25: 113,000 | G25: 104.17 | H25: BSE
A26: 2018-05-21 | B26: 532951 | C26: GSS | D26: NITIN GOEL | E26: SELL | F26: 91,125 | G26: 96 | H26: BSE
A27: 2018-05-21 | B27: 532951 | C27: GSS | D27: NITIN GOEL | E27: BUY | F27: 107,136 | G27: 104.24 | H27: BSE
A28: 2018-05-21 | B28: 511609 | C28: ISLCONSUL | D28: JAGRUTI ABHAY THAKKAR | E28: SELL | F28: 76,100 | G28: 22.46 | H28: BSE
A29: 2018-05-21 | B29: 538896 | C29: KANCHI | D29: ANKUSH KEDIA | E29: BUY | F29: 25,000 | G29: 305.69 | H29: BSE
A30: 2018-05-21 | B30: 590082 | C30: LOHIASEC | D30: WISDOM DISTRIBUTORS PRIVATE LIMITED | E30: SELL | F30: 48,321 | G30: 52.51 | H30: BSE
A31: 2018-05-21 | B31: 590082 | C31: LOHIASEC | D31: HALLMARK MERCHANTS PRIVATE LIMITED | E31: SELL | F31: 35,000 | G31: 52.5 | H31: BSE
A32: 2018-05-21 | B32: 590082 | C32: LOHIASEC | D32: UNITED MACHINE CO LIMITED | E32: BUY | F32: 41,677 | G32: 52.5 | H32: BSE
A33: 2018-05-21 | B33: 590082 | C33: LOHIASEC | D33: ICHAMATI INVESTMENTS PRIVATE LIMITED | E33: BUY | F33: 41,440 | G33: 52.5 | H33: BSE
A34: 2018-05-21 | B34: 539595 | C34: NATECO | D34: SARALABEN VASANTBHAI SAINDANE | E34: SELL | F34: 15,850 | G34: 89.58 | H34: BSE
A35: 2018-05-21 | B35: 539595 | C35: NATECO | D35: SARALABEN VASANTBHAI SAINDANE | E35: BUY | F35: 11,726 | G35: 89.27 | H35: BSE
A36: 2018-05-21 | B36: 539521 | C36: NAVIGANT | D36: AJESH DALAL | E36: BUY | F36: 20,000 | G36: 14.65 | H36: BSE
A37: 2018-05-21 | B37: 538742 | C37: PANACHE | D37: SURESH KUMAR AGARWAL | E37: SELL | F37: 31,100 | G37: 36.7 | H37: BSE
A38: 2018-05-21 | B38: 531215 | C38: RTSPOWR | D38: KARVA AUTOMART LTD | E38: SELL | F38: 112,000 | G38: 26.52 | H38: BSE
A39: 2018-05-21 | B39: 539410 | C39: SIENERGY | D39: ASPIRE EMERGING FUND | E39: BUY | F39: 300,000 | G39: 14.44 | H39: BSE
A40: 2018-05-21 | B40: 513005 | C40: VBCFERROQ | D40: PENINSULAR POWER VENTURES PRIVATE LIMITED | E40: SELL | F40: 32,050 | G40: 41.27 | H40: BSE
A41: 2018-05-21 | B41: ADFFOODS | C41: ADF Foods Limited | D41: M/S MENTOR CAPITAL LIMITED | E41: BUY | F41: 479,500 | G41: 263.72 | H41: NSE
A42: 2018-05-21 | B42: AMJUMBO | C42: A and M Jumbo Bags Ltd | D42: NIRAJ NAGINDAS SHAH HUF | E42: BUY | F42: 12,000 | G42: 87 | H42: NSE
A43: 2018-05-21 | B43: FIVECORE | C43: Five Core Electronics Ltd | D43: ECAP EQUITIES LIMITED | E43: BUY | F43: 70,000 | G43: 140.9 | H43: NSE
A44: 2018-05-21 | B44: FIVECORE | C44: Five Core Electronics Ltd | D44: PANCHSHEEL SECURITIES PVT. LTD. | E44: BUY | F44: 189,000 | G44: 142.67 | H44: NSE
A45: 2018-05-21 | B45: GSS | C45: GSS Infotech Limited | D45: GOEL NITIN | E45: BUY | F45: 664,307 | G45: 97.95 | H45: NSE
A46: 2018-05-21 | B46: GSS | C46: GSS Infotech Limited | D46: QE SECURITIES | E46: BUY | F46: 150,510 | G46: 100.27 | H46: NSE
A47: 2018-05-21 | B47: GSS | C47: GSS Infotech Limited | D47: SURESH SHERSINGH BIST | E47: BUY | F47: 74,142 | G47: 100.91 | H47: NSE
A48: 2018-05-21 | B48: GSS | C48: GSS Infotech Limited | D48: SYKES & RAY EQUITIES (I) LTD. | E48: BUY | F48: 49,613 | G48: 98.7 | H48: NSE
A49: 2018-05-21 | B49: INDOSTAR | C49: IndoStar Capital Fin Ltd | D49: BNP PARIBAS ARBITRAGE | E49: BUY | F49: 546,921 | G49: 589.09 | H49: NSE
A50: 2018-05-21 | B50: INDOSTAR | C50: IndoStar Capital Fin Ltd | D50: LENARCO LIMITED | E50: BUY | F50: 660,000 | G50: 594.49 | H50: NSE
A51: 2018-05-21 | B51: INDOSTAR | C51: IndoStar Capital Fin Ltd | D51: LENARCO LIMITED A/C LENARCO LIMITED | E51: BUY | F51: 730,000 | G51: 594 | H51: NSE
A52: 2018-05-21 | B52: INDOSTAR | C52: IndoStar Capital Fin Ltd | D52: NWB PLC AS TRUSTEE JUPITER INDIA FD | E52: BUY | F52: 493,059 | G52: 600 | H52: NSE
A53: 2018-05-21 | B53: IZMO | C53: IZMO Limited | D53: PREMAL PIYUSH SONI HUF | E53: BUY | F53: 71,054 | G53: 105.86 | H53: NSE
A54: 2018-05-21 | B54: JUSTDIAL | C54: Justdial Ltd. | D54: SHAASTRA SECURITIES TRADING PRIVATE LIMITED | E54: BUY | F54: 526,927 | G54: 414.76 | H54: NSE
A55: 2018-05-21 | B55: PENTAGOLD | C55: Penta Gold Limited | D55: NISHA BARUAH | E55: BUY | F55: 192,000 | G55: 37 | H55: NSE
A56: 2018-05-21 | B56: RCOM | C56: Reliance Comm. Ltd. | D56: SHAASTRA SECURITIES TRADING PRIVATE LIMITED | E56: BUY | F56: 31,954,401 | G56: 14.4 | H56: NSE
A57: 2018-05-21 | B57: SPTL | C57: Sintex Plastics Tech Ltd | D57: MORGAN STANLEY FRANCE SAS | E57: BUY | F57: 4,490,918 | G57: 51.98 | H57: NSE
A58: 2018-05-21 | B58: STAR | C58: Strides Shasun Limited | D58: CHANDARANA INTERMEDIARIES BROKERS P. LTD | E58: BUY | F58: 620,266 | G58: 347.03 | H58: NSE
A59: 2018-05-21 | B59: STAR | C59: Strides Shasun Limited | D59: N.K. SECURITIES | E59: BUY | F59: 521,690 | G59: 354.42 | H59: NSE
A60: 2018-05-21 | B60: STAR | C60: Strides Shasun Limited | D60: WAY2WEALTH SECURITIES P LTD | E60: BUY | F60: 573,652 | G60: 355.73 | H60: NSE
A61: 2018-05-21 | B61: ADFFOODS | C61: ADF Foods Limited | D61: BHAVESH RAMESH THAKKAR | E61: SELL | F61: 425,000 | G61: 264 | H61: NSE
A62: 2018-05-21 | B62: FIVECORE | C62: Five Core Electronics Ltd | D62: SOMANI SHYAM SUNDER | E62: SELL | F62: 125,000 | G62: 141.15 | H62: NSE
A63: 2018-05-21 | B63: GSS | C63: GSS Infotech Limited | D63: GOEL NITIN | E63: SELL | F63: 664,307 | G63: 99.4 | H63: NSE
A64: 2018-05-21 | B64: GSS | C64: GSS Infotech Limited | D64: QE SECURITIES | E64: SELL | F64: 150,510 | G64: 100.17 | H64: NSE
A65: 2018-05-21 | B65: GSS | C65: GSS Infotech Limited | D65: SURESH SHERSINGH BIST | E65: SELL | F65: 89,142 | G65: 101.47 | H65: NSE
A66: 2018-05-21 | B66: GSS | C66: GSS Infotech Limited | D66: SYKES & RAY EQUITIES (I) LTD. | E66: SELL | F66: 96,084 | G66: 98.9 | H66: NSE
A67: 2018-05-21 | B67: INDOSTAR | C67: IndoStar Capital Fin Ltd | D67: BNP PARIBAS ARBITRAGE | E67: SELL | F67: 292,475 | G67: 595.14 | H67: NSE
A68: 2018-05-21 | B68: IZMO | C68: IZMO Limited | D68: PREMAL PIYUSH SONI HUF | E68: SELL | F68: 44,126 | G68: 102.73 | H68: NSE
A69: 2018-05-21 | B69: JUSTDIAL | C69: Justdial Ltd. | D69: SHAASTRA SECURITIES TRADING PRIVATE LIMITED | E69: SELL | F69: 526,927 | G69: 415.1 | H69: NSE
A70: 2018-05-21 | B70: PENTAGOLD | C70: Penta Gold Limited | D70: DHARA TECHNOSYSTEM LLP | E70: SELL | F70: 192,000 | G70: 37 | H70: NSE
A71: 2018-05-21 | B71: RCOM | C71: Reliance Comm. Ltd. | D71: SHAASTRA SECURITIES TRADING PRIVATE LIMITED | E71: SELL | F71: 31,954,401 | G71: 14.42 | H71: NSE
A72: 2018-05-21 | B72: RCOM | C72: Reliance Comm. Ltd. | D72: SISTEMA SHYAM TELESERVICES LIMITED | E72: SELL | F72: 25,000,000 | G72: 14.36 | H72: NSE
A73: 2018-05-21 | B73: RUCHISOYA | C73: Ruchi Soya Inds Ltd. | D73: ANKESH DINESH SHAHRA | E73: SELL | F73: 3,362,921 | G73: 9.8 | H73: NSE
A74: 2018-05-21 | B74: STAR | C74: Strides Shasun Limited | D74: CHANDARANA INTERMEDIARIES BROKERS P. LTD | E74: SELL | F74: 587,036 | G74: 347.48 | H74: NSE
A75: 2018-05-21 | B75: STAR | C75: Strides Shasun Limited | D75: N.K. SECURITIES | E75: SELL | F75: 521,690 | G75: 354.57 | H75: NSE
A76: 2018-05-21 | B76: STAR | C76: Strides Shasun Limited | D76: WAY2WEALTH SECURITIES P LTD | E76: SELL | F76: 573,652 | G76: 355.91 | H76: NSE

Sheet Call Tracker (Equity & F&O)
M5: Back To Main Page
A6: Retail Research Technical Calls & Fundamental Performance Report for the month of May -2018
M7: =Main!B10 -> 2018-05-22
B8: Positional Call
A9: Sr.no | B9: Date | D9: Company | E9: Rec | F9: Rec Price | G9: Stop Loss*** | H9: Call Closed At | I9: Target | J9: Remark | K9: Profit / Loss per Share | L9: Gain / Loss % | M9: Status | N9: Closed Date | O9: NSE Closed Price
A10: 1 | B10: 2018-02-12 | D10: ITC | E10: Buy | F10: 271.5 | G10: 250 | H10: 285 | I10: 310 | J10: Profit of Rs.13.5/- | K10: =H10-F10 -> 13.5 | L10: =K10/F10 -> 4.97% | M10: Successful | N10: 2018-05-02 | R10: P
A11: 1 | B11: 2018-04-05 | D11: RECLTD | E11: Buy | F11: 129 | G11: 122 | H11: 121 | I11: 140 | J11: Loss of Rs.8/- | K11: =H11-F11 -> -8 | L11: =K11/F11 -> -6.20% | M11: Unsuccessful | N11: 2018-05-10 | R11: R
A12: 2 | B12: 2018-04-11 | D12: FEDERALBNK | E12: Buy | F12: 98.75 | G12: 94 | H12: 103.45 | I12: 106-109 | J12: Profit of Rs.4.7/- | K12: =H12-F12 -> 4.7 | L12: =K12/F12 -> 4.76% | M12: Successful | N12: 2019-05-09 | R12: R
A13: 4 | B13: 2018-04-18 | D13: BHEL | E13: Buy$ | F13: =(81+88.5)/2 -> 84.75 | G13: 79 | H13: 78.75 | I13: 100 | J13: Loss of Rs.6/- | K13: =H13-F13 -> -6 | L13: =K13/F13 -> -7.08% | M13: Unsuccessful | N13: 2018-05-14 | R13: A
A14: 5 | B14: 2018-04-20 | D14: HINDZINC | E14: Sell | F14: 325.5 | G14: 340 | H14: 314.5 | I14: 310-305 | J14: Profit of Rs.11/- | K14: =F14-H14 -> 11 | L14: =K14/F14 -> 3.38% | M14: Successful | N14: 2018-05-02 | R14: H
A15: 6 | B15: 2018-04-26 | D15: HCLTECH | E15: Buy | F15: 1060 | G15: 1018 | H15: 1015 | I15: 1130-1150 | J15: Loss of Rs.45/- | K15: =H15-F15 -> -45 | L15: -4.25% | M15: Unsuccessful | N15: 2018-05-02 | R15: H
A16: 7 | B16: 2018-04-27 | D16: PFC | E16: Buy | F16: 85.8 | G16: 82.5 | H16: 89.45 | I16: 91-93 | J16: Profit of Rs.3.65/- | K16: =H16-F16 -> 3.65 | L16: 4.25% | M16: Successful | N16: 2018-05-02 | R16: H
A17: 8 | B17: 2018-04-30 | D17: HEXAWARE | E17: Sell | F17: 447 | G17: 464 | H17: 428.5 | I17: 410-400 | J17: Profit of Rs.18.5/- | K17: =F17-H17 -> 18.5 | L17: 4.14% | M17: Successful | N17: 2018-05-05 | R17: H
A18: 9 | B18: 2018-05-04 | D18: GLENMARK | E18: Buy | F18: 544 | G18: 520 | H18: 513 | I18: 580-585 | J18: Loss of Rs.31/- | K18: =H18-F18 -> -31 | L18: -5.70% | M18: Unsuccessful | N18: 2018-05-11 | R18: R
A19: 10 | B19: 2018-05-04 | D19: L&TFH | E19: Buy | F19: 177.5 | G19: 169 | H19: 183.25 | I19: 190-195 | J19: Profit of Rs.5.75/- | K19: =H19-F19 -> 5.75 | L19: 3.24% | M19: Successful | N19: 2018-05-08 | R19: H
A20: 11 | B20: 2018-05-04 | D20: HCLTECH | E20: Buy | F20: 920-930 | G20: 890 | I20: 980-990 | J20: Open | O20: =VLOOKUP(D20,Sheet2!$A$1:M2159,6,0) -> 895.95 | R20: H
A21: 12 | B21: 2018-05-07 | D21: ADANIPORTS | E21: Sell | F21: 415 | G21: 437 | H21: 397.5 | I21: 380-370 | J21: Profit of Rs.17.5/- | K21: =F21-H21 -> 17.5 | L21: =K21/F21 -> 4.22% | M21: Successful | N21: 2018-05-15 | R21: H
A22: 13 | B22: 2018-05-08 | D22: ADVENZYMES | E22: Buy | F22: 252 | G22: 239 | H22: 239 | I22: 270-272 | J22: Loss of Rs.13/- | K22: =H22-F22 -> -13 | L22: =K22/F22 -> -5.16% | M22: Unsuccessful | N22: 2018-05-10 | R22: R
A23: 14 | B23: 2018-05-09 | D23: INFRATEL | E23: Buy | F23: 325-328 | G23: 310 | I23: 355-360 | J23: Open | O23: =VLOOKUP(D23,Sheet2!$A$1:M2160,6,0) -> 321.7 | R23: R
A24: 15 | B24: 2018-05-11 | D24: CHENNPETRO | E24: Buy | F24: 299.5 | G24: 286 | H24: 283.5 | I24: 325-330 | J24: Loss of Rs.16/- | K24: =H24-F24 -> -16 | L24: =K24/F24 -> -5.34% | M24: Unsuccessful | N24: 2018-05-21 | R24: H
A25: 16 | B25: 2018-05-18 | D25: VOLTAS | E25: Buy$ | F25: 570.25 | G25: 534 | I25: 650 | J25: Open | O25: =VLOOKUP(D25,Sheet2!$A$1:M2162,6,0) -> 543.65 | R25: H
A26: 17 | B26: 2018-05-15 | D26: AVANTIFEED | E26: Buy | F26: 2172.5 | G26: 2090 | H26: 2020 | I26: 2320-2340 | J26: Loss of Rs.152.5/- | K26: =H26-F26 -> -152.5 | L26: =K26/F26 -> -7.02% | M26: Unsuccessful | N26: 2018-05-16 | R26: R
A27: 18 | B27: 2018-05-16 | D27: PIDILITIND | E27: Sell | F27: 1188-1094 | G27: 1140 | I27: 1040-1020 | J27: Open | R27: H
A28: 19 | B28: 2018-05-17 | D28: ALLCARGO | E28: Buy | F28: 130.5-131.5 | G28: 124 | I28: 142-145 | J28: Open | R28: H
A29: 20 | B29: 2018-05-21 | D29: UPL | E29: Buy | F29: 687-692 | G29: 662 | I29: 735-745 | J29: Open | R29: H
A31: CLBS = Closing Basis *** | F31: Reinitiated $
A32: Dividend adjusted <> | F32: Revised stoploss #
A34: Master Trade High Risk
A35: Sr.no | B35: Date | D35: Company | E35: Rec | F35: Rec Price | G35: Stop Loss | H35: Call Closed At | I35: Target | J35: Remark | K35: Profit / Loss per share | L35: Gain / Loss per Lot | M35: Lot | N35: Status | O35: Closed Date
A36: 1 | B36: 2018-05-10 | D36: AXISBANK MAY FUT | E36: Sell | F36: 548.25 | G36: 563 | H36: 563 | I36: 525 | J36: Loss of 8.75/- | K36: =F36-H36 -> -14.75 | L36: =M36*K36 -> -17700 | M36: 1200 | N36: Unsuccessful | O36: 2018-05-15 | R36: H
D37: AXISBANK MAY 530 PE | E37: Sell | F37: 9.5 | H37: 3.5 | K37: 6 | L37: =M36*K37 -> 7200
A44: Master Trade Medium Risk
A45: Sr.no | B45: Date | D45: Company | E45: Rec | F45: Rec Price | G45: Stop Loss | H45: Call Closed At | I45: Target | J45: Remark | K45: Profit/Loss per lot | L45: Gain / Loss per Lot | M45: Lot | N45: Status | O45: Closed Date
A46: 1 | B46: 2018-05-05 | D46: NIFTY MAY 10550 PE | E46: Buy | F46: 90.5 | G46: 58 | H46: 58.00 | I46: 130-150 | J46: Loss of Rs.32.5/- | K46: =H46-F46 -> -32.50 | L46: =K46*M46 -> -2437.50 | M46: 75 | N46: Unsuccessful | O46: 2018-05-11 | R46: H
A47: 2 | B47: 2018-05-09 | D47: JUBLFOOD MAT 2500 PE | E47: Buy | F47: 50 | G47: 30 | H47: 63.5 | I47: 80-90 | J47: Profit of Rs.13.5/- | K47: 13.50 | L47: 3375.00 | M47: 250 | N47: Successful | O47: 2018-05-09 | R47: H
A48: 3 | B48: 2018-05-10 | D48: BankNifty 10 May 26100 PE | E48: Buy | F48: 18 | H48: 0 | I48: 50 | J48: Loss of Rs.18/- | K48: -18.00 | L48: -720.00 | M48: 40 | N48: Unsuccessful | O48: 2018-05-10 | R48: A
A49: 4 | B49: 2018-05-15 | D49: DRREDDY MAY 1950 PE | E49: Buy | F49: 36.5 | G49: 16 | H49: 44 | I49: 65-70 | J49: Profit of Rs.7.5/- | K49: 7.50 | L49: 1875.00 | M49: 250 | N49: Successful | O49: 2018-05-17 | R49: H
A50: 5 | B50: 2018-05-16 | D50: AMBUJACEM MAY 220 CE | E50: Buy | F50: 2.55 | H50: 3.85 | I50: 5 | J50: Profit of Rs.1.30/- | K50: 1.30 | L50: 3250.00 | M50: 2500 | N50: Successful | O50: 2018-05-17 | R50: H
A51: 6 | B51: 2018-05-21 | D51: VEDL MAY 270 PE | E51: Buy | F51: 5.75 | G51: 2 | H51: 7.75 | I51: 10-12.0 | J51: Profit of Rs.2/- | K51: 2.00 | L51: 3500.00 | M51: 1750 | N51: Successful | O51: 2018-05-21 | R51: H
B53: Smart Delivery Trade
A54: Sr.no | B54: Date | D54: Company | E54: Rec | F54: Rec Price | G54: Stop Loss*** | H54: Call Closed At | I54: Target | J54: Remark | K54: Profit / Loss per Share | L54: Gain / Loss % | M54: Status | N54: Closed Date | O54: NSE Closed Price
A55: 1 | B55: 2018-02-15 | D55: ACC | E55: Buy$ | F55: 1585 | G55: 1520 | H55: 1520 | I55: 1750 | J55: Loss of Rs.65/- | K55: =H55-F55 -> -65 | L55: =K55/F55 -> -4.10% | M55: Unsuccessful | N55: 2018-05-08 | R55: R
A56: 2 | B56: 2018-04-09 | D56: SUNPHARMA | E56: Buy | F56: 515.5 | G56: 500 | H56: 536 | I56: 540-545 | J56: Profit of Rs.20.5/- | K56: 20.5 | L56: 3.98% | M56: Successful | N56: 2018-05-03 | R56: R
A57: 3 | B57: 2018-04-23 | D57: TATACOMM | E57: Buy | F57: 631 | G57: 615 | H57: 608 | I57: 660-665 | J57: Loss of Rs.23/- | K57: -23 | L57: -3.65% | M57: Unsuccessful | N57: 2018-05-07 | R57: R
A58: 4 | B58: 2018-04-24 | D58: IOC | E58: Buy | F58: 162 | G58: 157 | H58: 166.75 | I58: 170-172 | J58: Profit of Rs.4.75/- | K58: 4.75 | L58: 2.93% | M58: Successful | N58: 2018-05-08 | R58: H
A59: 5 | B59: 2018-04-25 | D59: NTPC | E59: Buy | F59: 169.5 | G59: 164.8 | H59: 176 | I59: 177-180 | J59: Profit of Rs.6.5/- | K59: 6.5 | L59: 3.83% | M59: Successful | N59: 2018-05-03 | R59: H
A60: 6 | B60: 2018-04-30 | D60: AMBUJACEM | E60: Buy | F60: 251 | G60: 240 | H60: 238.5 | I60: 265-270 | J60: Loss of Rs.12.5/- | K60: -12.5 | L60: -4.98% | M60: Unsuccessful | N60: 2018-05-05 | R60: H
A61: 7 | B61: 2018-04-30 | D61: RAMCOCEM | E61: Buy | F61: 822.5 | G61: 805 | H61: 843 | I61: 850 | J61: Profit of Rs.20.5/- | K61: 20.5 | L61: 2.49% | M61: Successful | N61: 2018-05-08 | R61: R
A62: 8 | B62: 2018-05-02 | D62: DHFL | E62: Sell | F62: 637.5 | G62: 662 | H62: 663.5 | I62: 610-600 | J62: Loss of Rs.26/- | K62: =F62-H62 -> -26 | L62: -4.08% | M62: Unsuccessful | N62: 2018-05-02 | R62: H
A63: 9 | B63: 2018-05-02 | D63: DELTACORP | E63: Buy | F63: 272 | G63: 263 | H63: 263 | I63: 283-285 | J63: Loss of Rs.9/- | K63: =H63-F63 -> -9 | L63: -3.31% | M63: Unsuccessful | N63: 2018-05-02 | R63: R
A64: 10 | B64: 2018-05-03 | D64: PFC | E64: Buy | F64: 85.1 | G64: 82.5 | H64: 82 | I64: 89-90 | J64: Loss of Rs.3.1/- | K64: -3.1 | L64: =K64/F64 -> -3.64% | M64: Unsuccessful | N64: 2018-05-14 | R64: H
A65: 11 | B65: 2018-05-04 | D65: RADICO | E65: Buy | F65: 393 | G65: 382 | H65: 405.5 | I65: 412-416 | J65: Profit of Rs.12.5/- | K65: 12.5 | L65: =K65/F65 -> 3.18% | M65: Successful | N65: 2018-05-07 | R65: R
A66: 12 | B66: 2018-05-08 | D66: TATAMOTORS | E66: Buy | F66: 331.5 | G66: 318 | H66: 343.5 | I66: 350-355 | J66: Profit of Rs.12/- | K66: 12 | L66: 3.62% | M66: Successful | N66: 2018-05-10 | R66: H
A67: 13 | B67: 2018-05-09 | D67: SUNPHARMA | E67: Buy | F67: 512 | G67: 498 | H67: 493 | I67: 535-540 | J67: Loss of Rs.19/- | K67: -19 | L67: -3.71% | M67: Unsuccessful | N67: 2018-05-11 | R67: R
A68: 14 | B68: 2018-05-09 | D68: CIPLA | E68: Buy | F68: 589 | G68: 577 | H68: 572 | I68: 615-620 | J68: Loss of Rs.17/- | K68: -17 | L68: -2.89% | M68: Unsuccessful | N68: 2018-05-11 | R68: H
A69: 15 | B69: 2018-05-14 | D69: INDIGO | E69: Buy | F69: 1164 | G69: 1130 | H69: 1215 | I69: 1215-1225 | J69: Profit of Rs.51/- | K69: =H69-F69 -> 51 | L69: 4.38% | M69: Successful | N69: 2018-05-15 | R69: R
A70: 16 | B70: 2018-05-15 | D70: ACC | E70: Buy<> | F70: 1413 | G70: 1363 | H70: 1355 | I70: 1490-1510 | J70: Loss of Rs.58/- | K70: -58 | L70: -4.10% | M70: Unsuccessful | N70: 2018-05-21 | R70: H
A71: 17 | B71: 2018-05-15 | D71: RADICO | E71: Buy | F71: 403 | G71: 390 | H71: 417.5 | I71: 425-430 | J71: Profit of Rs.14.5/- | K71: =H71-F71 -> 14.5 | L71: 3.60% | M71: Successful | N71: 2018-05-17 | R71: R
A72: 18 | B72: 2018-05-15 | D72: GHCL | E72: Buy | F72: 283 | G72: 274 | H72: 292.75 | I72: 295-300 | J72: Profit of Rs.9.75/- | K72: =H72-F72 -> 9.75 | L72: 3.45% | M72: Successful | N72: 2018-05-15 | R72: R
A73: 19 | B73: 2018-05-16 | D73: GHCL | E73: Buy | F73: 282 | G73: 274 | H73: 290.5 | I73: 295-300 | J73: Profit of Rs.8.5/- | K73: =H73-F73 -> 8.5 | L73: 3.01% | M73: Successful | N73: 2018-05-16 | R73: R
A74: 20 | B74: 2018-05-17 | D74: DLF | E74: Buy | F74: 205 | G74: 197 | H74: 197 | I74: 215 | J74: Loss of Rs.8/- | K74: -8 | L74: -3.90% | M74: Unsuccessful | N74: 2018-05-18 | R74: H
A75: 21 | B75: 2018-05-17 | D75: TATAMOTORS | E75: Buy | F75: 315.5 | G75: 305 | H75: 305 | I75: 330-335 | J75: Loss of Rs.10.5/- | K75: -10.5 | L75: -3.33% | M75: Unsuccessful | N75: 2018-05-18 | R75: R
A76: 22 | B76: 2018-05-18 | D76: CENTURYTEX | E76: Buy | F76: 1072.5 | G76: 1040 | H76: 1005 | I76: 1130-1140 | J76: Loss of Rs.67.5/- | K76: -67.5 | L76: -6.29% | M76: Unsuccessful | N76: 2018-05-21 | R76: R
A77: 23 | B77: 2018-05-21 | D77: GLENMARK | E77: Buy | F77: 500-504 | G77: 486 | I77: 525-530 | J77: Open | R77: R
A78: 24 | B78: 2018-05-21 | D78: CIPLA | E78: Buy | F78: 532-536 | G78: 518 | I78: 560-570 | J78: Open | R78: H
A81: CLBS = Closing Basis *** | F81: Reinitiated $
A82: Dividend adjusted <> | F82: Revised stoploss #
B85: Momentum Call
A86: Sr.no | B86: Date | D86: Company | E86: Rec | F86: Rec Price | G86: Stop Loss | H86: Call Closed At | I86: Target | J86: Remark | K86: Profit / Loss per Share/Lot | L86: Gain / Loss % | M86: Gain / Loss per Lot | N86: Lot | O86: Status | P86: Closed Date | Q86: NSE Closed Price
A87: 1 | B87: 2018-04-30 | D87: RAIN | E87: Buy | F87: 326.5 | G87: 315 | H87: 315 | I87: 340-345 | J87: Loss of Rs.11.5/- | K87: =H87-F87 -> -11.5 | L87: =K87/F87 -> -3.52% | O87: Unsuccessful | P87: 2018-05-02 | R87: R
A88: 2 | B88: 2018-05-02 | D88: TATACHEM MAY FUT | E88: Buy | F88: 785 | G88: 769 | H88: 771 | I88: 800-805 | J88: Loss of Rs.14/- | K88: -14 | M88: =N88*K88 -> -10500 | N88: 750 | O88: Unsuccessful | P88: 2018-05-02 | R88: H
A89: 3 | B89: 2018-05-02 | D89: EXIDEIND | E89: Buy | F89: 251 | G89: 246 | H89: 256.5 | I89: 260-262 | J89: Profit of Rs.5.5/- | K89: 5.5 | L89: =K89/F89 -> 2.19% | O89: Successful | P89: 2018-05-07 | R89: H
A90: 4 | B90: 2018-05-03 | D90: ARVIND | E90: Buy | F90: 411 | G90: 402 | H90: 419 | I90: 423-426 | J90: Profit of Rs.8/- | K90: 8 | L90: =K90/F90 -> 1.95% | O90: Successful | P90: 2018-05-08 | R90: R
A91: 5 | B91: 2018-05-04 | D91: RAIN | E91: Buy | F91: 315.5 | G91: 307 | H91: 322.5 | I91: 325-330 | J91: Profit of Rs.7/- | K91: 7 | L91: =K91/F91 -> 2.22% | O91: Successful | P91: 2018-05-08 | R91: H
A92: 6 | B92: 2018-05-04 | D92: KPIT | E92: Buy | F92: 251.5 | G92: 245 | H92: 257.5 | I92: 262 | J92: Profit of Rs.6/- | K92: 6 | L92: =K92/F92 -> 2.39% | O92: Successful | P92: 2018-05-08 | R92: R
A93: 7 | B93: 2018-05-07 | D93: RELIANCE MAY FUT | E93: Buy | F93: 963 | G93: 953 | H93: 971.5 | I93: 980 | J93: Profit of Rs.8.5/- | K93: 8.5 | M93: =N93*K93 -> 8500 | N93: 1000 | O93: Successful | P93: 2018-05-07 | R93: R
A94: 8 | B94: 2018-05-07 | D94: CHOLAFIN | E94: Buy | F94: 1662 | G94: 1642 | H94: 1617.5 | I94: 1710-1720 | J94: Loss of Rs.44.5/- | K94: =H94-F94 -> -44.5 | L94: =K94/F94 -> -2.68% | O94: Unsuccessful | P94: 2018-05-09 | R94: R
A95: 9 | B95: 2018-05-07 | D95: SUVEN | E95: Buy | F95: 184.5 | G95: 180 | H95: 192 | I95: 192-194 | J95: Profit of Rs.7.5/- | K95: =H95-F95 -> 7.5 | L95: =K95/F95 -> 4.07% | O95: Successful | P95: 2018-05-07 | R95: R
A96: 10 | B96: 2018-05-08 | D96: BHARATFORG | E96: Buy | F96: 746.5 | G96: 730 | H96: 724.4 | I96: 770 | J96: Loss of Rs.22.1/- | K96: =H96-F96 -> -22.1 | L96: =K96/F96 -> -2.96% | O96: Unsuccessful | P96: 2018-05-11 | R96: R
A97: 11 | B97: 2018-05-09 | D97: VIPIND | E97: Buy | F97: 421 | G97: 409 | H97: 407 | I97: 440 | J97: Loss of Rs.14/- | K97: =H97-F97 -> -14 | L97: =K97/F97 -> -3.33% | O97: Unsuccessful | P97: 2018-05-11 | R97: H
A98: 12 | B98: 2018-05-09 | D98: BANKBARODA MAY FUT | E98: Buy | F98: 145.5 | G98: 144 | H98: 144 | I98: 150 | J98: Loss of Rs.1.5/- | K98: =H98-F98 -> -1.5 | M98: =N98*K98 -> -6000 | N98: 4000 | O98: Unsuccessful | P98: 2018-05-09 | R98: H
A99: 13 | B99: 2018-05-09 | D99: HEROMOTOCO MAY FUT | E99: Buy | F99: 3690 | G99: 3640 | H99: 3640 | I99: 3800 | J99: Loss of Rs.50/- | K99: -50 | M99: =N99*K99 -> -6250 | N99: 125 | O99: Unsuccessful | P99: 2018-05-07 | R99: R
A100: 14 | B100: 2018-05-14 | D100: IRB | E100: Buy | F100: 261.5 | G100: 256 | H100: 254 | I100: 270-272 | J100: Loss of Rs.7.5/- | K100: =H100-F100 -> -7.5 | L100: =K100/F100 -> -2.87% | O100: Unsuccessful | P100: 2018-05-15 | R100: R
A101: 15 | B101: 2018-05-14 | D101: HINDALCO | E101: Buy | F101: 242 | G101: 237 | H101: 248.25 | I101: 249-252 | J101: Profit of Rs.6.25/- | K101: =H101-F101 -> 6.25 | L101: =K101/F101 -> 2.58% | O101: Successful | P101: 2018-05-15 | R101: H
A102: 16 | B102: 2018-05-16 | D102: ARVIND | E102: Buy | F102: 414 | G102: 404 | H102: 421.5 | I102: 427-430 | J102: Profit of Rs.7.5/- | K102: =H102-F102 -> 7.5 | L102: =K102/F102 -> 1.81% | O102: Successful | P102: 2018-05-16 | R102: R
A103: 17 | B103: 2018-05-16 | D103: BFUTILITIE | E103: Buy | F103: 401.5 | G103: 390 | H103: 414 | I103: 417-420 | J103: Profit of Rs.12.5/- | K103: =H103-F103 -> 12.5 | L103: =K103/F103 -> 3.11% | O103: Successful | P103: 2018-05-16 | R103: R
A104: 18 | B104: 2018-05-16 | D104: DHFL | E104: Buy | F104: 616-619 | G104: 604 | I104: 635-640 | J104: Open | R104: R
A105: 19 | B105: 2018-05-17 | D105: CHOLAFIN | E105: Buy | F105: 1538 | G105: 1510 | H105: 1604 | I105: 1590-1600 | J105: Profit of Rs.66/- | K105: =H105-F105 -> 66 | L105: =K105/F105 -> 4.29% | O105: Successful | P105: 2018-05-17 | R105: R
A106: 20 | B106: 2018-05-17 | D106: IGL | E106: Buy | F106: 274.5 | G106: 268 | H106: 268 | I106: 285-290 | J106: Loss of Rs.6.5/- | K106: =H106-F106 -> -6.5 | L106: =K106/F106 -> -2.37% | O106: Unsuccessful | P106: 2018-05-18 | R106: H
A107: 21 | B107: 2018-05-18 | D107: BANKNIFTY MAY FUT | E107: Buy | F107: 25880 | G107: 25770 | H107: 25880 | I107: 26050-26100 | J107: No profit no loss/- | K107: =H107-F107 -> 0 | L107: =K107/F107 -> 0.00% | O107: Neutral | P107: 2018-05-18 | R107: R
A108: 22 | B108: 2018-05-21 | D108: THOMASCOOK | E108: Buy | F108: 276-278 | G108: 270 | I108: 288-290 | J108: Open | R108: R
A110: CLBS = Closing Basis *** | F110: Reinitiated $
A111: Dividend adjusted <> | F111: Revised stoploss #
B113: Quick Pick Intraday
A114: Sr.no | B114: Date | D114: Company | E114: Rec | F114: Rec Price | G114: Stop Loss*** | H114: Call Closed At | I114: Target | J114: Remark | K114: Profit / Loss per Share | L114: Gain / Loss % | M114: Status | N114: Closed Date
A115: 1 | B115: 2018-05-02 | D115: GODREJPROP | E115: Buy | F115: 817.5 | G115: 804 | H115: 804 | I115: 835-840 | J115: Loss of Rs.13.5/- | K115: =H115-F115 -> -13.5 | L115: =K115/F115 -> -1.65% | M115: Unsuccessful | N115: 2018-05-02 | R115: H
A116: 2 | B116: 2018-05-04 | D116: BFUTILITIE | E116: Buy | F116: 402.5 | G116: 395 | H116: 402.5 | I116: 415 | J116: No profit no loss/- | K116: 0 | L116: 0.00% | M116: Neutral | N116: 2018-05-04 | R116: R
A117: 3 | B117: 2018-05-09 | D117: DCBBANK | E117: Buy | F117: 197.5 | G117: 194.5 | H117: 201 | I117: 202-204 | J117: Profit of Rs. 3.5/- | K117: 3.5 | L117: 1.77% | M117: Successful | N117: 2018-05-09 | R117: H
A118: 4 | B118: 2018-05-09 | D118: BFUTILITIE | E118: Buy | F118: 401 | G118: 395 | H118: 408 | I118: 415 | J118: Profit of Rs. 7/- | K118: 7 | L118: 1.75% | M118: Successful | N118: 2018-05-09 | R118: H
A119: 5 | B119: 2018-05-10 | D119: MANAPPURAM | E119: Buy | F119: 124.75 | G119: 121.8 | H119: 121.8 | I119: 130 | J119: Loss of Rs.2.95/- | K119: -2.95 | L119: -2.36% | M119: Unsuccessful | N119: 2018-05-10 | R119: H
A120: 6 | B120: 2018-05-11 | D120: BFUTILITIE | E120: Buy | F120: 404 | G120: 397 | H120: 397 | I120: 415 | J120: Loss of Rs.7/- | K120: -7 | L120: -1.73% | M120: Unsuccessful | N120: 2018-05-11 | R120: H
A121: 7 | B121: 2018-05-18 | D121: WABAG | E121: Buy | F121: 455.5 | G121: 448 | H121: 463.5 | I121: 470-474 | J121: Profit of Rs. 8/- | K121: =H121-F121 -> 8 | L121: =K121/F121 -> 1.76% | M121: Successful | N121: 2018-05-18 | R121: R
A124: Techno -Funda (positional)
A125: Sr.no | B125: Date | D125: Company | E125: Rec | F125: Rec Price | G125: Stop Loss*** | H125: Call Closed At | I125: Target | J125: Remark | K125: Profit / Loss per Share | L125: Gain / Loss % | M125: Status | N125: Closed Date | O125: NSE Closed Price
A126: 1 | B126: 2018-04-16 | D126: ENGINERSIN | E126: Buy | F126: 158.5 | G126: 147 | H126: 146 | I126: 185-190 | J126: Loss of Rs.12.5/- | K126: =H126-F126 -> -12.5 | L126: =K126/F126 -> -7.89% | M126: Unsuccessful | N126: 2018-05-16 | R126: H
A129: CLBS = Closing Basis *** | F129: Reinitiated $
A130: Dividend adjusted <> | F130: Revised stoploss #
B135: Investment Idea
A136: Sr.no | B136: Date | D136: Company | E136: Rec | F136: Rec Price | G136: Point of Review | H136: Close Rate | I136: Target | J136: Remark | K136: Profit / Loss per Share | L136: Gain / Loss % | M136: Status | N136: Closed Date
A137: 1 | B137: 2013-11-01 | D137: L&T Finance Holding | E137: Accu | F137: 82.00 | G137: - | H137: 100 | I137: 100.00 | J137: Target Achieved | K137: =H137-F137 -> 18.00 | L137: =K137/F137 -> 21.95% | M137: Successful | N137: 2016-10-14
A138: 2 | B138: 2014-06-04 | D138: Finolex Inds | E138: Buy | F138: 257.00 | G138: - | H138: 300 | I138: 300.00 | J138: Target Achieved | K138: =H138-F138 -> 43.00 | L138: 16.73% | M138: Successful | N138: 2014-07-02
A139: =1+A138 -> 3 | B139: 2014-07-08 | D139: JK Cement | E139: Buy | F139: 393.00 | G139: - | H139: 468 | I139: 468.00 | J139: Target Achieved | K139: =H139-F139 -> 75.00 | L139: 19.08% | M139: Successful | N139: 2014-08-12
A140: 4 | B140: 2014-08-06 | D140: Finolex Cables | E140: Buy | F140: 205.00 | G140: - | H140: 275 | I140: 250.00 | J140: Target Achieved | K140: 70.00 | L140: 34.15% | M140: Successful | N140: 2014-11-19
A141: 5 | B141: 2014-09-04 | D141: Exide Inds | E141: Buy | F141: 162.00 | G141: - | H141: 190 | I141: 190.00 | J141: Target Achieved | K141: 28.00 | L141: 17.28% | M141: Successful | N141: 2015-01-02
A142: 6 | B142: 2014-09-04 | D142: Deepak Nitrite | E142: Buy | F142: 75.00 | G142: - | H142: 91.5 | I142: 95-100 | J142: Profit of Rs.16.50/- | K142: 16.50 | L142: 22.00% | M142: Successful | N142: 2014-11-11
A143: 7 | B143: 2014-10-01 | D143: Mercks | E143: Buy | F143: 850.00 | G143: - | H143: 982.5 | I143: 1050.00 | J143: Profit of Rs.132.50/- | K143: 132.50 | L143: 15.59% | M143: Successful | N143: 2015-02-04
A144: 8 | B144: 2014-10-01 | D144: Grindwell Norton | E144: Buy | F144: 475.00 | G144: - | H144: 515 | I144: 600.00 | J144: Profit of Rs.40/- | K144: 40.00 | L144: 8.42% | M144: Successful | N144: 2014-10-27
A145: 9 | B145: 2014-10-01 | D145: Snowman Logistics | E145: Buy | F145: 86.00 | G145: - | H145: 99 | I145: 140.00 | J145: Profit of Rs.13.00/- | K145: 13.00 | L145: 15.12% | M145: Successful | N145: 2014-10-27
A146: 10 | B146: 2014-10-14 | D146: Birla Corp | E146: Buy | F146: 496.60 | G146: - | H146: 621 | I146: 580.00 | J146: Target Achieved | K146: 124.40 | L146: 25.05% | M146: Successful | N146: 2016-08-23
A147: 11 | B147: 2014-10-14 | D147: Ultratech Cem | E147: Buy | F147: 2481.90 | G147: - | H147: 2840 | I147: 2870.00 | J147: Profit of Rs.358.10/- | K147: 358.10 | L147: 14.43% | M147: Successful | N147: 2015-01-13
A148: =1+A145 -> 10 | B148: 2014-10-16 | D148: Sintex Inds | E148: Buy | F148: 84.50 | G148: - | H148: 93 | I148: 110.00 | J148: Profit of Rs.8.50/- | K148: 8.50 | L148: 10.06% | M148: Successful | N148: 2014-10-27
A149: =1+A148 -> 11 | B149: 2014-10-16 | D149: HSIL | E149: Buy | F149: 401.00 | G149: - | H149: 428 | I149: 450.00 | J149: Profit of Rs.27.00/- | K149: 27.00 | L149: 6.73% | M149: Successful | N149: 2015-01-16
A150: 12 | B150: 2014-10-16 | D150: Eveready Inds | E150: Buy | F150: 101.00 | G150: - | H150: 112 | I150: 120.00 | J150: Profit of Rs.11.00/- | K150: 11.00 | L150: 10.89% | M150: Successful | N150: 2014-10-27
A151: 13 | B151: 2014-11-11 | D151: Pennar Inds | E151: Buy | F151: 59.00 | G151: - | H151: 76 | I151: 76.00 | J151: Target Achieved | K151: 17.00 | L151: 28.81% | M151: Successful | N151: 2017-10-24
A152: 14 | B152: 2014-11-11 | D152: Snowman Logistics | E152: Buy | F152: 99.00 | G152: - | H152: 120 | I152: 120.00 | J152: Profit of Rs.21/- | K152: 21.00 | L152: 21.21% | M152: Successful | N152: 2014-11-17
A153: 15 | B153: 2014-11-13 | D153: Dharamsi Morarji Chem | E153: Buy | F153: 22.00 | G153: - | H153: 33.55 | I153: 32.00 | J153: Profit of Rs 11.55/- | K153: 11.55 | L153: 52.50% | M153: Successful | N153: 2015-07-03
A154: 16 | B154: 2014-12-03 | D154: Tatachem | E154: Buy | F154: 440.00 | G154: - | H154: 520 | I154: 520.00 | J154: Profit of Rs 80.00/- | K154: 80.00 | L154: 18.18% | M154: Successful | N154: 2015-07-23
A155: 17 | B155: 2014-12-03 | D155: Advanta | E155: Buy | F155: 360.00 | G155: - | H155: 427 | I155: 425.00 | J155: Profit of Rs.67.00/- | K155: 67.00 | L155: 18.61% | M155: Successful | N155: 2015-02-23
A156: 18 | B156: 2015-01-08 | D156: GDL | E156: Buy | F156: 360.00 | G156: - | H156: 455 | I156: 420.00 | J156: Profit of Rs.95.00/- | K156: 95.00 | L156: 26.39% | M156: Successful | N156: 2015-01-20
A157: 19 | B157: 2015-01-08 | D157: NRB Bearing | E157: Buy | F157: 130.00 | H157: 175.5 | I157: 165.00 | J157: Profit of Rs 45.50/- | K157: 45.50 | L157: 35.00% | M157: Successful | N157: 2017-12-19
A158: 20 | B158: 2015-02-05 | D158: GSFC | E158: Accu | F158: 98.00 | H158: 120 | I158: 120.00 | J158: Target Achieved | K158: 22.00 | L158: 22.45% | M158: Successful | N158: 2017-01-18
A159: 21 | B159: 2015-02-05 | D159: Sundrmfast | E159: Accu | F159: 196.00 | H159: 262 | I159: 255.00 | J159: Target Achieved | K159: 66.00 | L159: 33.67% | M159: Successful | N159: 2016-08-17
A160: 22 | B160: 2015-03-04 | D160: GPPL | E160: Accu | F160: 230-240 | I160: 280-285 | J160: Open
A161: 23 | B161: 2015-03-04 | D161: ORIENTCEM | E161: Accu | F161: 185.00 | H161: 224 | I161: 220-225 | J161: Target Achieved | K161: 39.00 | L161: =K161/F161 -> 21.08% | M161: Successful | N161: 2016-10-04
A162: 24 | B162: 2015-03-27 | D162: PFS | E162: Accu | F162: 49-50 | I162: 67.00 | J162: Open
A163: 25 | B163: 2015-03-30 | D163: Walchandnagar Ind Ltd | E163: Accu | F163: 183.50 | H163: 219 | I163: 218.00 | J163: Profit of Rs.35.50/- | K163: 35.50 | L163: =K163/F163 -> 19.35% | M163: Successful | N163: 2015-04-09
A164: 26 | B164: 2015-04-20 | D164: Kalpataru Power Transmission Ltd | E164: Accu | F164: =(227+237)/2 -> 232.00 | H164: 298 | I164: 298.00 | J164: Target Achieved | K164: 66.00 | L164: 28.45% | M164: Successful | N164: 2017-03-29
A165: 27 | B165: 2015-05-04 | D165: Mastek Ltd | E165: Buy | F165: 385.00 | H165: =212.5+331 -> 543.5 | I165: 510.00 | J165: Profit of Rs 158.50/- | K165: 158.50 | L165: 41.17% | M165: Successful | N165: 2015-08-19
A166: 28 | B166: 2015-05-04 | D166: Suprajit Eng | E166: Buy | F166: 115.50 | H166: 146 | I166: 142.00 | J166: Profit of Rs 30.50/- | K166: 30.50 | L166: 26.41% | M166: Successful | N166: 2015-07-17
A167: 29 | B167: 2015-05-27 | D167: TCI | E167: Buy | F167: 237.50 | H167: 279.5 | I167: 278.00 | J167: Target Achieved | K167: 42.00 | L167: 17.68% | M167: Successful | N167: 2015-08-06
A168: 30 | B168: 2015-06-19 | D168: HSIL | E168: Accu | F168: 340.00 | H168: 448 | I168: 448.00 | J168: Target Achieved | K168: 108.00 | L168: 31.76% | M168: Successful | N168: 2017-10-10
A169: 31 | B169: 2015-07-06 | D169: Capital First | E169: Accu | F169: 390.00 | H169: 460 | I169: 460.00 | J169: Target Achieved | K169: 70.00 | L169: 17.95% | M169: Successful | N169: 2016-04-18
A170: 32 | B170: 2015-07-10 | D170: Dolphin OffShore | E170: Accu | F170: 118-127 | I170: 172.00 | J170: Open
A171: 33 | B171: 2015-08-03 | D171: Allcargo logistics | E171: Accu | F171: 297.50 | H171: 350 | I171: 360.00 | J171: Profit of Rs 52.50/- | K171: 52.50 | L171: =K171/F171 -> 17.65% | M171: Successful | N171: 2015-08-16
A172: 34 | B172: 2015-08-03 | D172: Camline Fine | E172: Accu | F172: 115.50 | H172: 149 | I172: 140.00 | J172: Profit of Rs 33.50/- | K172: 33.50 | L172: 29.00% | M172: Successful | N172: 2017-01-05
A173: 35 | B173: 2015-09-04 | D173: TCI | E173: Accu | F173: 226.00 | H173: 292 | I173: 292.00 | J173: Target Achieved | K173: 66.00 | L173: 29.20% | M173: Successful | N173: 2015-10-09
A174: 36 | B174: 2015-09-07 | D174: Kalpataru Power Transmission Ltd | E174: Accu | F174: 232.50 | H174: 312.5 | I174: 310.00 | J174: Target Achieved | K174: 80.00 | L174: 34.41% | M174: Successful | N174: 2017-03-29
A175: 37 | B175: 2015-09-21 | D175: LLOYD ELECTRIC & ENG LTD | E175: Accu | F175: 196.50 | H175: 238 | I175: 238.00 | J175: Target Achieved | K175: 41.50 | L175: 21.12% | M175: Successful | N175: 2015-10-14
A176: 38 | B176: 2015-09-24 | D176: L&T Finance Holding | E176: Accu | F176: 65.00 | H176: 82 | I176: 82.00 | J176: Target Achieved | K176: 17.00 | L176: 26.15% | M176: Successful | N176: 2016-07-27
A177: 39 | B177: 2015-10-14 | D177: KEC International ltd | E177: Accu | F177: 144.00 | H177: 182.5 | I177: 181.00 | J177: Target Achieved | K177: 38.50 | L177: 26.74% | M177: Successful | N177: 2017-03-23
A178: 40 | B178: 2015-10-14 | D178: Gruh Finance | E178: Accu | F178: 264.00 | H178: 311 | I178: 311.00 | J178: Target Achieved | K178: 47.00 | L178: 17.80% | M178: Successful | N178: 2016-08-22
A179: 41 | B179: 2015-11-10 | D179: Pidilitind | E179: Buy | F179: 549.50 | H179: 630 | I179: 630.00 | J179: Target Achieved | K179: 80.50 | L179: 14.65% | M179: Successful | N179: 2016-02-19
A180: 42 | B180: 2015-12-04 | D180: Zensar Technology | E180: Accu | F180: 1020-1035 | I180: 1250.00 | J180: Open
A181: 43 | B181: 2015-12-29 | D181: Vinati Organics Ltd | E181: Accu | F181: 465.00 | H181: 540 | I181: 540.00 | J181: Target Achieved | K181: 75.00 | L181: =K181/F181 -> 16.13% | M181: Successful | N181: 2016-06-09
A182: 44 | B182: 2016-01-11 | D182: GSFC | E182: Buy | F182: 81.00 | H182: 110 | I182: 110.00 | J182: Target Achieved | K182: 29.00 | L182: 35.80% | M182: Successful | N182: 2017-01-10
A183: 45 | B183: 2016-01-13 | D183: SSWL | E183: Buy | F183: 417.50 | H183: 547 | I183: 535.00 | J183: Target Achieved | K183: 129.50 | L183: 31.02% | M183: Successful | N183: 2016-07-27
A184: 46 | B184: 2016-02-08 | D184: Persistent System Ltd | E184: Accu | F184: 650.00 | H184: 800 | I184: 800.00 | J184: Target Achieved | K184: 150.00 | L184: 23.08% | M184: Successful | N184: 2018-02-23
A185: 47 | B185: 2016-03-04 | D185: UPL | E185: Accu | F185: 437.50 | H185: 504.5 | I185: 522.00 | J185: Profit of Rs.67/- | K185: 67.00 | L185: 15.31% | M185: Successful | N185: 2016-04-20
A186: 48 | B186: 2016-03-09 | D186: Ashoka Buildcon Ltd | E186: Accu | F186: 189.50 | H186: 218 | I186: 218.00 | J186: Target Achieved | K186: 28.50 | L186: 15.04% | M186: Successful | N186: 2017-10-26
A187: 49 | B187: 2016-04-11 | D187: PTC INDIA FIN SERV LTD | E187: Accu | F187: 36-37 | I187: 60.00 | J187: Open
A188: 50 | B188: 2016-04-12 | D188: CAMLINFINE $ | E188: Accu | F188: 93.00 | H188: 149 | I188: 140.00 | J188: Profit of Rs 56/- | K188: 56.00 | L188: =K188/F188 -> 60.22% | M188: Successful | N188: 2017-01-05
A189: 51 | B189: 2016-04-12 | D189: Greaves Cotton Ltd. | E189: Accu | F189: 130.00 | H189: 150 | I189: 150-155 | J189: Target Achieved | K189: 20.00 | L189: 15.38% | M189: Successful | N189: 2016-07-13
A190: 52 | B190: 2016-04-13 | D190: DHFL | E190: Accu | F190: 196.00 | H190: 299 | I190: 299.00 | J190: Target Achieved | K190: 103.00 | L190: 52.55% | M190: Successful | N190: 2016-09-07
A191: 53 | B191: 2016-04-13 | D191: Magma | E191: Accu | F191: 88.00 | H191: 103 | I191: 103.00 | J191: Target Achieved | K191: 15.00 | L191: 17.05% | M191: Successful | N191: 2016-06-09
A192: 54 | B192: 2016-05-02 | D192: KEC International ltd $ | E192: Accu | F192: 127.50 | H192: 148 | I192: 148-150 | J192: Target Achieved | K192: 20.50 | L192: 16.08% | M192: Successful | N192: 2016-07-13
A193: 55 | B193: 2016-05-03 | D193: Mindtree | E193: Accu | F193: 675.00 | H193: 815 | I193: 790-800 | J193: Target Achieved | K193: 140.00 | L193: 20.74% | M193: Successful | N193: 2018-02-23
A194: 56 | B194: 2016-06-01 | D194: Atulauto | E194: Accu | F194: 495-505 | I194: 565-570 | J194: Open
A195: 57 | B195: 2016-06-06 | D195: TRITURBINE | E195: Accu | F195: 110.00 | H195: 126.5 | I195: 125.00 | J195: Profit of Rs.16.50/- | K195: 16.50 | L195: =K195/F195 -> 15.00% | M195: Successful | N195: 2016-07-01
A196: 58 | B196: 2016-06-17 | D196: Pennar Industries Ltd | E196: Accu | F196: 44.00 | H196: 69.5 | I196: 69.50 | J196: Profit of Rs.25.50/- | K196: 25.50 | L196: =K196/F196 -> 57.95% | M196: Successful | N196: 2017-08-30
A197: 59 | B197: 2016-06-28 | D197: EVEREADY INDS. IND. LTD. | E197: Accu | F197: 262.50 | H197: 340 | I197: 333.00 | J197: Profit of Rs.77.50/- | K197: 77.50 | L197: =K197/F197 -> 29.52% | M197: Successful | N197: 2017-10-09
A198: 60 | B198: 2016-06-28 | D198: FIEM INDUSTRIES LIMITED | E198: Accu | F198: 840.00 | H198: 1230 | I198: 1230.00 | J198: Target Achieved | K198: 390.00 | L198: =K198/F198 -> 46.43% | M198: Successful | N198: 2016-10-06
A199: 61 | B199: 2016-07-05 | D199: Bajaj Corp Ltd | E199: Accu | F199: 395 | H199: 468.50 | I199: 510.00 | J199: Part profit of Rs.73.50/- | K199: 73.50 | L199: =K199/F199 -> 19% | M199: Successful | N199: 2017-08-30
A200: 62 | B200: 2016-08-02 | D200: GPPL $ | E200: Buy | F200: 167-172 | I200: 198-200 | J200: Open
A201: 63 | B201: 2016-08-04 | D201: WONDERLA HOLIDAYS LTD | E201: Accu | F201: 395-405 | I201: 475.00 | J201: Open
A202: 64 | B202: 2016-08-11 | D202: CAMLINFINE | E202: Accu | F202: 86.50 | H202: 130 | I202: 130.00 | J202: Profit of Rs.43.50/- | K202: =H202-F202 -> 43.50 | L202: =K202/F202 -> 50.29% | M202: Successful | N202: 2017-12-22
A203: 65 | B203: 2016-08-18 | D203: GRANULES | E203: Accu | F203: 133.5 | H203: 126.50 | I203: 178.00 | J203: Exit | K203: -7.00 | L203: -5.24% | M203: Unsuccessful | N203: 2016-09-02
A204: 66 | B204: 2016-08-31 | D204: VA TECH WABAG | E204: Accu | F204: 560.00 | H204: 725 | I204: 725.00 | J204: Target Achieved | K204: 165.00 | L204: 29.46% | M204: Successful | N204: 2016-03-27
A205: 67 | B205: 2016-09-01 | D205: SKIPPER LIMITED | E205: Accu | F205: 160.50 | H205: 210 | I205: 210.00 | J205: Target Achieved | K205: 49.50 | L205: 30.84% | M205: Successful | N205: 2017-05-16
A206: 68 | B206: 2016-10-03 | D206: IFB Industries | E206: Accu | F206: 430.00 | H206: 596 | I206: 575.00 | J206: Profit of Rs.166/- | K206: 166.00 | L206: 38.60% | M206: Successful | N206: 2017-02-03
A207: 69 | B207: 2016-10-14 | D207: ASIANTILES | E207: Accu | F207: 280.00 | H207: 345 | I207: 345.00 | J207: Target Achieved | K207: 65.00 | L207: 23.21% | M207: Successful | N207: 2017-03-20
A208: 70 | B208: 2016-10-14 | D208: DEEPIND | E208: Accu | F208: 245.00 | H208: 325.5 | I208: 330.00 | J208: Profit of Rs.80.5/- | K208: 80.50 | L208: 32.86% | M208: Successful | N208: 2017-02-03
A209: 71 | B209: 2016-10-17 | D209: DCBBANK | E209: Accu | F209: 125.00 | H209: 160 | I209: 160.00 | J209: Target Achieved | K209: 35.00 | L209: 28.00% | M209: Successful | N209: 2017-03-09
A210: 72 | B210: 2016-10-17 | D210: ORIENTREF | E210: Accu | F210: 114.00 | H210: 145 | I210: 145.00 | J210: Target Achieved | K210: 31.00 | L210: =K210/F210 -> 27.19% | M210: Successful | N210: 2017-05-04
A211: 73 | B211: 2016-10-17 | D211: GANECOS | E211: Accu | F211: 212.00 | H211: 280 | I211: 276.00 | J211: Profit of Rs.68/- | K211: 68.00 | L211: =K211/F211 -> 32.08% | M211: Successful | N211: 2017-05-03
A212: 74 | B212: 2016-11-04 | D212: NBCC | E212: Accu | F212: 155.00 | H212: 210 | I212: 210.00 | J212: Profit of Rs.55/- | K212: 55.00 | L212: =K212/F212 -> 35.48% | M212: Successful | N212: 2017-07-28
A213: 75 | B213: 2016-12-06 | D213: PRECAM | E213: Accu | F213: 148-153 | I213: 174.00 | J213: Open
A214: 76 | B214: 2016-12-08 | D214: INFRATEL | E214: Accu | F214: 380.00 | H214: 478 | I214: 468.00 | J214: Target Achieved | K214: 98.00 | L214: =K214/F214 -> 25.79% | M214: Successful | N214: 2017-10-17
A215: 77 | B215: 2016-12-30 | D215: GODREJPROP | E215: Accu | F215: 305.00 | H215: 375 | I215: 375.00 | J215: Target Achieved | K215: 70.00 | L215: 22.95% | M215: Successful | N215: 2017-02-02
A216: 78 | B216: 2017-01-04 | D216: DEEPAKNTR | E216: Accu | F216: 99.50 | H216: 158 | I216: 158.00 | J216: Target Achieved | K216: 58.50 | L216: 58.79% | M216: Successful | N216: 2017-06-12
A217: 79 | B217: 2017-02-20 | D217: SUBROS | E217: Accu | F217: 202.50 | H217: 234 | I217: 234.00 | J217: Target Achieved | K217: 31.50 | L217: 15.56% | M217: Successful | N217: 2017-04-11
A218: 80 | B218: 2017-02-20 | D218: RECLTD | E218: Accu | F218: 140.50 | H218: 220 | I218: 220.00 | J218: Target Achieved | K218: 79.50 | L218: 56.58% | M218: Successful | N218: 2017-05-09
A219: 81 | B219: 2017-03-24 | D219: VRLLOG | E219: Accu | F219: 300.50 | H219: 417.5 | I219: 420.00 | J219: Profit of Rs.117/- | K219: 117.00 | L219: 38.94% | M219: Successful | N219: 2017-12-01
A220: 82 | B220: 2017-03-24 | D220: FIEMIND | E220: Accu | F220: 850.00 | H220: 1042.5 | I220: 1023.00 | J220: Profit of Rs 192.50/- | K220: 192.50 | L220: 22.65% | M220: Successful | N220: 2017-04-05
A221: 83 | B221: 2017-04-05 | D221: RATNAMANI | E221: Accu | F221: 785.00 | H221: 930 | I221: 920.00 | J221: Profit of Rs.145/- | K221: 145.00 | L221: 18.47% | M221: Successful | N221: 2017-08-29
A222: 84 | B222: 2017-04-06 | D222: ZEEMEDIA | E222: Accu | F222: 39-41 | I222: 60.00 | J222: Open
A223: 85 | B223: 2017-04-12 | D223: DABUR | E223: Accu | F223: 289.50 | H223: 354 | I223: 360.00 | J223: Profit of Rs.64.5/- | K223: 64.50 | L223: =K223/F223 -> 22.28% | M223: Successful | N223: 2017-11-01
A224: 86 | B224: 2017-04-20 | D224: KPRMILL | E224: Accu | F224: 700.00 | H224: 840 | I224: 840.00 | J224: Profit of Rs.140/- | K224: 140.00 | L224: =K224/F224 -> 20.00% | M224: Successful | N224: 2017-06-07
A225: 87 | B225: 2017-05-22 | D225: GREAVESCOT | E225: Accu | F225: 153-158 | I225: 190.00 | J225: Open
A226: 88 | B226: 2017-06-01 | D226: ESSELPACK | E226: Accu | F226: 260 | H226: 311.00 | I226: 340.00 | J226: Part profit of Rs.51/- | K226: =H226-F226 -> 51.00 | L226: =K226/F226 -> 20% | M226: Successful | N226: 2017-11-17
A227: 89 | B227: 2017-06-15 | D227: KEI | E227: Accu | F227: 214.50 | H227: 262 | I227: 262.00 | J227: Profit of Rs.47.5/- | K227: =H227-F227 -> 47.50 | L227: 22.14% | M227: Successful | N227: 2017-08-30
... 39 more rows

Sheet Call Tracker (Currency) (hidden)
A1: Master Trade High Risk
A2: Sr.no | B2: Date | C2: Company | D2: Rec | E2: Rec Price | F2: Stop Loss | G2: Call Closed At | H2: Target | I2: Remark | K2: Profit / Loss per share | L2: Gain / Loss per Lot | M2: Lot | N2: Status | O2: Closed Date
A3: 1 | B3: 2017-05-08 | C3: USDINR MAY FUT | D3: Buy | E3: 64.3935 | F3: 64.29 | G3: 64.66 | H3: 64.59 | I3: Profit of Rs.0.27/- | K3: 0.27 | L3: 266.5 | M3: 1000 | N3: Successful | O3: 2017-05-09 | R3: P
A4: 2 | B4: 2017-05-08 | C4: USDINR JUN FUT | D4: Buy | E4: 64.6535 | F4: 64.45 | G4: 64.965 | H4: 65.05 | I4: Profit of Rs 0.31/- | K4: 0.31 | L4: 311.5 | M4: 1000 | N4: Successful | O4: 2017-05-09 | R4: P
A5: 3 | B5: 2017-05-09 | C5: EUROINR MAY FUT | D5: Sell | E5: 70.65 | F5: 70.8 | G5: 70.07 | H5: 70.4 | I5: Profit of Rs 0.58/- | K5: 0.58 | L5: 580 | M5: 1000 | N5: Successful | O5: 2017-05-12 | R5: P
A6: 4 | B6: 2017-05-09 | C6: GBPINR MAY FUT | D6: Buy | E6: 83.774 | F6: 83.37 | G6: 83.37 | H6: 84.77 | I6: Loss of Rs 0.40/- | K6: -0.40 | L6: -404 | M6: 1000 | N6: Unsuccessful | O6: 2017-05-11 | R6: P
A7: 5 | B7: 2017-05-11 | C7: USDINR MAY FUT | D7: Buy | E7: 64.6555 | F7: 64.55 | G7: 64.55 | H7: 64.86 | I7: Loss of Rs.0.1055/- | K7: -0.1055 | L7: =K7*M7 -> -105.50 | M7: 1000 | N7: Unsuccessful | O7: 2017-05-11 | R7: P
A8: 6 | B8: 2017-05-15 | C8: USDINR MAY FUT | D8: Buy | E8: 64.2275 | F8: 64.08 | G8: 64.46 | H8: 64.48 | I8: Profit of Rs 0.23/- | K8: 0.23 | L8: 232.5 | M8: 1000 | N8: Successful | O8: 2017-05-18 | R8: P
A9: 7 | B9: 2017-05-19 | C9: USDINR MAY FUT | D9: Sell | E9: 64.83 | F9: 65 | G9: 65 | H9: 64.5 | I9: Loss of Rs.0.17/- | K9: -0.17 | L9: -170 | M9: 1000 | N9: Unsuccessful | O9: 2017-05-19 | R9: P
A10: 8 | B10: 2017-05-23 | C10: USDINR MAY FUT | D10: Buy | E10: 64.83 | F10: 64.62 | G10: 64.95 | H10: 65.2 | I10: Profit of Rs 0.12/- | K10: 0.12 | L10: 120 | M10: 1000 | N10: Successful | O10: 2017-05-24 | R10: P
A11: 9 | B11: 2017-05-25 | C11: USDINR MAY FUT | D11: Buy | E11: 64.57 | F11: 64.25 | G11: 64.56 | H11: 65 | I11: Loss of Rs.0.01/- | K11: -0.01 | L11: -10 | M11: 1000 | N11: Neutral | O11: 2017-05-29 | R11: P
A12: 10 | B12: 2017-05-30 | C12: USDINR JUN FUT | D12: Buy | E12: 64.9125 | F12: 64.71 | G12: 64.71 | H12: 65.31 | I12: Loss of Rs.0.20/- | K12: -0.20 | L12: -202.5 | M12: 1000 | N12: Unsuccessful | O12: 2017-05-31 | R12: P
A13: 11 | B13: 2017-06-01 | C13: USDINR JUN FUT | D13: Buy | E13: 64.655 | F13: 64.45 | G13: 64.45 | H13: 65.05 | I13: Loss of Rs.0.20/- | K13: =G13-E13 -> -0.20 | L13: =K13*M13 -> -205 | M13: 1000.00 | N13: Unsuccessful | O13: 2017-06-08 | R13: P
A14: 12 | B14: 2017-06-12 | C14: USDINR JUN FUT | D14: Buy | E14: 64.45 | F14: 64 | G14: 64.7625 | H14: 65.2 | I14: Profit of Rs 0.31/- | K14: 0.31 | L14: 312.5 | M14: 1000 | N14: Successful | O14: 2017-06-16
A15: 13 | B15: 2017-06-16 | C15: USDINR JUN FUT | D15: Buy | E15: 64.51 | F15: 64.2 | G15: 64.7 | H15: 65.11 | I15: Profit of Rs 0.19/- | K15: 0.19 | L15: 190 | M15: 1000 | N15: Successful | O15: 2017-06-21
A16: 14 | B16: 2017-06-22 | C16: USDINR JUN FUT | D16: Buy | E16: 64.56 | F16: 64.2 | G16: 64.2 | H16: 65.1 | I16: Loss of Rs.0.36/- | K16: -0.36 | L16: -360 | M16: 1000.00 | N16: Unsuccessful | O16: 2017-06-30
A17: 15 | B17: 2017-07-10 | C17: USDINR JUL FUT | D17: Buy | E17: 64.67 | F17: 64.4 | G17: 64.4 | H17: 65.15 | I17: Loss of Rs.0.27/- | K17: -0.27 | L17: -270 | M17: 1000.00 | N17: Unsuccessful | O17: 2017-07-31
A18: 16 | B18: 2017-08-02 | C18: USDINR AUG FUT | D18: Buy | E18: 64.235 | F18: 63.98 | G18: 63.98 | H18: 64.75 | I18: Loss of Rs.0.26/- | K18: -0.26 | L18: -255 | M18: 1000.00 | N18: Unsuccessful | O18: 2017-08-02
A19: 17 | B19: 2017-08-08 | C19: USDINR AUG FUT | D19: Buy | E19: 63.9425 | F19: 63.6 | G19: 64.15 | H19: 64.5 | I19: Profit of Rs 0.21/- | K19: 0.21 | L19: 207.5 | M19: 1000 | N19: Successful | O19: 2017-08-10
A20: 18 | B20: 2017-08-22 | C20: USDINR AUG FUT | D20: Buy | E20: 64.1175 | F20: 63.9 | G20: 64.01 | H20: 64.5 | I20: Loss of Rs.0.11/- | K20: =G20-E20 -> -0.11 | L20: =K20*M20 -> -107.5 | M20: 1000.00 | N20: Unsuccessful | O20: 2017-08-29
A21: 19 | B21: 2017-09-01 | C21: USDINR SEP FUT | D21: Buy | E21: 64.1 | F21: 63.8 | G21: 64.205 | H21: 64.7 | I21: Profit of Rs 0.11/- | K21: 0.11 | L21: 105 | M21: 1000 | N21: Successful | O21: 2017-09-01
A22: 20 | B22: 2017-09-04 | C22: USDINR SEP FUT | D22: Buy | E22: 64.095 | F22: 63.8 | G22: 64.195 | H22: 64.7 | I22: Profit of Rs 0.10/- | K22: 0.10 | L22: =K22*M22 -> 100 | M22: 1000 | N22: Successful | O22: 2017-09-04
A23: 21 | B23: 2017-09-05 | C23: USDINR SEP FUT | D23: Buy | E23: 64.25 | F23: 64 | G23: 64.355 | H23: 64.75 | I23: Profit of Rs 0.11/- | K23: =G23-E23 -> 0.11 | L23: =K23*M23 -> 105 | M23: 1000 | N23: Successful | O23: 2017-09-06
A24: 22 | B24: 2017-09-06 | C24: USDINR SEP FUT | D24: Sell | E24: 64.365 | F24: 64.5 | G24: 64.265 | H24: 64 | I24: Profit of Rs 0.10/- | K24: =E24-G24 -> 0.10 | L24: 100 | M24: 1000 | N24: Successful | O24: 2017-09-06
A25: 23 | B25: 2017-09-07 | C25: USDINR SEP FUT | D25: Buy | E25: 64.145 | F25: 63.9 | G25: 64.2565 | H25: 64.65 | I25: Profit of Rs 0.11/- | K25: =G25-E25 -> 0.11 | L25: =K25*M25 -> 111.5 | M25: 1000 | N25: Successful | O25: 2017-09-14
A26: 24 | B26: 2017-09-11 | C26: JPYINR SEP FUT | D26: Sell | E26: 59.0285 | F26: 59.25 | G26: 58.645 | H26: 58.5 | I26: Profit of Rs 0.38/- | K26: =E26-G26 -> 0.38 | L26: 383.5 | M26: 1000 | N26: Successful | O26: 2017-09-12
A27: 25 | B27: 2017-09-14 | C27: USDINR SEP FUT | D27: Buy | E27: 64.145 | F27: 63.95 | G27: 64.26 | H27: 64.5 | I27: Profit of Rs 0.12/- | K27: =G27-E27 -> 0.12 | L27: 115 | M27: 1000 | N27: Successful | O27: 2017-09-19
A28: 26 | B28: 2017-09-20 | C28: USDINR SEP FUT | D28: Buy | E28: 64.3515 | F28: 64.15 | G28: 64.57 | H28: 64.75 | I28: Profit of Rs 0.22/- | K28: =G28-E28 -> 0.22 | L28: =K28*M28 -> 218.5 | M28: 1000 | N28: Successful | O28: 2017-09-21
A29: 27 | B29: 2017-09-21 | C29: USDINR SEP FUT | D29: Sell | E29: 64.795 | F29: 65.05 | G29: 65.05 | H29: 64.4 | I29: Loss of Rs.0.17/- | K29: -0.17 | L29: -170 | M29: 1000.00 | N29: Unsuccessful | O29: 2017-09-22
A30: 28 | B30: 2017-09-25 | C30: USDINR SEP FUT | D30: Buy | E30: 64.77 | F30: 64.4 | G30: 64.92 | H30: 65.1 | I30: Profit of Rs 0.15/- | K30: =G30-E30 -> 0.15 | L30: =K30*M30 -> 150 | M30: 1000 | N30: Successful | O30: 2017-09-25
A31: 29 | B31: 2017-09-25 | C31: USDINR SEP FUT | D31: Sell | E31: 65.1077 | F31: 65.3 | G31: 65.3 | H31: 64.5 | I31: Loss of Rs.0.19/- | K31: -0.19 | L31: -190 | M31: 1000.00 | N31: Unsuccessful | O31: 2017-09-26
A32: 30 | B32: 2017-09-27 | C32: USDINR SEP FUT | D32: Sell | E32: 65.7225 | F32: 65.83 | G32: 65.7 | H32: 65.52 | I32: Profit of Rs 0.02/- | K32: =E32-G32 -> 0.02 | L32: =K32*M32 -> 22.5 | M32: 1000 | N32: Neutral | O32: 2017-09-27
A33: 31 | B33: 2017-09-27 | C33: USDINR OCT FUT | D33: Sell | E33: 66 | F33: 66.5 | G33: 65.895 | H33: 65 | I33: Profit of Rs 0.11/- | K33: =E33-G33 -> 0.11 | L33: 105 | M33: 1000 | N33: Successful | O33: 2017-09-27
A34: 32 | B34: 2017-09-28 | C34: USDINR OCT FUT | D34: Sell | E34: 66.075 | F34: 66.3 | G34: 65.96 | H34: 65.4 | I34: Profit of Rs 0.12/- | K34: =E34-G34 -> 0.12 | L34: =K34*M34 -> 115 | M34: 1000 | N34: Successful | O34: 2017-09-28
A35: 33 | B35: 2017-09-29 | C35: GBPINR OCT fut | D35: Buy | E35: 87.745 | F35: 87.5 | G35: 87.84 | H35: 88.25 | I35: Profit of Rs 0.09/- | K35: =G35-E35 -> 0.09 | L35: 95 | M35: 1000 | N35: Successful | O35: 2017-09-29
A36: 34 | B36: 2017-09-29 | C36: USDINR OCT FUT | D36: Buy | E36: 65.514 | F36: 65.25 | G36: 65.85 | H36: 66 | I36: Profit of Rs 0.34/- | K36: 0.34 | L36: =K36*M36 -> 336 | M36: 1000 | N36: Successful | O36: 2017-10-03
A37: 35 | B37: 2017-10-09 | C37: USDINR OCT FUT | D37: Buy | E37: 65.48 | F37: 65.23 | G37: 65.5775 | H37: 65.95 | I37: Profit of Rs 0.10/- | K37: =G37-E37 -> 0.10 | L37: =K37*M37 -> 97.5 | M37: 1000 | N37: Successful | O37: 2017-10-09
A38: 36 | B38: 2017-10-10 | C38: USDINR OCT FUT | D38: Buy | E38: 65.41 | F38: 65.15 | G38: 65.5075 | H38: 66 | I38: Profit of Rs 0.10/- | K38: 0.10 | L38: 97.5 | M38: 1000 | N38: Successful | O38: 2017-10-10
A39: 37 | B39: 2017-10-11 | C39: USDINR OCT FUT | D39: Buy | E39: 65.38 | F39: 65.13 | G39: 65.13 | H39: 65.88 | I39: Loss of Rs.0.25/- | K39: -0.25 | L39: -250 | M39: 1000.00 | N39: Unsuccessful | O39: 2017-10-13
A40: 38 | B40: 2017-10-16 | C40: USDINR OCT FUT | D40: Buy | E40: 64.7925 | F40: 64.54 | G40: 64.905 | H40: 65.3 | I40: Profit of Rs 0.11/- | K40: =G40-E40 -> 0.11 | L40: =K40*M40 -> 112.5 | M40: 1000 | N40: Successful | O40: 2017-10-17
A41: 39 | B41: 2017-10-23 | C41: USDINR OCT FUT | D41: Buy | E41: 65.115 | F41: 64.85 | G41: 65.21 | H41: 65.5 | I41: Profit of Rs 0.09/- | K41: =G41-E41 -> 0.09 | L41: =K41*M41 -> 95 | M41: 1000 | N41: Successful | O41: 2017-10-25
A42: 40 | B42: 2017-10-23 | C42: JPYINR OCT FUT | D42: Buy | E42: 57.285 | F42: 57.03 | G42: 57.38 | H42: 58.4 | I42: Profit of Rs 0.10/- | K42: =G42-E42 -> 0.10 | L42: =K42*M42 -> 95 | M42: 1000 | N42: Successful | O42: 2017-10-23
A43: 41 | B43: 2017-10-26 | C43: USDINR OCT FUT | D43: Buy | E43: 64.755 | F43: 64.5 | G43: 64.87 | H43: 65.25 | I43: Profit of Rs 0.12/- | K43: 0.12 | L43: 115 | M43: 1000 | N43: Successful | O43: 2017-10-25
A44: 42 | B44: 2017-10-30 | C44: USDINR NOV FUT | D44: Buy | E44: 65.035 | F44: 64.79 | G44: 64.79 | H44: 65.5 | I44: Loss of Rs.0.24/- | K44: -0.24 | L44: -245 | M44: 1000.00 | N44: Unsuccessful | O44: 2017-11-01
A45: 43 | B45: 2017-11-01 | C45: JPYINR NOV FUT | D45: Buy | E45: 56.9875 | F45: 56.73 | G45: 57.0959 | H45: 57.5 | I45: Profit of Rs 0.11/- | K45: =G45-E45 -> 0.11 | L45: =K45*M45 -> 108.4 | M45: 1000 | N45: Successful | O45: 2017-11-07
A46: 44 | B46: 2017-11-02 | C46: USDINR NOV FUT | D46: Buy | E46: 64.7838 | F46: 64.5 | G46: 64.89 | H46: 65.25 | I46: Profit of Rs 0.11/- | K46: =G46-E46 -> 0.11 | L46: =K46*M46 -> 106.2 | M46: 1000 | N46: Successful | O46: 2017-11-06
A47: 45 | B47: 2017-11-08 | C47: USDINR NOV FUT | D47: Buy | E47: 65.1363 | F47: 64.8375 | G47: 65.235 | H47: 65.73 | I47: Profit of Rs 0.10/- | K47: =G47-E47 -> 0.10 | L47: =K47*M47 -> 98.7 | M47: 1000 | N47: Successful | O47: 2017-11-10
A48: 46 | B48: 2017-11-08 | C48: GBPINR NOV FUT | D48: Buy | E48: 85.4983 | F48: 85.25 | G48: 85.6 | H48: 86 | I48: Profit of Rs 0.10/- | K48: =G48-E48 -> 0.10 | L48: =K48*M48 -> 101.7 | M48: 1000 | N48: Successful | O48: 2017-11-09
A49: 47 | B49: 2017-11-16 | C49: EURINR NOV FUT | D49: Buy | E49: 76.8975 | F49: 76.3975 | G49: 76.3975 | H49: 77.8975 | I49: Loss of Rs.0.50/- | K49: =G49-E49 -> -0.50 | L49: -500 | M49: 1000.00 | N49: Unsuccessful | O49: 2017-11-01
A50: 48 | B50: 2017-11-16 | C50: JPYINR NOV FUT | D50: Buy | E50: 57.6625 | F50: 57.2675 | G50: 57.8075 | H50: 58.6675 | I50: Profit of Rs 0.14/- | K50: =G50-E50 -> 0.14 | L50: =K50*M50 -> 145 | M50: 1000 | N50: Successful | O50: 2017-11-17
A51: 49 | B51: 2017-11-22 | C51: EURINR NOV FUT | D51: Buy | E51: 76.175 | F51: 75.95 | G51: 76.335 | H51: 76.6 | I51: Profit of Rs 0.16/- | K51: 0.16 | L51: =K51*M51 -> 160 | M51: 1000 | N51: Successful | O51: 2017-11-22
A52: 50 | B52: 2017-11-22 | C52: USDINR NOV FUT | D52: Buy | E52: 64.87 | F52: 64.5 | G52: 64.5 | H52: 65.5 | I52: Loss of Rs.0.37/- | K52: -0.37 | L52: -370 | M52: 1000.00 | N52: Unsuccessful | O52: 2017-11-27
A53: 51 | B53: 2017-11-28 | C53: GBPINR DEC FUT | D53: Buy | E53: 86.17 | F53: 85.85 | G53: 86.46 | H53: 87 | I53: Profit of Rs 0.29/- | K53: 0.29 | L53: =K53*M53 -> 290 | M53: 1000 | N53: Successful | O53: 2017-11-29
A54: 52 | B54: 2017-11-28 | C54: JPYINR DEC FUT | D54: Buy | E54: 58.16 | F54: 57.85 | G54: 57.85 | H54: 58.6 | I54: Loss of Rs.0.31/- | K54: -0.31 | L54: -310 | M54: 1000.00 | N54: Unsuccessful | O54: 2017-11-29
A55: 53 | B55: 2017-11-28 | C55: USDINR DEC FUT | D55: Buy | E55: 64.63 | F55: 64.13 | G55: 64.13 | H55: 65.63 | I55: Loss of Rs.0.50/- | K55: -0.50 | L55: =K55*M55 -> -500 | M55: 1000.00 | N55: Unsuccessful | O55: 2017-12-15
A56: 54 | B56: 2017-11-28 | C56: EURINR DEC FUT | D56: Buy | E56: 76.93 | F56: 76.43 | G56: 76.43 | H56: 77.93 | I56: Loss of Rs.0.50/- | K56: =G56-E56 -> -0.50 | L56: =K56*M56 -> -500 | M56: 1000.00 | N56: Unsuccessful | O56: 2017-11-29
A57: 55 | B57: 2017-12-12 | C57: EURINR DEC FUT | D57: Buy | E57: 76.105 | F57: 75.7 | G57: 76.27 | H57: 76.8 | I57: Profit of Rs 0.16/- | K57: =G57-E57 -> 0.16 | L57: 165 | M57: 1000 | N57: Successful | O57: 2017-12-14
A58: 56 | B58: 2017-12-12 | C58: JPYINR DEC FUT | D58: Buy | E58: 56.975 | F58: 56.7 | G58: 57.21 | H58: 57.6 | I58: Profit of Rs 0.23/- | K58: =G58-E58 -> 0.23 | L58: =K58*M58 -> 235 | M58: 1000 | N58: Successful | O58: 2017-12-14

Sheet Sheet2 (hidden)
A1: SYMBOL | B1: SERIES | C1: OPEN | D1: HIGH | E1: LOW | F1: CLOSE | G1: LAST | H1: PREVCLOSE | I1: TOTTRDQTY | J1: TOTTRDVAL | K1: TIMESTAMP | L1: TOTALTRADES | M1: ISIN | N1: ISIN
A2: 20MICRONS | B2: EQ | C2: 43.55 | D2: 43.55 | E2: 41.25 | F2: 41.45 | G2: 41.8 | H2: 42.55 | I2: 33382 | J2: 1404355.4 | K2: 2018-05-21 | L2: 392 | M2: INE144J01027
A3: 21STCENMGM | B3: EQ | C3: 39.9 | D3: 39.9 | E3: 39.9 | F3: 39.9 | G3: 39.9 | H3: 40.7 | I3: 221 | J3: 8817.9 | K3: 2018-05-21 | L3: 4 | M3: INE253B01015
A4: 3IINFOTECH | B4: EQ | C4: 4.4 | D4: 4.5 | E4: 4.2 | F4: 4.5 | G4: 4.5 | H4: 4.3 | I4: 2625057 | J4: 11674737.2 | K4: 2018-05-21 | L4: 1318 | M4: INE748C01020
A5: 3MINDIA | B5: EQ | C5: 19990 | D5: 19999.95 | E5: 19200 | F5: 19251.75 | G5: 19300 | H5: 19870.75 | I5: 1115 | J5: 21721060.05 | K5: 2018-05-21 | L5: 432 | M5: INE470A01017
A6: 3PLAND | B6: EQ | C6: 13.3 | D6: 13.8 | E6: 13.1 | F6: 13.3 | G6: 13.3 | H6: 13.05 | I6: 2472 | J6: 33133.8 | K6: 2018-05-21 | L6: 17 | M6: INE105C01023
A7: 5PAISA | B7: EQ | C7: 400.05 | D7: 419.55 | E7: 392.45 | F7: 392.45 | G7: 392.45 | H7: 413.1 | I7: 12999 | J7: 5167544.15 | K7: 2018-05-21 | L7: 214 | M7: INE618L01018
A8: 63MOONS | B8: EQ | C8: 80.25 | D8: 83 | E8: 79.35 | F8: 81.65 | G8: 81.2 | H8: 80.3 | I8: 229065 | J8: 18605450.25 | K8: 2018-05-21 | L8: 3812 | M8: INE111B01023
A9: 8KMILES | B9: EQ | C9: 598.45 | D9: 601.5 | E9: 510.05 | F9: 528.7 | G9: 530.55 | H9: 597.95 | I9: 492030 | J9: 264841859.4 | K9: 2018-05-21 | L9: 16014 | M9: INE650K01021
A10: A2ZINFRA | B10: EQ | C10: 21.2 | D10: 21.85 | E10: 19.8 | F10: 20.15 | G10: 20.3 | H10: 21.3 | I10: 548775 | J10: 11300511.85 | K10: 2018-05-21 | L10: 2808 | M10: INE619I01012
A11: AARTIDRUGS | B11: EQ | C11: 550 | D11: 555.05 | E11: 535.1 | F11: 540 | G11: 538.15 | H11: 549.85 | I11: 1673 | J11: 910549.95 | K11: 2018-05-21 | L11: 203 | M11: INE767A01016
A12: AARTIIND | B12: EQ | C12: 1252.05 | D12: 1257.45 | E12: 1196.1 | F12: 1222.55 | G12: 1220 | H12: 1260.5 | I12: 43376 | J12: 52643872.6 | K12: 2018-05-21 | L12: 4281 | M12: INE769A01020
A13: AARVEEDEN | B13: EQ | C13: 40.6 | D13: 41.6 | E13: 38.5 | F13: 39 | G13: 39 | H13: 40.55 | I13: 47628 | J13: 1864119.4 | K13: 2018-05-21 | L13: 124 | M13: INE273D01019
A14: ABAN | B14: EQ | C14: 161.6 | D14: 161.95 | E14: 153.55 | F14: 156.55 | G14: 156.65 | H14: 161.6 | I14: 700706 | J14: 110394176.3 | K14: 2018-05-21 | L14: 9081 | M14: INE421A01028
A15: ABB | B15: EQ | C15: 1220 | D15: 1233.85 | E15: 1198 | F15: 1200.2 | G15: 1198.9 | H15: 1216.35 | I15: 20256 | J15: 24427269.3 | K15: 2018-05-21 | L15: 1601 | M15: INE117A01022
A16: ABBOTINDIA | B16: EQ | C16: 6847 | D16: 6847 | E16: 6555.25 | F16: 6606.6 | G16: 6581 | H16: 6727.85 | I16: 5243 | J16: 34921033.45 | K16: 2018-05-21 | L16: 2223 | M16: INE358A01014
A17: ABCAPITAL | B17: EQ | C17: 148.4 | D17: 148.9 | E17: 143 | F17: 143.85 | G17: 143.8 | H17: 147.5 | I17: 1789491 | J17: 259964321.8 | K17: 2018-05-21 | L17: 19908 | M17: INE674K01013
A18: ABFRL | B18: EQ | C18: 144.1 | D18: 144.75 | E18: 139.05 | F18: 140.4 | G18: 141 | H18: 143.65 | I18: 228887 | J18: 32247621.55 | K18: 2018-05-21 | L18: 6419 | M18: INE647O01011
A19: ABMINTLTD | B19: BE | C19: 23.1 | D19: 23.1 | E19: 22.55 | F19: 22.55 | G19: 22.55 | H19: 23.7 | I19: 2 | J19: 45.65 | K19: 2018-05-21 | L19: 2 | M19: INE251C01017
A20: ACC | B20: EQ | C20: 1379 | D20: 1379.9 | E20: 1322.6 | F20: 1344.1 | G20: 1349.65 | H20: 1374.35 | I20: 380473 | J20: 511664797.9 | K20: 2018-05-21 | L20: 17553 | M20: INE012A01025
A21: ACCELYA | B21: EQ | C21: 1253.15 | D21: 1253.15 | E21: 1200 | F21: 1212.65 | G21: 1206.3 | H21: 1251.5 | I21: 8043 | J21: 9745343.75 | K21: 2018-05-21 | L21: 1622 | M21: INE793A01012
A22: ACE | B22: EQ | C22: 173 | D22: 176.2 | E22: 162.05 | F22: 163.8 | G22: 164.3 | H22: 173.85 | I22: 502795 | J22: 84896828.95 | K22: 2018-05-21 | L22: 6206 | M22: INE731H01025
A23: ADANIENT | B23: EQ | C23: 119 | D23: 120.9 | E23: 116 | F23: 118.2 | G23: 119 | H23: 118.6 | I23: 3196634 | J23: 376500112.2 | K23: 2018-05-21 | L23: 17729 | M23: INE423A01024
A24: ADANIPORTS | B24: EQ | C24: 389.35 | D24: 392.55 | E24: 381.5 | F24: 383.7 | G24: 385.25 | H24: 389.5 | I24: 1544488 | J24: 594888323.9 | K24: 2018-05-21 | L24: 44644 | M24: INE742F01042
A25: ADANIPOWER | B25: EQ | C25: 21.3 | D25: 21.55 | E25: 20.3 | F25: 20.7 | G25: 20.75 | H25: 21.15 | I25: 7186536 | J25: 149375444.2 | K25: 2018-05-21 | L25: 10419 | M25: INE814H01011
A26: ADANITRANS | B26: EQ | C26: 129 | D26: 131.7 | E26: 123.2 | F26: 125.3 | G26: 124.85 | H26: 128.15 | I26: 510767 | J26: 64515152.65 | K26: 2018-05-21 | L26: 4990 | M26: INE931S01010
A27: ADFFOODS | B27: EQ | C27: 262.95 | D27: 265.85 | E27: 248 | F27: 257.65 | G27: 254.2 | H27: 263.55 | I27: 835332 | J27: 217855212.9 | K27: 2018-05-21 | L27: 4803 | M27: INE982B01019
A28: ADHUNIK | B28: EQ | C28: 3.4 | D28: 3.4 | E28: 3.2 | F28: 3.3 | G28: 3.3 | H28: 3.25 | I28: 39826 | J28: 131546.45 | K28: 2018-05-21 | L28: 78 | M28: INE400H01019
A29: ADHUNIKIND | B29: EQ | C29: 72 | D29: 72 | E29: 66.8 | F29: 66.8 | G29: 66.8 | H29: 70.3 | I29: 2990 | J29: 200166.3 | K29: 2018-05-21 | L29: 46 | M29: INE452L01012
A30: ADLABS | B30: EQ | C30: 45.05 | D30: 45.75 | E30: 43.8 | F30: 44.2 | G30: 44.6 | H30: 45.2 | I30: 50132 | J30: 2219389.85 | K30: 2018-05-21 | L30: 498 | M30: INE172N01012
A31: ADORWELD | B31: EQ | C31: 357.05 | D31: 357.85 | E31: 343.3 | F31: 346.05 | G31: 345.75 | H31: 356.95 | I31: 9553 | J31: 3353277.15 | K31: 2018-05-21 | L31: 296 | M31: INE045A01017
A32: ADROITINFO | B32: EQ | C32: 29.4 | D32: 31.95 | E32: 29 | F32: 29.85 | G32: 30.1 | H32: 30 | I32: 6420 | J32: 194905.75 | K32: 2018-05-21 | L32: 95 | M32: INE737B01033
A33: ADSL | B33: EQ | C33: 16.05 | D33: 17.4 | E33: 16.05 | F33: 16.25 | G33: 16.05 | H33: 16.8 | I33: 36678 | J33: 616701.4 | K33: 2018-05-21 | L33: 107 | M33: INE102I01027
A34: ADVANIHOTR | B34: EQ | C34: 59.2 | D34: 59.2 | E34: 55.1 | F34: 56.2 | G34: 55.9 | H34: 58.25 | I34: 11768 | J34: 661234.35 | K34: 2018-05-21 | L34: 191 | M34: INE199C01026
A35: ADVENZYMES | B35: EQ | C35: 225.2 | D35: 225.8 | E35: 218 | F35: 221.4 | G35: 220.65 | H35: 226.2 | I35: 194958 | J35: 43025509.3 | K35: 2018-05-21 | L35: 3965 | M35: INE837H01020
A36: AEGISCHEM | B36: EQ | C36: 261.9 | D36: 264.25 | E36: 253 | F36: 257.55 | G36: 257.6 | H36: 262.15 | I36: 46795 | J36: 12033302.35 | K36: 2018-05-21 | L36: 2034 | M36: INE208C01025
A37: AFL | B37: EQ | C37: 47 | D37: 48.6 | E37: 46 | F37: 47.45 | G37: 47.55 | H37: 46.9 | I37: 7709 | J37: 365715.6 | K37: 2018-05-21 | L37: 38 | M37: INE020G01017
A38: AGARIND | B38: BE | C38: 259.95 | D38: 259.95 | E38: 238 | F38: 251.2 | G38: 252 | H38: 250.1 | I38: 2368 | J38: 592052.1 | K38: 2018-05-21 | L38: 29 | M38: INE204E01012
A39: AGCNET | B39: EQ | C39: 114.95 | D39: 114.95 | E39: 105.25 | F39: 106.35 | G39: 106.35 | H39: 110.45 | I39: 1501 | J39: 161962.15 | K39: 2018-05-21 | L39: 22 | M39: INE676A01019
A40: AGLSL | B40: EQ | C40: 94.5 | D40: 96 | E40: 93.5 | F40: 94.8 | G40: 95.8 | H40: 95.9 | I40: 7972 | J40: 752434.05 | K40: 2018-05-21 | L40: 61 | M40: INE517U01013
A41: AGRITECH | B41: EQ | C41: 121.1 | D41: 124.2 | E41: 119.1 | F41: 122.25 | G41: 123.5 | H41: 120.75 | I41: 16897 | J41: 2059893.2 | K41: 2018-05-21 | L41: 348 | M41: INE449G01018
A42: AHLEAST | B42: EQ | C42: 314 | D42: 314 | E42: 287.8 | F42: 298.4 | G42: 296 | H42: 299.8 | I42: 2505 | J42: 738198.35 | K42: 2018-05-21 | L42: 151 | M42: INE926K01017
A43: AHLUCONT | B43: EQ | C43: 366.6 | D43: 380.2 | E43: 365 | F43: 373.6 | G43: 378 | H43: 371.4 | I43: 25016 | J43: 9342477.85 | K43: 2018-05-21 | L43: 436 | M43: INE758C01029
A44: AHLWEST | B44: BE | C44: 287 | D44: 287 | E44: 272.65 | F44: 272.65 | G44: 272.65 | H44: 287 | I44: 313 | J44: 85547.4 | K44: 2018-05-21 | L44: 16 | M44: INE915K01010
A45: AIAENG | B45: EQ | C45: 1585 | D45: 1585 | E45: 1525 | F45: 1534.7 | G45: 1527 | H45: 1564.4 | I45: 28511 | J45: 44156298.85 | K45: 2018-05-21 | L45: 2419 | M45: INE212H01026
A46: AICHAMP | B46: BE | C46: 23.8 | D46: 23.8 | E46: 23.8 | F46: 23.8 | G46: 23.8 | H46: 25 | I46: 495 | J46: 11781 | K46: 2018-05-21 | L46: 2 | M46: INE768E01024
A47: AIFL | B47: EQ | C47: 455.5 | D47: 471.15 | E47: 455.5 | F47: 459.85 | G47: 466 | H47: 460.5 | I47: 104590 | J47: 48683856 | K47: 2018-05-21 | L47: 1126 | M47: INE428O01016
A48: AJANTPHARM | B48: EQ | C48: 1015.1 | D48: 1015.15 | E48: 978.45 | F48: 986.5 | G48: 981 | H48: 1023 | I48: 316232 | J48: 313732586.9 | K48: 2018-05-21 | L48: 11306 | M48: INE031B01049
A49: AJMERA | B49: EQ | C49: 251.3 | D49: 252 | E49: 238.65 | F49: 240.25 | G49: 240.9 | H49: 251.8 | I49: 102036 | J49: 24812873.45 | K49: 2018-05-21 | L49: 2271 | M49: INE298G01027
A50: AKSHARCHEM | B50: EQ | C50: 590.6 | D50: 602.9 | E50: 574 | F50: 583.5 | G50: 584 | H50: 596.65 | I50: 8242 | J50: 4880399.15 | K50: 2018-05-21 | L50: 3519 | M50: INE542B01011
A51: AKSHOPTFBR | B51: EQ | C51: 33.3 | D51: 33.75 | E51: 32.25 | F51: 32.35 | G51: 32.5 | H51: 33.3 | I51: 542768 | J51: 17839653.1 | K51: 2018-05-21 | L51: 1913 | M51: INE523B01011
A52: AKZOINDIA | B52: EQ | C52: 1940 | D52: 1940 | E52: 1895 | F52: 1900.7 | G52: 1910 | H52: 1947.35 | I52: 15648 | J52: 29826389.05 | K52: 2018-05-21 | L52: 1276 | M52: INE133A01011
A53: ALANKIT | B53: EQ | C53: 32.9 | D53: 33.6 | E53: 32.3 | F53: 32.3 | G53: 32.3 | H53: 34 | I53: 215419 | J53: 7048486.15 | K53: 2018-05-21 | L53: 381 | M53: INE914E01040
A54: ALBERTDAVD | B54: EQ | C54: 385.35 | D54: 385.35 | E54: 356.1 | F54: 366.2 | G54: 368.45 | H54: 367.85 | I54: 5159 | J54: 1870956.85 | K54: 2018-05-21 | L54: 85 | M54: INE155C01010
A55: ALBK | B55: EQ | C55: 38.05 | D55: 39.15 | E55: 37.5 | F55: 38.55 | G55: 38.5 | H55: 37.75 | I55: 5007888 | J55: 191609180.1 | K55: 2018-05-21 | L55: 10886 | M55: INE428A01015
A56: ALCHEM | B56: BE | C56: 7.45 | D56: 7.6 | E56: 6.9 | F56: 6.95 | G56: 6.95 | H56: 7.25 | I56: 1809 | J56: 12837.5 | K56: 2018-05-21 | L56: 27 | M56: INE964B01033
A57: ALEMBICLTD | B57: EQ | C57: 51.25 | D57: 52.3 | E57: 51.1 | F57: 51.55 | G57: 51.6 | H57: 51.5 | I57: 328923 | J57: 16944049.95 | K57: 2018-05-21 | L57: 1359 | M57: INE426A01027
A58: ALICON | B58: EQ | C58: 617.55 | D58: 627.4 | E58: 597 | F58: 602.8 | G58: 604 | H58: 619.45 | I58: 2241 | J58: 1354193.95 | K58: 2018-05-21 | L58: 156 | M58: INE062D01024
A59: ALKALI | B59: EQ | C59: 81 | D59: 81 | E59: 76.6 | F59: 77.85 | G59: 78 | H59: 78.2 | I59: 6517 | J59: 509687.7 | K59: 2018-05-21 | L59: 103 | M59: INE773I01017
A60: ALKEM | B60: EQ | C60: 1970.95 | D60: 1978 | E60: 1926.55 | F60: 1940.95 | G60: 1928 | H60: 1970.75 | I60: 7630 | J60: 14859535.15 | K60: 2018-05-21 | L60: 2333 | M60: INE540L01014
A61: ALKYLAMINE | B61: EQ | C61: 684.95 | D61: 729.7 | E61: 680.1 | F61: 701.75 | G61: 699 | H61: 678.55 | I61: 113502 | J61: 80796373.8 | K61: 2018-05-21 | L61: 4396 | M61: INE150B01021
A62: ALLCARGO | B62: EQ | C62: 129.55 | D62: 130.55 | E62: 124 | F62: 124.4 | G62: 124.1 | H62: 129.55 | I62: 160110 | J62: 20140303.75 | K62: 2018-05-21 | L62: 3038 | M62: INE418H01029
A63: ALLSEC | B63: EQ | C63: 366.65 | D63: 377.1 | E63: 355.45 | F63: 372.5 | G63: 374 | H63: 364.7 | I63: 7509 | J63: 2783918.35 | K63: 2018-05-21 | L63: 412 | M63: INE835G01018
A64: ALMONDZ | B64: BE | C64: 32 | D64: 32 | E64: 30.35 | F64: 30.4 | G64: 30.45 | H64: 31.9 | I64: 4071 | J64: 125157.7 | K64: 2018-05-21 | L64: 13 | M64: INE326B01027
A65: ALOKTEXT | B65: EQ | C65: 1.55 | D65: 1.6 | E65: 1.55 | F65: 1.55 | G65: 1.55 | H65: 1.6 | I65: 1203065 | J65: 1866225.8 | K65: 2018-05-21 | L65: 446 | M65: INE270A01011
A66: ALPA | B66: EQ | C66: 33.5 | D66: 33.7 | E66: 31.85 | F66: 32.15 | G66: 32.7 | H66: 33.55 | I66: 26939 | J66: 879222.7 | K66: 2018-05-21 | L66: 174 | M66: INE385I01010
A67: ALPHAGEO | B67: EQ | C67: 799.9 | D67: 799.9 | E67: 755.35 | F67: 761.6 | G67: 758.25 | H67: 799.5 | I67: 27514 | J67: 21270168.25 | K67: 2018-05-21 | L67: 1651 | M67: INE137C01018
A68: ALPSINDUS | B68: BE | C68: 2.05 | D68: 2.05 | E68: 1.95 | F68: 2 | G68: 2 | H68: 2.05 | I68: 6985 | J68: 13920.05 | K68: 2018-05-21 | L68: 13 | M68: INE093B01015
A69: AMARAJABAT | B69: EQ | C69: 814 | D69: 820 | E69: 756.45 | F69: 808.4 | G69: 802.3 | H69: 831.9 | I69: 2626589 | J69: 2078208274 | K69: 2018-05-21 | L69: 55310 | M69: INE885A01032
A70: AMBER | B70: EQ | C70: 1127 | D70: 1147.45 | E70: 1125 | F70: 1139.9 | G70: 1138 | H70: 1149.5 | I70: 12533 | J70: 14269864 | K70: 2018-05-21 | L70: 2248 | M70: INE371P01015
A71: AMBIKCO | B71: EQ | C71: 1358 | D71: 1360.85 | E71: 1330 | F71: 1334.5 | G71: 1330 | H71: 1358.5 | I71: 1963 | J71: 2636051.75 | K71: 2018-05-21 | L71: 211 | M71: INE540G01014
A72: AMBUJACEM | B72: EQ | C72: 210.45 | D72: 212.8 | E72: 204.25 | F72: 208.05 | G72: 207.5 | H72: 210.45 | I72: 1715130 | J72: 356880613.9 | K72: 2018-05-21 | L72: 17301 | M72: INE079A01024
A73: AMDIND | B73: EQ | C73: 25.25 | D73: 26.3 | E73: 24.75 | F73: 25.2 | G73: 25.25 | H73: 26.05 | I73: 21645 | J73: 543216.05 | K73: 2018-05-21 | L73: 104 | M73: INE005I01014
A74: AMJLAND | B74: EQ | C74: 28.5 | D74: 28.8 | E74: 27.45 | F74: 28.1 | G74: 27.75 | H74: 28.5 | I74: 21362 | J74: 597141.5 | K74: 2018-05-21 | L74: 116 | M74: INE606A01024
A75: AMRUTANJAN | B75: EQ | C75: 283 | D75: 283 | E75: 270 | F75: 272.45 | G75: 272 | H75: 279.45 | I75: 5285 | J75: 1452052.3 | K75: 2018-05-21 | L75: 271 | M75: INE098F01031
A76: ANANTRAJ | B76: EQ | C76: 40.5 | D76: 40.95 | E76: 39.1 | F76: 39.4 | G76: 39.25 | H76: 41.1 | I76: 420220 | J76: 16771608.9 | K76: 2018-05-21 | L76: 1825 | M76: INE242C01024
A77: ANDHRABANK | B77: EQ | C77: 34.6 | D77: 35.35 | E77: 34.1 | F77: 34.95 | G77: 35 | H77: 34.35 | I77: 4283653 | J77: 148485072.5 | K77: 2018-05-21 | L77: 8166 | M77: INE434A01013
A78: ANDHRACEMT | B78: EQ | C78: 10 | D78: 10 | E78: 9.55 | F78: 9.65 | G78: 9.6 | H78: 10.2 | I78: 125128 | J78: 1219800.45 | K78: 2018-05-21 | L78: 252 | M78: INE666E01012
A79: ANDHRSUGAR | B79: EQ | C79: 390.65 | D79: 404 | E79: 372.5 | F79: 379.95 | G79: 381.9 | H79: 390.65 | I79: 36270 | J79: 14121579.1 | K79: 2018-05-21 | L79: 2706 | M79: INE715B01013
A80: ANGIND | B80: BE | C80: 2.7 | D80: 2.7 | E80: 2.5 | F80: 2.5 | G80: 2.5 | H80: 2.6 | I80: 14312 | J80: 35790.2 | K80: 2018-05-21 | L80: 24 | M80: INE017D01010
A81: ANIKINDS | B81: BE | C81: 32 | D81: 33 | E81: 31.45 | F81: 32.1 | G81: 32.85 | H81: 32.3 | I81: 4003 | J81: 127382.2 | K81: 2018-05-21 | L81: 47 | M81: INE087B01017
A82: ANSALAPI | B82: EQ | C82: 17.8 | D82: 18.1 | E82: 15.9 | F82: 15.9 | G82: 15.9 | H82: 17.65 | I82: 419524 | J82: 6967965.35 | K82: 2018-05-21 | L82: 690 | M82: INE436A01026
A83: ANSALHSG | B83: EQ | C83: 16.9 | D83: 16.9 | E83: 16.1 | F83: 16.3 | G83: 16.4 | H83: 17.2 | I83: 42905 | J83: 707204.65 | K83: 2018-05-21 | L83: 174 | M83: INE880B01015
A84: ANTGRAPHIC | B84: BE | C84: 0.65 | D84: 0.75 | E84: 0.65 | F84: 0.7 | G84: 0.75 | H84: 0.7 | I84: 133806 | J84: 91541.05 | K84: 2018-05-21 | L84: 60 | M84: INE414B01021
A85: APARINDS | B85: EQ | C85: 753.2 | D85: 755 | E85: 730.1 | F85: 744.95 | G85: 733.05 | H85: 750.95 | I85: 17780 | J85: 13329230.65 | K85: 2018-05-21 | L85: 671 | M85: INE372A01015
A86: APCL | B86: EQ | C86: 182.05 | D86: 189.95 | E86: 175.5 | F86: 181.6 | G86: 188.85 | H86: 186.05 | I86: 2389 | J86: 433002.1 | K86: 2018-05-21 | L86: 67 | M86: INE071F01012
A87: APCOTEXIND | B87: EQ | C87: 533 | D87: 544.95 | E87: 525.65 | F87: 534.55 | G87: 534.1 | H87: 543.75 | I87: 8900 | J87: 4761401.45 | K87: 2018-05-21 | L87: 343 | M87: INE116A01024
A88: APEX | B88: EQ | C88: 577 | D88: 596.7 | E88: 545.05 | F88: 584.6 | G88: 585.9 | H88: 574.65 | I88: 202847 | J88: 117261690.5 | K88: 2018-05-21 | L88: 7512 | M88: INE346W01013
A89: APLAPOLLO | B89: EQ | C89: 1980 | D89: 1980 | E89: 1897.35 | F89: 1930.9 | G89: 1900 | H89: 1984.75 | I89: 20628 | J89: 40306023.45 | K89: 2018-05-21 | L89: 1719 | M89: INE702C01019
A90: APLLTD | B90: EQ | C90: 453.65 | D90: 463.8 | E90: 439.95 | F90: 444.55 | G90: 445 | H90: 465.3 | I90: 43554 | J90: 19466881.85 | K90: 2018-05-21 | L90: 8513 | M90: INE901L01018
A91: APOLLO | B91: EQ | C91: 198 | D91: 198.05 | E91: 186 | F91: 186.75 | G91: 186.05 | H91: 197.5 | I91: 37533 | J91: 7115151.35 | K91: 2018-05-21 | L91: 1229 | M91: INE713T01010
A92: APOLLOHOSP | B92: EQ | C92: 1016 | D92: 1019.05 | E92: 977 | F92: 983.5 | G92: 981.25 | H92: 1016.65 | I92: 254209 | J92: 250717620.6 | K92: 2018-05-21 | L92: 21634 | M92: INE437A01024
A93: APOLLOTYRE | B93: EQ | C93: 285 | D93: 286.45 | E93: 273.15 | F93: 276 | G93: 275.5 | H93: 285.95 | I93: 2647317 | J93: 735095937 | K93: 2018-05-21 | L93: 47697 | M93: INE438A01022
A94: APOLSINHOT | B94: EQ | C94: 1721.05 | D94: 1774.85 | E94: 1640 | F94: 1653.85 | G94: 1640 | H94: 1721 | I94: 712 | J94: 1208369 | K94: 2018-05-21 | L94: 183 | M94: INE451F01016
A95: APTECHT | B95: EQ | C95: 229.9 | D95: 231.9 | E95: 217.2 | F95: 219.9 | G95: 218.8 | H95: 231.3 | I95: 401704 | J95: 89279093.35 | K95: 2018-05-21 | L95: 7444 | M95: INE266F01018
A96: ARCHIDPLY | B96: EQ | C96: 83.5 | D96: 84.05 | E96: 83 | F96: 83.5 | G96: 83.8 | H96: 84.75 | I96: 97089 | J96: 8126182.8 | K96: 2018-05-21 | L96: 205 | M96: INE877I01016
A97: ARCHIES | B97: BE | C97: 32.1 | D97: 33.55 | E97: 31.3 | F97: 32.05 | G97: 31.8 | H97: 32.9 | I97: 62945 | J97: 2026349.45 | K97: 2018-05-21 | L97: 232 | M97: INE731A01020
A98: ARCOTECH | B98: EQ | C98: 23.05 | D98: 23.95 | E98: 22.45 | F98: 22.75 | G98: 22.6 | H98: 23.05 | I98: 575820 | J98: 13270214.5 | K98: 2018-05-21 | L98: 2252 | M98: INE574I01035
A99: ARIES | B99: EQ | C99: 184.5 | D99: 184.5 | E99: 176 | F99: 177.1 | G99: 176 | H99: 181.2 | I99: 13218 | J99: 2370133.55 | K99: 2018-05-21 | L99: 353 | M99: INE298I01015
A100: ARIHANT | B100: BE | C100: 39.7 | D100: 39.9 | E100: 39 | F100: 39 | G100: 39 | H100: 39.7 | I100: 286 | J100: 11244.7 | K100: 2018-05-21 | L100: 4 | M100: INE413D01011
A101: ARIHANTSUP | B101: EQ | C101: 130.05 | D101: 131 | E101: 127 | F101: 128.4 | G101: 127.6 | H101: 132.15 | I101: 40957 | J101: 5266024.75 | K101: 2018-05-21 | L101: 224 | M101: INE643K01018
A102: ARMANFIN | B102: BE | C102: 409 | D102: 409 | E102: 370.55 | F102: 374.4 | G102: 370.55 | H102: 390.05 | I102: 2405 | J102: 912530.25 | K102: 2018-05-21 | L102: 47 | M102: INE109C01017
A103: AROGRANITE | B103: EQ | C103: 63.9 | D103: 63.9 | E103: 59.25 | F103: 60.45 | G103: 60.35 | H103: 61.4 | I103: 65710 | J103: 3998549.4 | K103: 2018-05-21 | L103: 646 | M103: INE210C01013
A104: ARROWGREEN | B104: EQ | C104: 278.5 | D104: 286 | E104: 270.1 | F104: 271.5 | G104: 270.1 | H104: 282.15 | I104: 7740 | J104: 2125319.7 | K104: 2018-05-21 | L104: 1281 | M104: INE570D01018
A105: ARROWTEX | B105: EQ | C105: 34.05 | D105: 34.05 | E105: 30.4 | F105: 30.7 | G105: 30.8 | H105: 33.75 | I105: 25441 | J105: 792606.85 | K105: 2018-05-21 | L105: 206 | M105: INE933J01015
A106: ARSHIYA | B106: EQ | C106: 64.55 | D106: 64.55 | E106: 60.5 | F106: 60.85 | G106: 60.6 | H106: 62.7 | I106: 30958 | J106: 1903671.35 | K106: 2018-05-21 | L106: 293 | M106: INE968D01022
A107: ARSSINFRA | B107: BE | C107: 28.6 | D107: 28.6 | E107: 28.6 | F107: 28.6 | G107: 28.6 | H107: 30.1 | I107: 57433 | J107: 1642583.8 | K107: 2018-05-21 | L107: 75 | M107: INE267I01010
A108: ARVIND | B108: EQ | C108: 398.5 | D108: 403.75 | E108: 388.1 | F108: 390.35 | G108: 390.4 | H108: 399.4 | I108: 1619545 | J108: 637385653.4 | K108: 2018-05-21 | L108: 25108 | M108: INE034A01011
A109: ARVSMART | B109: EQ | C109: 184.95 | D109: 186.7 | E109: 174.6 | F109: 179.2 | G109: 180 | H109: 185 | I109: 27150 | J109: 4883326.9 | K109: 2018-05-21 | L109: 582 | M109: INE034S01021
A110: ASAHIINDIA | B110: EQ | C110: 333 | D110: 339 | E110: 329 | F110: 334.9 | G110: 331.95 | H110: 334.5 | I110: 57621 | J110: 19119993.3 | K110: 2018-05-21 | L110: 1015 | M110: INE439A01020
A111: ASAHISONG | B111: EQ | C111: 324 | D111: 325 | E111: 310 | F111: 313.55 | G111: 311 | H111: 323.55 | I111: 2201 | J111: 696262.7 | K111: 2018-05-21 | L111: 133 | M111: INE228I01012
A112: ASAL | B112: EQ | C112: 71 | D112: 72 | E112: 69.2 | F112: 69.5 | G112: 69.5 | H112: 71.25 | I112: 10379 | J112: 730015.05 | K112: 2018-05-21 | L112: 138 | M112: INE900C01027
A113: ASHAPURMIN | B113: EQ | C113: 59 | D113: 60.3 | E113: 57.4 | F113: 57.85 | G113: 57.6 | H113: 58.8 | I113: 73344 | J113: 4298314.65 | K113: 2018-05-21 | L113: 1084 | M113: INE348A01023
A114: ASHIANA | B114: EQ | C114: 156.35 | D114: 157 | E114: 151 | F114: 153.15 | G114: 154.1 | H114: 156.5 | I114: 36393 | J114: 5599077.4 | K114: 2018-05-21 | L114: 782 | M114: INE365D01021
A115: ASHIMASYN | B115: EQ | C115: 26.05 | D115: 26.65 | E115: 24.7 | F115: 25 | G115: 25.05 | H115: 27 | I115: 112384 | J115: 2868694.65 | K115: 2018-05-21 | L115: 625 | M115: INE440A01010
A116: ASHOKA | B116: EQ | C116: 263.05 | D116: 264.95 | E116: 240.95 | F116: 243.85 | G116: 244.05 | H116: 263.6 | I116: 138134 | J116: 34667634.8 | K116: 2018-05-21 | L116: 4103 | M116: INE442H01029
A117: ASHOKLEY | B117: EQ | C117: 147.95 | D117: 147.95 | E117: 133.35 | F117: 134.3 | G117: 133.75 | H117: 148.4 | I117: 53028114 | J117: 7314913902 | K117: 2018-05-21 | L117: 219011 | M117: INE208A01029
A118: ASIANHOTNR | B118: EQ | C118: 273.2 | D118: 299.65 | E118: 273.2 | F118: 283.15 | G118: 282.85 | H118: 285.4 | I118: 1727 | J118: 486228.4 | K118: 2018-05-21 | L118: 56 | M118: INE363A01022
A119: ASIANPAINT | B119: EQ | C119: 1305 | D119: 1314.7 | E119: 1290.85 | F119: 1301.7 | G119: 1305 | H119: 1308.35 | I119: 692442 | J119: 900960414.6 | K119: 2018-05-21 | L119: 31201 | M119: INE021A01026
A120: ASIANTILES | B120: EQ | C120: 451 | D120: 455 | E120: 422 | F120: 426.8 | G120: 426.1 | H120: 452 | I120: 90785 | J120: 39155515.85 | K120: 2018-05-21 | L120: 2590 | M120: INE022I01019
A121: ASPINWALL | B121: EQ | C121: 346.6 | D121: 350 | E121: 340.1 | F121: 340.15 | G121: 340.1 | H121: 346.6 | I121: 607 | J121: 210870.1 | K121: 2018-05-21 | L121: 18 | M121: INE991I01015
A122: ASSAMCO | B122: EQ | C122: 4 | D122: 4 | E122: 3.75 | F122: 3.85 | G122: 3.85 | H122: 3.95 | I122: 603044 | J122: 2323991.5 | K122: 2018-05-21 | L122: 315 | M122: INE442A01024
A123: ASTEC | B123: EQ | C123: 677 | D123: 698 | E123: 642.4 | F123: 668.65 | G123: 673 | H123: 679.8 | I123: 29327 | J123: 19684398.55 | K123: 2018-05-21 | L123: 1569 | M123: INE563J01010
A124: ASTERDM | B124: EQ | C124: 187.35 | D124: 191 | E124: 185.2 | F124: 188.05 | G124: 188.25 | H124: 187.95 | I124: 316856 | J124: 59789231.1 | K124: 2018-05-21 | L124: 5797 | M124: INE914M01019
A125: ASTRAL | B125: EQ | C125: 947 | D125: 947 | E125: 917.5 | F125: 919.05 | G125: 919 | H125: 932.3 | I125: 10248 | J125: 9445303.3 | K125: 2018-05-21 | L125: 856 | M125: INE006I01046
A126: ASTRAMICRO | B126: EQ | C126: 90 | D126: 92.75 | E126: 89.5 | F126: 90.55 | G126: 89.95 | H126: 90.2 | I126: 210883 | J126: 19189848.1 | K126: 2018-05-21 | L126: 2119 | M126: INE386C01029
A127: ASTRAZEN | B127: EQ | C127: 1140.85 | D127: 1170 | E127: 1126.05 | F127: 1140.05 | G127: 1141 | H127: 1131.1 | I127: 108453 | J127: 123616107.8 | K127: 2018-05-21 | L127: 1613 | M127: INE203A01020
A128: ASTRON | B128: EQ | C128: 115.05 | D128: 115.75 | E128: 112.25 | F128: 113.35 | G128: 113.65 | H128: 115.8 | I128: 72799 | J128: 8280808.1 | K128: 2018-05-21 | L128: 1593 | M128: INE646X01014
A129: ATFL | B129: EQ | C129: 706.35 | D129: 710 | E129: 662 | F129: 669.05 | G129: 667.25 | H129: 710.35 | I129: 22243 | J129: 15150611.6 | K129: 2018-05-21 | L129: 1095 | M129: INE209A01019
A130: ATLANTA | B130: EQ | C130: 65.6 | D130: 65.6 | E130: 61 | F130: 61.65 | G130: 61.5 | H130: 65.6 | I130: 105475 | J130: 6616953.8 | K130: 2018-05-21 | L130: 1388 | M130: INE285H01022
A131: ATLASCYCLE | B131: BE | C131: 139 | D131: 142.6 | E131: 134.05 | F131: 135.15 | G131: 138.45 | H131: 140.5 | I131: 1818 | J131: 247867.5 | K131: 2018-05-21 | L131: 62 | M131: INE446A01025
A132: ATNINTER | B132: BE | C132: 0.2 | D132: 0.2 | E132: 0.2 | F132: 0.2 | G132: 0.2 | H132: 0.2 | I132: 10010 | J132: 2002 | K132: 2018-05-21 | L132: 5 | M132: INE803A01027
A133: ATUL | B133: EQ | C133: 2804.95 | D133: 2874.4 | E133: 2741.05 | F133: 2787.75 | G133: 2787 | H133: 2795.05 | I133: 8833 | J133: 24708736.6 | K133: 2018-05-21 | L133: 1034 | M133: INE100A01010
A134: ATULAUTO | B134: EQ | C134: 432 | D134: 440 | E134: 422 | F134: 426.75 | G134: 429 | H134: 424 | I134: 60099 | J134: 25741582.65 | K134: 2018-05-21 | L134: 2608 | M134: INE951D01028
A135: AUBANK | B135: EQ | C135: 700 | D135: 720.7 | E135: 697.35 | F135: 704.6 | G135: 705 | H135: 690.7 | I135: 277081 | J135: 196975455.6 | K135: 2018-05-21 | L135: 14677 | M135: INE949L01017
A136: AURIONPRO | B136: EQ | C136: 203.05 | D136: 207.25 | E136: 195.6 | F136: 198.15 | G136: 195.65 | H136: 202.05 | I136: 28841 | J136: 5772061.3 | K136: 2018-05-21 | L136: 597 | M136: INE132H01018
A137: AUROPHARMA | B137: EQ | C137: 575 | D137: 581.4 | E137: 562.45 | F137: 565.5 | G137: 563.7 | H137: 579.4 | I137: 1032294 | J137: 589769144.7 | K137: 2018-05-21 | L137: 18288 | M137: INE406A01037
A138: AUSOMENT | B138: EQ | C138: 69.65 | D138: 73.9 | E138: 68.05 | F138: 68.05 | G138: 68.05 | H138: 71.6 | I138: 7874 | J138: 545697.2 | K138: 2018-05-21 | L138: 102 | M138: INE218C01016
A139: AUTOAXLES | B139: EQ | C139: 1450.5 | D139: 1475 | E139: 1430.5 | F139: 1447.25 | G139: 1440.05 | H139: 1464.05 | I139: 11661 | J139: 16933815.35 | K139: 2018-05-21 | L139: 882 | M139: INE449A01011
A140: AUTOIND | B140: EQ | C140: 69.6 | D140: 72.95 | E140: 69.5 | F140: 70.1 | G140: 69.8 | H140: 71.5 | I140: 8753 | J140: 613909.15 | K140: 2018-05-21 | L140: 273 | M140: INE718H01014
A141: AUTOLITIND | B141: EQ | C141: 64.35 | D141: 67.7 | E141: 62.35 | F141: 64.25 | G141: 63 | H141: 65.15 | I141: 12719 | J141: 825929.1 | K141: 2018-05-21 | L141: 216 | M141: INE448A01013
A142: AVADHSUGAR | B142: EQ | C142: 334.95 | D142: 354.5 | E142: 330 | F142: 339.85 | G142: 339 | H142: 326.2 | I142: 83213 | J142: 28663461.8 | K142: 2018-05-21 | L142: 3303 | M142: INE349W01017
A143: AVANTIFEED | B143: EQ | C143: 2048.7 | D143: 2048.7 | E143: 1901 | F143: 1953 | G143: 1940 | H143: 2044.4 | I143: 135244 | J143: 265062323.4 | K143: 2018-05-21 | L143: 12884 | M143: INE871C01020
A144: AVTNPL | B144: EQ | C144: 33.5 | D144: 35 | E144: 33.4 | F144: 33.5 | G144: 33.5 | H144: 34.55 | I144: 98416 | J144: 3329415.7 | K144: 2018-05-21 | L144: 449 | M144: INE488D01021
A145: AXISBANK | B145: EQ | C145: 535 | D145: 537.8 | E145: 521.85 | F145: 526.85 | G145: 528 | H145: 532.9 | I145: 4258800 | J145: 2244445551 | K145: 2018-05-21 | L145: 53676 | M145: INE238A01034
A146: AXISCADES | B146: EQ | C146: 153 | D146: 156 | E146: 144.4 | F146: 147.75 | G146: 148 | H146: 153.35 | I146: 45613 | J146: 6786236 | K146: 2018-05-21 | L146: 1810 | M146: INE555B01013
A147: AXISGOLD | B147: EQ | C147: 2700 | D147: 2708 | E147: 2681.05 | F147: 2681.05 | G147: 2681.05 | H147: 2695 | I147: 73 | J147: 197184.4 | K147: 2018-05-21 | L147: 19 | M147: INF846K01347
A148: AXISNIFTY | B148: EQ | C148: 1070.12 | D148: 1070.12 | E148: 1055.22 | F148: 1055.22 | G148: 1055.22 | H148: 1076.45 | I148: 15 | J148: 15977.3 | K148: 2018-05-21 | L148: 2 | M148: INF846K01ZL0
A149: AYMSYNTEX | B149: EQ | C149: 60.85 | D149: 63 | E149: 58.2 | F149: 59.6 | G149: 59.5 | H149: 60.85 | I149: 13294 | J149: 797354.4 | K149: 2018-05-21 | L149: 97 | M149: INE193B01039
A150: BAFNAPHARM | B150: EQ | C150: 24.6 | D150: 24.6 | E150: 23.5 | F150: 23.55 | G150: 23.55 | H150: 24.5 | I150: 11500 | J150: 274870.55 | K150: 2018-05-21 | L150: 91 | M150: INE878I01014
A151: BAGFILMS | B151: EQ | C151: 4.75 | D151: 4.75 | E151: 4.6 | F151: 4.7 | G151: 4.7 | H151: 4.85 | I151: 113753 | J151: 532219.4 | K151: 2018-05-21 | L151: 114 | M151: INE116D01028
A152: BAJAJ-AUTO | B152: EQ | C152: 2774.95 | D152: 2774.95 | E152: 2703.5 | F152: 2720.55 | G152: 2722 | H152: 2787.5 | I152: 393470 | J152: 1079640828 | K152: 2018-05-21 | L152: 33245 | M152: INE917I01010
A153: BAJAJCORP | B153: EQ | C153: 456.8 | D153: 458 | E153: 447.75 | F153: 450.5 | G153: 450.1 | H153: 451.3 | I153: 24932 | J153: 11229909.3 | K153: 2018-05-21 | L153: 987 | M153: INE933K01021
A154: BAJAJELEC | B154: EQ | C154: 585 | D154: 605.25 | E154: 582.05 | F154: 596.65 | G154: 601 | H154: 582.6 | I154: 269494 | J154: 159818850.5 | K154: 2018-05-21 | L154: 6602 | M154: INE193E01025
A155: BAJAJFINSV | B155: EQ | C155: 5735 | D155: 5775 | E155: 5620.8 | F155: 5722.05 | G155: 5745 | H155: 5729.8 | I155: 163075 | J155: 926569515 | K155: 2018-05-21 | L155: 20769 | M155: INE918I01018
A156: BAJAJHIND | B156: EQ | C156: 7.2 | D156: 7.55 | E156: 6.95 | F156: 7.05 | G156: 7.1 | H156: 7.2 | I156: 3890314 | J156: 28320284.75 | K156: 2018-05-21 | L156: 3919 | M156: INE306A01021
A157: BAJAJHLDNG | B157: EQ | C157: 2762.05 | D157: 2763.7 | E157: 2690 | F157: 2721.55 | G157: 2710 | H157: 2762.3 | I157: 7388 | J157: 20036524.15 | K157: 2018-05-21 | L157: 1408 | M157: INE118A01012
A158: BAJFINANCE | B158: EQ | C158: 2125 | D158: 2149 | E158: 2080.55 | F158: 2105.45 | G158: 2114.9 | H158: 2149.65 | I158: 2376823 | J158: 5005357985 | K158: 2018-05-21 | L158: 72060 | M158: INE296A01024
A159: BALAJITELE | B159: EQ | C159: 118.05 | D159: 124.8 | E159: 115.5 | F159: 122.05 | G159: 121.75 | H159: 119.8 | I159: 249279 | J159: 29656768.65 | K159: 2018-05-21 | L159: 2189 | M159: INE794B01026
A160: BALAMINES | B160: EQ | C160: 635 | D160: 636.05 | E160: 592.8 | F160: 595.35 | G160: 595.15 | H160: 633.6 | I160: 29975 | J160: 18224929.75 | K160: 2018-05-21 | L160: 2093 | M160: INE050E01027
A161: BALKRISHNA | B161: EQ | C161: 76 | D161: 76 | E161: 72 | F161: 72.5 | G161: 72 | H161: 74.55 | I161: 3619 | J161: 265873.1 | K161: 2018-05-21 | L161: 49 | M161: INE875R01011
A162: BALKRISIND | B162: EQ | C162: 1173.85 | D162: 1185.95 | E162: 1040 | F162: 1117.6 | G162: 1122 | H162: 1173.85 | I162: 1242422 | J162: 1366586144 | K162: 2018-05-21 | L162: 42376 | M162: INE787D01026
A163: BALLARPUR | B163: EQ | C163: 11.45 | D163: 11.45 | E163: 10.55 | F163: 10.7 | G163: 10.65 | H163: 11.25 | I163: 702217 | J163: 7638617.25 | K163: 2018-05-21 | L163: 3698 | M163: INE294A01037
A164: BALMLAWRIE | B164: EQ | C164: 212 | D164: 224.4 | E164: 207.5 | F164: 209.3 | G164: 207.7 | H164: 210.9 | I164: 62610 | J164: 13284603.9 | K164: 2018-05-21 | L164: 1653 | M164: INE164A01016
A165: BALPHARMA | B165: EQ | C165: 80 | D165: 80 | E165: 73.5 | F165: 75.1 | G165: 75 | H165: 78 | I165: 8305 | J165: 635767.95 | K165: 2018-05-21 | L165: 204 | M165: INE083D01012
A166: BALRAMCHIN | B166: EQ | C166: 62.5 | D166: 68.5 | E166: 62.5 | F166: 66 | G166: 66.75 | H166: 62.3 | I166: 13310292 | J166: 885829084.6 | K166: 2018-05-21 | L166: 48464 | M166: INE119A01028
A167: BANARBEADS | B167: EQ | C167: 54.2 | D167: 56 | E167: 53.4 | F167: 54 | G167: 54.5 | H167: 54 | I167: 356 | J167: 19300.2 | K167: 2018-05-21 | L167: 11 | M167: INE655B01011
A168: BANARISUG | B168: EQ | C168: 1624.55 | D168: 1630 | E168: 1575.15 | F168: 1577.1 | G168: 1575.25 | H168: 1621.8 | I168: 318 | J168: 512846.4 | K168: 2018-05-21 | L168: 46 | M168: INE459A01010
A169: BANCOINDIA | B169: EQ | C169: 219.25 | D169: 219.6 | E169: 212.75 | F169: 215.15 | G169: 215 | H169: 217.1 | I169: 30167 | J169: 6497184 | K169: 2018-05-21 | L169: 1241 | M169: INE213C01025
A170: BANDHANBNK | B170: EQ | C170: 474 | D170: 481.2 | E170: 463.2 | F170: 468.8 | G170: 467.4 | H170: 479.55 | I170: 363194 | J170: 171056628.5 | K170: 2018-05-21 | L170: 10939 | M170: INE545U01014
A171: BANG | B171: EQ | C171: 38.3 | D171: 39.45 | E171: 37 | F171: 38.7 | G171: 38.35 | H171: 38.35 | I171: 16496 | J171: 621963.3 | K171: 2018-05-21 | L171: 124 | M171: INE863I01016
A172: BANKBARODA | B172: EQ | C172: 127.95 | D172: 131.8 | E172: 126.15 | F172: 129.9 | G172: 129.3 | H172: 126.7 | I172: 11517584 | J172: 1484438480 | K172: 2018-05-21 | L172: 45389 | M172: INE028A01039
A173: BANKBEES | B173: EQ | C173: 2632.25 | D173: 2637.95 | E173: 2602.34 | F173: 2606.15 | G173: 2610.89 | H173: 2623.45 | I173: 5144 | J173: 13414312.63 | K173: 2018-05-21 | L173: 377 | M173: INF732E01078
A174: BANKINDIA | B174: EQ | C174: 98.95 | D174: 100 | E174: 94.7 | F174: 97.95 | G174: 97.4 | H174: 93.45 | I174: 16790634 | J174: 1634548867 | K174: 2018-05-21 | L174: 60648 | M174: INE084A01016
A175: BANSWRAS | B175: EQ | C175: 98.9 | D175: 98.9 | E175: 90.8 | F175: 92.4 | G175: 92.1 | H175: 95.3 | I175: 2394 | J175: 225328.75 | K175: 2018-05-21 | L175: 95 | M175: INE629D01012
A176: BARTRONICS | B176: BE | C176: 10.85 | D176: 11.65 | E176: 10.85 | F176: 10.95 | G176: 11.2 | H176: 11.3 | I176: 45240 | J176: 500448.05 | K176: 2018-05-21 | L176: 188 | M176: INE855F01034
A177: BASF | B177: EQ | C177: 2040.05 | D177: 2062.55 | E177: 1991 | F177: 2044.45 | G177: 2049.9 | H177: 2043.25 | I177: 8981 | J177: 18176820.45 | K177: 2018-05-21 | L177: 1230 | M177: INE373A01013
A178: BASML | B178: EQ | C178: 224.55 | D178: 228 | E178: 220.1 | F178: 223.25 | G178: 223 | H178: 224.55 | I178: 142 | J178: 31585.15 | K178: 2018-05-21 | L178: 11 | M178: INE186H01014
A179: BATAINDIA | B179: EQ | C179: 759.4 | D179: 761 | E179: 740.6 | F179: 744.05 | G179: 746.2 | H179: 752.15 | I179: 460288 | J179: 344703362.8 | K179: 2018-05-21 | L179: 9006 | M179: INE176A01028
A180: BAYERCROP | B180: EQ | C180: 4520.45 | D180: 4564.75 | E180: 4420 | F180: 4477.65 | G180: 4450 | H180: 4575 | I180: 6643 | J180: 29811795.2 | K180: 2018-05-21 | L180: 1237 | M180: INE462A01022
A181: BBL | B181: EQ | C181: 1430.2 | D181: 1445.6 | E181: 1397.1 | F181: 1402.55 | G181: 1404 | H181: 1439.35 | I181: 7624 | J181: 10751337.4 | K181: 2018-05-21 | L181: 817 | M181: INE464A01028
A182: BBTC | B182: EQ | C182: 1520 | D182: 1525 | E182: 1476 | F182: 1500.1 | G182: 1502.1 | H182: 1514.4 | I182: 224766 | J182: 338600848.1 | K182: 2018-05-21 | L182: 5729 | M182: INE050A01025
A183: BDL | B183: EQ | C183: 371 | D183: 375.65 | E183: 370 | F183: 372.3 | G183: 371 | H183: 370.9 | I183: 42165 | J183: 15688029.2 | K183: 2018-05-21 | L183: 1165 | M183: INE171Z01018
A184: BEARDSELL | B184: EQ | C184: 41.6 | D184: 45.85 | E184: 41.6 | F184: 44.65 | G184: 44.7 | H184: 43.85 | I184: 1934 | J184: 85348.95 | K184: 2018-05-21 | L184: 32 | M184: INE520H01022
A185: BEDMUTHA | B185: BE | C185: 17.5 | D185: 18.5 | E185: 17.35 | F185: 17.35 | G185: 17.35 | H185: 18.25 | I185: 6693 | J185: 118192.05 | K185: 2018-05-21 | L185: 53 | M185: INE844K01012
A186: BEL | B186: EQ | C186: 120 | D186: 121.5 | E186: 116.75 | F186: 117.3 | G186: 117 | H186: 121.45 | I186: 3058999 | J186: 362748263.1 | K186: 2018-05-21 | L186: 28371 | M186: INE263A01024
A187: BEML | B187: EQ | C187: 1022 | D187: 1024.9 | E187: 940.05 | F187: 951.8 | G187: 944.3 | H187: 1027.35 | I187: 2542399 | J187: 2468126253 | K187: 2018-05-21 | L187: 63624 | M187: INE258A01016
A188: BEPL | B188: EQ | C188: 172 | D188: 172 | E188: 163.3 | F188: 164.9 | G188: 165.3 | H188: 169.25 | I188: 499356 | J188: 82903899.75 | K188: 2018-05-21 | L188: 5190 | M188: INE922A01025
A189: BERGEPAINT | B189: EQ | C189: 280.25 | D189: 286.6 | E189: 277.35 | F189: 284.95 | G189: 285 | H189: 280.5 | I189: 1123602 | J189: 318381492.4 | K189: 2018-05-21 | L189: 18389 | M189: INE463A01038
A190: BFINVEST | B190: EQ | C190: 322.4 | D190: 325 | E190: 302 | F190: 306.1 | G190: 303 | H190: 324.35 | I190: 166372 | J190: 52254964.35 | K190: 2018-05-21 | L190: 5803 | M190: INE878K01010
A191: BFUTILITIE | B191: EQ | C191: 390 | D191: 392.1 | E191: 375.05 | F191: 376.85 | G191: 376.8 | H191: 394 | I191: 457310 | J191: 174905893.2 | K191: 2018-05-21 | L191: 10242 | M191: INE243D01012
A192: BGLOBAL | B192: BE | C192: 4.3 | D192: 4.45 | E192: 4.3 | F192: 4.3 | G192: 4.3 | H192: 4.5 | I192: 24033 | J192: 103873.9 | K192: 2018-05-21 | L192: 33 | M192: INE224M01013
A193: BGRENERGY | B193: EQ | C193: 95.15 | D193: 95.7 | E193: 92 | F193: 92.25 | G193: 92.3 | H193: 95.15 | I193: 45079 | J193: 4203494.4 | K193: 2018-05-21 | L193: 828 | M193: INE661I01014
A194: BHAGERIA | B194: EQ | C194: 285.05 | D194: 287 | E194: 278.4 | F194: 280.95 | G194: 282 | H194: 281.3 | I194: 12640 | J194: 3547103.15 | K194: 2018-05-21 | L194: 197 | M194: INE354C01027
A195: BHAGYANGR | B195: EQ | C195: 40.25 | D195: 42.2 | E195: 40.25 | F195: 41.05 | G195: 41.3 | H195: 41.55 | I195: 38634 | J195: 1594606.1 | K195: 2018-05-21 | L195: 267 | M195: INE458B01036
A196: BHAGYAPROP | B196: BE | C196: 20 | D196: 20 | E196: 19.65 | F196: 20 | G196: 20 | H196: 20.3 | I196: 993 | J196: 19856.45 | K196: 2018-05-21 | L196: 7 | M196: INE363W01018
A197: BHANDARI | B197: EQ | C197: 2.25 | D197: 2.25 | E197: 2.15 | F197: 2.25 | G197: 2.25 | H197: 2.25 | I197: 234580 | J197: 517419.9 | K197: 2018-05-21 | L197: 128 | M197: INE474E01029
A198: BHARATFIN | B198: EQ | C198: 1171.5 | D198: 1181.8 | E198: 1159 | F198: 1162.6 | G198: 1159 | H198: 1171.8 | I198: 363058 | J198: 423588039.9 | K198: 2018-05-21 | L198: 13383 | M198: INE180K01011
A199: BHARATFORG | B199: EQ | C199: 720.2 | D199: 723.6 | E199: 690.55 | F199: 694.25 | G199: 691.95 | H199: 722.9 | I199: 964352 | J199: 675379053.4 | K199: 2018-05-21 | L199: 20165 | M199: INE465A01025
A200: BHARATGEAR | B200: EQ | C200: 171 | D200: 171.05 | E200: 161.95 | F200: 163.6 | G200: 164.2 | H200: 172.1 | I200: 16556 | J200: 2723199.05 | K200: 2018-05-21 | L200: 427 | M200: INE561C01019
... 1446 more rows

Sheet Sheet1 (hidden)

Sheet Sheet3 (hidden)
